Workbook

Sheet Survey Set-Up (hidden)
A1: 1. State: | B1: Georgia | AA1: Header Choices: | BB1: Adjustment tab column numbers for each state depending on whether "state-only" is displayed or not. | BC1: Alabama | BD1: Alaska | BE1: Arizona | BF1: Arkansas | BG1: California DPH | BH1: California NDPH | BI1: Colorado | BJ1: Connecticut | BK1: Delaware | BL1: Florida | BM1: Georgia | BN1: Hawaii | BO1: Idaho | BP1: Illinois | BQ1: Indiana | BR1: Iowa | BS1: Kansas | BT1: Kentucky | BU1: Louisiana | BV1: Maine | BW1: Maryland | BX1: Massachusetts | BY1: Michigan | BZ1: Minnesota | CA1: Mississippi | CB1: Missouri | CC1: Montana | CD1: Nebraska | CE1: Nevada | CF1: New Hampshire | CG1: New Jersey | CH1: New Mexico | CI1: New York | CJ1: North Carolina | CK1: North Dakota | CL1: Ohio | CM1: Oklahoma | CN1: Oregon | CO1: Pennsylvania | CP1: Rhode Island | CQ1: South Carolina | CR1: South Dakota | CS1: Tennessee | CT1: Texas | CU1: Utah | CV1: Vermont | CW1: Virginia | CX1: Washington | CY1: West Virginia | CZ1: Wisconsin | DA1: Wyoming
BB2: H & I Columns - StateOnlyDisplay = "NO" | BC2: 11 | BD2: 11 | BE2: 11 | BF2: 11 | BG2: 19 | BH2: 11 | BI2: 11 | BJ2: 11 | BK2: 11 | BL2: 11 | BM2: 11 | BN2: 11 | BO2: 11 | BP2: 11 | BQ2: 19 | BR2: 11 | BS2: 11 | BT2: 11 | BU2: 11 | BV2: 11 | BW2: 11 | BX2: 11 | BY2: 11 | BZ2: 11 | CA2: 11 | CB2: 11 | CC2: 11 | CD2: 11 | CE2: 11 | CF2: 11 | CG2: 11 | CH2: 11 | CI2: 11 | CJ2: 11 | CK2: 11 | CL2: 11 | CM2: 11 | CN2: 11 | CO2: 11 | CP2: 11 | CQ2: 11 | CR2: 11 | CS2: 11 | CT2: 11 | CU2: 11 | CV2: 11 | CW2: 11 | CX2: 11 | CY2: 11 | CZ2: 11 | DA2: 11
AA3: Set 1 - State Provided Data | AB3: Set 1 - State Provided Data Instructions | AC3: Set 1 - State Provided Data UCC Summary Titles | AE3: Set 2 - Hospital Provided Data | AF3: Set 2 - Hospital Provided Data Instructions | AG3: Set 2 - Hospital Provided Data UCC Summary Titles | AI3: Set 3 - Other | AJ3: Set 3 - Other Instructions | AK3: Set 3 - Other UCC Summary Titles | AR3: Tax Instructions | BB3: H & I Columns - StateOnlyDisplay = "YES" | BC3: 13 | BD3: 13 | BE3: 13 | BF3: 13 | BG3: 21 | BH3: 13 | BI3: 13 | BJ3: 13 | BK3: 13 | BL3: 13 | BM3: 13 | BN3: 13 | BO3: 13 | BP3: 13 | BQ3: 21 | BR3: 13 | BS3: 13 | BT3: 13 | BU3: 13 | BV3: 13 | BW3: 13 | BX3: 13 | BY3: 13 | BZ3: 13 | CA3: 13 | CB3: 13 | CC3: 13 | CD3: 13 | CE3: 13 | CF3: 13 | CG3: 13 | CH3: 13 | CI3: 13 | CJ3: 13 | CK3: 13 | CL3: 13 | CM3: 13 | CN3: 13 | CO3: 13 | CP3: 13 | CQ3: 13 | CR3: 13 | CS3: 13 | CT3: 13 | CU3: 13 | CV3: 13 | CW3: 13 | CX3: 13 | CY3: 13 | CZ3: 13 | DA3: 13
B4: Select the Column Headings You Want for Section H of the Survey (This will depend on data received from state for crossovers and managed care) | I4: Instructions Tab will Say This: | Q4: UCC Summary Tab Will Say This: | AA4: In-State Medicaid FFS Primary | AB4: Traditional Medicaid Primary (should exclude non-Title 19 programs such as CHIP/SCHIP) | AC4: Medicaid Fee for Service | AE4: In-State Medicaid FFS Primary | AF4: Traditional Medicaid Primary (should exclude non-Title 19 programs such as CHIP/SCHIP) | AG4: Medicaid Fee for Service | AI4: In-State Medicaid FFS Primary | AJ4: Traditional Medicaid Primary (should exclude non-Title 19 programs such as CHIP/SCHIP) | AK4: Medicaid Fee for Service | AR4: N/A | AS4: No tax forms/columns will be used or displayed in the survey. | BB4: J Columns - StateOnlyDisplay = "NO" | BC4: 14 | BD4: 14 | BE4: 14 | BF4: 14 | BG4: 22 | BH4: 14 | BI4: 14 | BJ4: 14 | BK4: 14 | BL4: 14 | BM4: 14 | BN4: 14 | BO4: 14 | BP4: 14 | BQ4: 20 | BR4: 14 | BS4: 14 | BT4: 14 | BU4: 14 | BV4: 14 | BW4: 14 | BX4: 14 | BY4: 14 | BZ4: 14 | CA4: 14 | CB4: 14 | CC4: 14 | CD4: 14 | CE4: 14 | CF4: 14 | CG4: 14 | CH4: 14 | CI4: 14 | CJ4: 14 | CK4: 14 | CL4: 14 | CM4: 14 | CN4: 14 | CO4: 14 | CP4: 14 | CQ4: 14 | CR4: 14 | CS4: 14 | CT4: 14 | CU4: 14 | CV4: 14 | CW4: 14 | CX4: 14 | CY4: 14 | CZ4: 14 | DA4: 14
A5: 2. In-State: | B5: Set 3 - Other | C5: 1 | D5: =HLOOKUP($B$5,$AA$3:$AJ$15,2,FALSE) -> In-State Medicaid FFS Primary | I5: =HLOOKUP(CONCATENATE($B$5, " Instructions"),$AA$3:$AJ$15,2,FALSE) -> Traditional Medicaid Primary (should exclude non-Title 19 programs such as CHIP/SCHIP) | Q5: =HLOOKUP(CONCATENATE($B$5, " UCC Summary Titles"),$AA$3:$AK$15,2,FALSE) -> Medicaid Fee for Service | AA5: In-State Medicaid Managed Care Primary | AB5: Managed Care Medicaid Primary (should exclude non-Title 19 programs such as CHIP/SCHIP) | AC5: Medicaid Managed Care | AE5: In-State Medicaid Managed Care Primary | AF5: Managed Care Medicaid Primary (should exclude non-Title 19 programs such as CHIP/SCHIP) | AG5: Medicaid Managed Care | AI5: In-State Medicaid Managed Care Primary | AJ5: Managed Care Medicaid Primary (should exclude non-Title 19 programs such as CHIP/SCHIP) | AK5: Medicaid Managed Care | AR5: Days | AS5: Tax will be allocated based on inpatient days in the survey in Section L (back-end). | BB5: J Columns - StateOnlyDisplay = "YES" | BC5: 16 | BD5: 16 | BE5: 16 | BF5: 16 | BG5: 24 | BH5: 16 | BI5: 16 | BJ5: 16 | BK5: 16 | BL5: 16 | BM5: 16 | BN5: 16 | BO5: 16 | BP5: 16 | BQ5: 22 | BR5: 16 | BS5: 16 | BT5: 16 | BU5: 16 | BV5: 16 | BW5: 16 | BX5: 16 | BY5: 16 | BZ5: 16 | CA5: 16 | CB5: 16 | CC5: 16 | CD5: 16 | CE5: 16 | CF5: 16 | CG5: 16 | CH5: 16 | CI5: 16 | CJ5: 16 | CK5: 16 | CL5: 16 | CM5: 16 | CN5: 16 | CO5: 16 | CP5: 16 | CQ5: 16 | CR5: 16 | CS5: 16 | CT5: 16 | CU5: 16 | CV5: 16 | CW5: 16 | CX5: 16 | CY5: 16 | CZ5: 16 | DA5: 16
C6: 2 | D6: =HLOOKUP($B$5,$AA$3:$AJ$15,3,FALSE) -> In-State Medicaid Managed Care Primary | I6: =HLOOKUP(CONCATENATE($B$5, " Instructions"),$AA$3:$AJ$15,3,FALSE) -> Managed Care Medicaid Primary (should exclude non-Title 19 programs such as CHIP/SCHIP) | Q6: =HLOOKUP(CONCATENATE($B$5, " UCC Summary Titles"),$AA$3:$AK$15,3,FALSE) -> Medicaid Managed Care | AA6: In-State Medicare FFS Cross-Overs (with Medicaid Secondary) | AB6: Traditional Medicare Primary with Traditional Medicaid or Managed Care Medicaid Secondary | AC6: Medicare Cross-over (FFS) | AE6: In-State Medicare FFS Cross-Overs (with Medicaid Secondary) | AF6: Traditional Medicare Primary with Traditional Medicaid or Managed Care Medicaid Secondary | AG6: Medicare Cross-over (FFS) | AI6: In-State Medicare FFS Cross-Overs (with Medicaid Secondary) | AJ6: Traditional Medicare Primary with Traditional Medicaid or Managed Care Medicaid Secondary | AK6: Medicare Cross-over (FFS) | AR6: Charges Sec. F-3 | AS6: Tax will be allocated based on charges in the survey in Section L (back-end). Total hospital cost report charges will be pulled from Section F-3 (should be used when multiple hospitals are included in one cost report, but they file separate DSH surveys).
C7: 3 | D7: =HLOOKUP($B$5,$AA$3:$AJ$15,4,FALSE) -> In-State Medicare FFS Cross-Overs (with Medicaid Secondary) | I7: =HLOOKUP(CONCATENATE($B$5, " Instructions"),$AA$3:$AJ$15,4,FALSE) -> Traditional Medicare Primary with Traditional Medicaid or Managed Care Medicaid Secondary | Q7: =HLOOKUP(CONCATENATE($B$5, " UCC Summary Titles"),$AA$3:$AK$15,4,FALSE) -> Medicare Cross-over (FFS) | AA7: In-State Medicare Managed Care Cross-Overs (with Medicaid Secondary) | AB7: Medicare Managed Care Primary with Traditional Medicaid or Managed Care Medicaid Secondary (should exclude QMBs if already included in Medicaid FFS data from state) | AC7: Medicare Cross-over (Mg. Care) | AE7: In-State Medicare Managed Care Cross-Overs (with Medicaid Secondary) | AF7: Medicare Managed Care Primary with Traditional Medicaid or Managed Care Medicaid Secondary | AG7: Medicare Cross-over (Mg. Care) | AI7: In-State Other Medicaid Eligibles (Not Included Elsewhere) | AJ7: In-State Other Medicaid Eligibles (Not Included Elsewhere) (should exclude non-Title 19 programs such as CHIP/SCHIP) | AK7: Other Medicaid Eligibles | AR7: Charges Sec. G | AS7: Tax will be allocated based on charges in the survey in Section L (back-end). Total hospital cost report charges will be pulled from Section G. | BB7: =State&StateOnlyDisplay -> GeorgiaNO
C8: 4 | D8: =HLOOKUP($B$5,$AA$3:$AJ$15,5,FALSE) -> In-State Other Medicaid Eligibles (Not Included Elsewhere) | I8: =HLOOKUP(CONCATENATE($B$5, " Instructions"),$AA$3:$AJ$15,5,FALSE) -> In-State Other Medicaid Eligibles (Not Included Elsewhere) (should exclude non-Title 19 programs such as CHIP/SCHIP) | Q8: =HLOOKUP(CONCATENATE($B$5, " UCC Summary Titles"),$AA$3:$AK$15,5,FALSE) -> Other Medicaid Eligibles | AA8: Uninsured | AB8: Uninsured | AC8: Uninsured | AE8: Uninsured | AF8: Uninsured | AG8: Uninsured | AI8: Uninsured | AJ8: Uninsured | AK8: Uninsured | AR8: Cost | AS8: Tax will be spread across reimbursable cost centers in Section G based on their total cost (added to CCRs / per diems).
C9: 5 | D9: =HLOOKUP($B$5,$AA$3:$AJ$15,6,FALSE) -> Uninsured | I9: =HLOOKUP(CONCATENATE($B$5, " Instructions"),$AA$3:$AJ$15,6,FALSE) -> Uninsured | Q9: =HLOOKUP(CONCATENATE($B$5, " UCC Summary Titles"),$AA$3:$AK$15,6,FALSE) -> Uninsured | AR9: C/R | AS9: Tax is already in the cost report being used but the tax reconciliation schedule (Section L) is still displayed to show the reconciliation of the tax in the cost report. Nothing will be added in to the survey UCC.
B11: Select the Column Headings You Want for Section I of the Survey (This will depend on data received from state for crossovers and managed care) | I11: Instructions Tab will Say This: | Q11: UCC Summary Tab Will Say This: | AA11: Out-of-State Medicaid FFS Primary | AB11: Traditional Medicaid Primary (should exclude non-Title 19 programs such as CHIP/SCHIP) | AC11: Out-of-State Medicaid | AE11: Out-of-State Medicaid FFS Primary | AF11: Traditional Medicaid Primary (should exclude non-Title 19 programs such as CHIP/SCHIP) | AG11: Out-of-State Medicaid | AI11: Out-of-State Medicaid FFS Primary | AJ11: Traditional Medicaid Primary (should exclude non-Title 19 programs such as CHIP/SCHIP) | AK11: Out-of-State Medicaid
A12: 3. Out-of-State: | B12: Set 3 - Other | C12: 1 | D12: =HLOOKUP($B$12,$AA$3:$AJ$15,9,FALSE) -> Out-of-State Medicaid FFS Primary | I12: =HLOOKUP(CONCATENATE($B$12, " Instructions"),$AA$3:$AJ$15,9,FALSE) -> Traditional Medicaid Primary (should exclude non-Title 19 programs such as CHIP/SCHIP) | Q12: =HLOOKUP(CONCATENATE($B$5, " UCC Summary Titles"),$AA$3:$AK$15,9,FALSE) -> Out-of-State Medicaid | AA12: Out-of-State Medicaid Managed Care Primary | AB12: Managed Care Medicaid Primary (should exclude non-Title 19 programs such as CHIP/SCHIP) | AE12: Out-of-State Medicaid Managed Care Primary | AF12: Managed Care Medicaid Primary (should exclude non-Title 19 programs such as CHIP/SCHIP) | AI12: Out-of-State Medicaid Managed Care Primary | AJ12: Managed Care Medicaid Primary (should exclude non-Title 19 programs such as CHIP/SCHIP)
C13: 2 | D13: =HLOOKUP($B$12,$AA$3:$AJ$15,10,FALSE) -> Out-of-State Medicaid Managed Care Primary | I13: =HLOOKUP(CONCATENATE($B$12, " Instructions"),$AA$3:$AJ$15,10,FALSE) -> Managed Care Medicaid Primary (should exclude non-Title 19 programs such as CHIP/SCHIP) | AA13: Out-of-State Medicare FFS Cross-Overs (with Medicaid Secondary) | AB13: Traditional Medicare Primary with Traditional Medicaid or Managed Care Medicaid Secondary | AE13: Out-of-State Medicare FFS Cross-Overs (with Medicaid Secondary) | AF13: Traditional Medicare Primary with Traditional Medicaid or Managed Care Medicaid Secondary | AI13: Out-of-State Medicare FFS Cross-Overs (with Medicaid Secondary) | AJ13: Traditional Medicare Primary with Traditional Medicaid or Managed Care Medicaid Secondary
C14: 3 | D14: =HLOOKUP($B$12,$AA$3:$AJ$15,11,FALSE) -> Out-of-State Medicare FFS Cross-Overs (with Medicaid Secondary) | I14: =HLOOKUP(CONCATENATE($B$12, " Instructions"),$AA$3:$AJ$15,11,FALSE) -> Traditional Medicare Primary with Traditional Medicaid or Managed Care Medicaid Secondary | AA14: Out-of-State Medicare Managed Care Cross-Overs (with Medicaid Secondary) | AB14: Medicare Managed Care Primary with Traditional Medicaid or Managed Care Medicaid Secondary (should exclude QMBs if already included in Medicaid FFS data from state) | AE14: Out-of-State Medicare Managed Care Cross-Overs (with Medicaid Secondary) | AF14: Medicare Managed Care Primary with Traditional Medicaid or Managed Care Medicaid Secondary | AI14: Out-of-State Other Medicaid Eligibles (Not Included Elsewhere) | AJ14: Out-of-State Other Medicaid Eligibles (Not Included Elsewhere) (should exclude non-Title 19 programs such as CHIP/SCHIP)
C15: 4 | D15: =HLOOKUP($B$12,$AA$3:$AJ$15,12,FALSE) -> Out-of-State Other Medicaid Eligibles (Not Included Elsewhere) | I15: =HLOOKUP(CONCATENATE($B$12, " Instructions"),$AA$3:$AJ$15,12,FALSE) -> Out-of-State Other Medicaid Eligibles (Not Included Elsewhere) (should exclude non-Title 19 programs such as CHIP/SCHIP) | AE15: Uninsured | AF15: Uninsured | AI15: Uninsured | AJ15: Uninsured
A17: 4. Tax Options: | B17: Display Provider Tax Form? | C17: YES | D17: Tax Methodology? | E17: Charges Sec. G | F17: =VLOOKUP(FRAMethod,$AR$4:$AS$9,2,FALSE) -> Tax will be allocated based on charges in the survey in Section L (back-end). Total hospital cost report charges will be pulled from Section G.
F18: NOTE: Review the certification and instructions in the DSH Survey Part I to ensure that section L is properly excluded or included from the certification and instructions. (See set-up tab of DSH Survey Part I.)
A19: 5. State/Local-Only Indigent Care Program Options: | B19: Display State/Local-Only Indigent Care Program Column? | C19: NO | D19: NOTE: This column is intended to collect Exhibit C data for State/Local-Only Indigent Care Program claims for such programs where a private Managed Care Organization (MCO) is delivering the services to the indigent patients and is paying the hospital for the services provided. Per CMS FAQ published April 7, 2014 (#12), these payments from the MCO must be netted against cost in the UCC calculation. Payments should be reported on accrual basis, and thus cannot be picked up in Exhibit B. Before generating surveys, lock down and black out any payment cells in these columns that you do not want providers to utilize to report payments to ensure accurate reporting. (This column should NOT include any state/local government indigent care program claims where the patient is also enrolled in Medicaid, Medicare, or private insurance.) | P19: Note F - Only include claims in this column that are NOT Medicaid eligible, but are covered under a state/local-only indigent care program. Payments received on these claims from the state/local-only indigent care program should be reported as subsidies in Section F-2. Do not report these state/local-only indigent care program payments in Section H unless the payments are from a private Managed Care Organization that is delivering the state/local-only indigent care program. Payments received from a private Managed Care Organization that is delivering the state/local-only indigent care program should be included on line 133. Payments received from patients related to these claims should be reported on line 135 if not already included in cash basis uninsured payments on line 143. | AB19: Increase worksheet G-3, Line 2 for Bad Debts NOT INCLUDED on worksheet G-3, Line 2 (impact is a decrease in net patient revenue) | AJ19: INCREASE | AR19: State/Local Only Indigent Care Program: | AS19: Enter claim charges, days, and payments for individuals enrolled in a state-only/local government-only indigent care program in which services are delivered through a private managed care organization (MCO). Per CMS FAQ published April 7, 2014 (#12), these individuals are considered uninsured and must be included in the calculation of the hospital-specific DSH limit. Payments received by the hospital from the MCO for these individuals should be reported on an accrual basis and all data must be supported by an Exhibit C. Any such claims where the patient is dual enrolled in a state/local government indigent care program and any other third party coverage (Medicaid, Medicare, private insurance) should NOT be reported in this column. SEE NOTE F ON SECTION H REGARDING PAYMENTS RELATED TO STATE/LOCAL-ONLY INDIGENT CARE PROGRAMS.
A20: 6. Is Ambulance considered a hospital service? | B20: NO | D20: 8. REQUIRED MACRO: | AB20: Increase worksheet G-3, Line 2 for Charity Care Write-Offs NOT INCLUDED on worksheet G-3, Line 2 (impact is a decrease in net patient revenue) | AJ20: INCREASE
D21: After entering 1-6, above, click on "Run page setup" below to set-up the headers and footers with the state name (in all sheets). This is a slow process so be patient! This also sets up the Provider Tax forms and certain Indiana-only columns based on your answers, above. | AB21: Increase worksheet G-3, Line 2 to reverse offset of Medicaid DSH Revenue INCLUDED on worksheet G-3, Line 2 (impact is a decrease in net patient revenue) | AJ21: INCREASE
AB22: Increase worksheet G-3, Line 2 to reverse offset of State and Local Patient Care Cash Subsidies INCLUDED on worksheet G-3, Line 2 (impact is a decrease in net patient revenue) | AJ22: INCREASE
AB23: Decrease worksheet G-3, Line 2 to remove Medicaid Provider Taxes INCLUDED on worksheet G-3, Line 2 (impact is an increase in net patient revenue) | AJ23: DECREASE
D24: 9. Update LIUR calculation | AB24: Blank Recon Line OR "Decrease worksheet G-3, Line 2 to remove Charity Care Charges related to insured patients INCLUDED on worksheet G-3, Line 2 (impact is an increase in net patient revenue)" | AJ24: DECREASE
A25: 7. Contact Info: | B25: Myers and Stauffer LC | D25: If your state has a broader LIUR calculation than the federal LIUR, and you want to update the LIUR reconciliation lines in Section F-3 of the DSH survey, change the descriptions and the +/- values below to match your state's LIUR calculation (the +/- indicates whether you are increasing or decreasing worksheet G-3, Line 2). The default descriptions and +/- included below are based on the FEDERAL LIUR. The federal LIUR defaults are available in the drop-down selections on lines 28-32 below.
B26: Attention: DSH Examinations | AA26: Ambulance
B27: 700 W. 47th Street, Suite 1100 | D27: Note: If you are not using all available lines, you should: | AA27: 0
B28: Kansas City, MO 64112 | D28: 1. Update the reconciliation Line Numbers on the as-filed Section F-3. All other tabs are linked to this tab, so it is only necessary to update the line numbers on "Sec. D, E, F CR Data" tab. | AA28: 0
B29: Fax: (816) 945-5301 | D29: 2. Hide any un-used reconciliation Lines on BOTH the as-filed Section F-3 and ADJ Section F-3 BEFORE you generate the surveys. | AA29: 0
B30: Phone: (800) 374-6858 | D30: Note: Line 36 is an optional line that can be blank, or can account for a state-specific difference in the definition of charity care, for example. Line 36 is NOT part of the reconciliation intended to calculate the LIUR following the federal definition.
B31: e-mail:
B32: NOTE: DO NOT DELETE LINES IN THE SURVEY! THIS WILL CAUSE REFERENCE ERRORS THROUGHOUT! HIDE ANY UNUSED LINES AND UPDATE THE LINE NUMBERS. | D32: =CONCATENATE("Line ",'Sec. D, E, F CR Data'!A127) -> Line 30. | E32: Increase worksheet G-3, Line 2 for Bad Debts NOT INCLUDED on worksheet G-3, Line 2 (impact is a decrease in net patient revenue) | M32: INCREASE
D33: =CONCATENATE("Line ",'Sec. D, E, F CR Data'!A128) -> Line 31. | E33: Increase worksheet G-3, Line 2 for Charity Care Write-Offs NOT INCLUDED on worksheet G-3, Line 2 (impact is a decrease in net patient revenue) | M33: INCREASE
D34: =CONCATENATE("Line ",'Sec. D, E, F CR Data'!A129) -> Line 32. | E34: Increase worksheet G-3, Line 2 to reverse offset of Medicaid DSH Revenue INCLUDED on worksheet G-3, Line 2 (impact is a decrease in net patient revenue) | M34: INCREASE
D35: =CONCATENATE("Line ",'Sec. D, E, F CR Data'!A130) -> Line 33. | E35: Increase worksheet G-3, Line 2 to reverse offset of State and Local Patient Care Cash Subsidies INCLUDED on worksheet G-3, Line 2 (impact is a decrease in net patient revenue) | M35: INCREASE
D36: =CONCATENATE("Line ",'Sec. D, E, F CR Data'!A131) -> Line 34. | E36: Decrease worksheet G-3, Line 2 to remove Medicaid Provider Taxes INCLUDED on worksheet G-3, Line 2 (impact is an increase in net patient revenue) | M36: DECREASE
D37: =CONCATENATE("Line ",'Sec. D, E, F CR Data'!A132) -> Line 35. | E37: Blank Recon Line OR "Decrease worksheet G-3, Line 2 to remove Charity Care Charges related to insured patients INCLUDED on worksheet G-3, Line 2 (impact is an increase in net patient revenue)" | M37: DECREASE
D39: 9. HCRIS Survey Macro: | G39: Output Directory: | I39: G:\Data\State Data\Georgia\Georgia DSH Project\2019 DSH Project\Survey Part II\
D40: *Notes* - This requires SQL drivers to be installed.
A41: List All Hospital Data Below: | F41: *NOTE: Medicare number should not contain anything but numbers
B42: 1 | C42: 2 | D42: 3 | E42: 4 | F42: 5 | G42: 6 | H42: 7 | I42: 8 | J42: 9 | K42: 10 | L42: 11
B43: Hospital Name | C43: Medicaid Provider ID | D43: Medicaid SubProvider1 ID | E43: Medicaid SubProvider2 ID | F43: Medicare Provider ID | G43: Report Period From | H43: Reporting Period To | I43: Report Period From | J43: Reporting Period To | K43: Report Period From | L43: Reporting Period To | M43: Owner Type | N43: DSH Pool
B44: SELECT HOSPITAL NAME | C44: M'Caid # | D44: M'Caid Sub 1 # | E44: M'Caid Sub 2 # | F44: M'Care #
A45: 1 | B45: HAMILTON MEDICAL CENTER | C45: 000000899A | F45: 110001 | G45: 2016-10-01 | H45: 2017-09-30 | M45: Private | N45: Urban
A46: =A45+1 -> 2 | B46: UPSON REGIONAL MEDICAL CENTER | C46: 000001988A | F46: 110002 | G46: 2017-01-01 | H46: 2017-12-31 | M46: Non-State Govt. | N46: Non-Small Rural
A47: =A46+1 -> 3 | B47: MEMORIAL SATILLA HEALTH | C47: 000001229A | F47: 110003 | G47: 2017-01-01 | H47: 2017-04-30 | I47: 2017-05-01 | J47: 2017-12-31 | M47: Private | N47: Non-Small Rural
A48: 4 | B48: NORTHSIDE HOSPITAL-FORSYTH | C48: 000000767A | F48: 110005 | G48: 2016-10-01 | H48: 2017-09-30 | M48: Non-State Govt. | N48: Urban
A49: 5 | B49: SAINT MARY'S HOSPITAL | C49: 000001823A | F49: 110006 | G49: 2016-07-01 | H49: 2017-06-30 | M49: Private | N49: Urban
A50: 6 | B50: PHOEBE PUTNEY MEMORIAL HOSPITAL | C50: 000001482A | D50: 000001416A | F50: 110007 | G50: 2016-08-01 | H50: 2017-07-31 | M50: Non-State Govt. | N50: Urban
A51: 7 | B51: NORTHSIDE HOSPITAL-CHEROKEE | C51: 000001108A | F51: 110008 | G51: 2016-10-01 | H51: 2017-09-30 | M51: Non-State Govt. | N51: Urban
A52: 8 | B52: EMORY UNIVERSITY HOSPITAL | C52: 000000712A | D52: 000000712B | F52: 110010 | G52: 2016-09-01 | H52: 2017-08-31 | M52: Private | N52: Urban
A53: 9 | B53: TANNER MEDICAL CENTER-CARROLLTON | C53: 000001867A | F53: 110011 | G53: 2016-07-01 | H53: 2017-06-30 | M53: Non-State Govt. | N53: Urban
A54: 10 | B54: TANNER MEDICAL CENTER-VILLA RICA | C54: 000002032A | F54: 110015 | G54: 2016-07-01 | H54: 2017-06-30 | M54: Non-State Govt. | N54: Urban
A55: 11 | B55: WELLSTAR WEST GEORGIA HOSPITAL | C55: 000002065A | F55: 110016 | G55: 2016-07-01 | H55: 2017-06-30 | M55: Non-State Govt. | N55: Non-Small Rural
A56: 12 | B56: PIEDMONT NEWTON HOSPITAL | C56: 000001394A | F56: 110018 | G56: 2016-07-01 | H56: 2017-06-30 | M56: Non-State Govt. | N56: Urban
A57: 13 | B57: GORDON HOSPITAL | C57: 000000833A | F57: 110023 | G57: 2017-01-01 | H57: 2017-12-31 | M57: Private | N57: Small Rural
A58: 14 | B58: CANDLER HOSPITAL | C58: 000000327A | F58: 110024 | G58: 2016-07-01 | H58: 2017-06-30 | M58: Private | N58: Urban
A59: 15 | B59: SOUTHEAST GEORGIA MEDICAL CENTER | C59: 000000822A | F59: 110025 | G59: 2016-05-01 | H59: 2017-04-30 | M59: Non-State Govt. | N59: Urban
A60: 16 | B60: ELBERT MEMORIAL HOSPITAL | C60: 000000668A | F60: 110026 | G60: 2016-07-01 | H60: 2017-06-30 | M60: Non-State Govt. | N60: Small Rural
A61: 17 | B61: ST. MARYS SACRED HEART HOSPITAL | C61: 000000437A | F61: 110027 | G61: 2016-07-01 | H61: 2017-06-30 | M61: Private | N61: Small Rural
A62: 18 | B62: UNIVERSITY HOSPITAL | C62: 000001977A | F62: 110028 | G62: 2017-01-01 | H62: 2017-12-31 | M62: Non-State Govt. | N62: Urban
A63: 19 | B63: NORTHEAST GEORGIA MEDICAL CENTER | C63: 000000888A | D63: 000000888S | F63: 110029 | G63: 2016-10-01 | H63: 2017-09-30 | M63: Non-State Govt. | N63: Urban
A64: 20 | B64: CARTERSVILLE MEDICAL CENTER | C64: 000001625A | F64: 110030 | G64: 2016-10-01 | H64: 2017-09-30 | M64: Private | N64: Urban
A65: 21 | B65: WELLSTAR SPALDING REGIONAL HOSPITAL | C65: 000000866A | F65: 110031 | G65: 2016-07-01 | H65: 2017-06-30 | M65: Private | N65: Urban
A66: 22 | B66: STEPHENS COUNTY HOSPITAL | C66: 000001834A | F66: 110032 | G66: 2016-10-01 | H66: 2017-09-30 | M66: Non-State Govt. | N66: Small Rural
A67: 23 | B67: MEDICAL COLLEGE OF GA HOSP & CLINICS | C67: 000000723A | F67: 110034 | G67: 2016-07-01 | H67: 2017-06-30 | M67: State Govt. | N67: Urban
A68: 24 | B68: WELLSTAR KENNESTONE HOSPITAL | C68: 000001119A | F68: 110035 | G68: 2016-07-01 | H68: 2017-06-30 | M68: Non-State Govt. | N68: Urban
A69: 25 | B69: MEMORIAL HEALTH UNIV MEDICAL CENTER | C69: 000001273A | F69: 110036 | G69: 2017-01-01 | H69: 2018-01-31 | M69: Private | N69: Urban
A70: 26 | B70: JOHN D. ARCHBOLD MEMORIAL HOSPITAL | C70: 000000063A | F70: 110038 | G70: 2016-10-01 | H70: 2017-09-30 | M70: Private | N70: Non-Small Rural
A71: 27 | B71: TRINITY HOSPITAL OF AUGUSTA | C71: 000001779A | F71: 110039 | G71: 2016-10-01 | H71: 2017-06-30 | M71: Private | N71: Urban
A72: 28 | B72: NORTHRIDGE MEDICAL CENTER | C72: 000000151A | F72: 110040 | G72: 2017-01-01 | H72: 2017-12-31 | M72: Private | N72: Small Rural
A73: 29 | B73: HABERSHAM COUNTY MEDICAL CENTER | C73: 000000877A | F73: 110041 | G73: 2016-07-01 | H73: 2017-06-30 | M73: Non-State Govt. | N73: Small Rural
A74: 30 | B74: WELLSTAR PAULDING HOSPITAL | C74: 000001438A | F74: 110042 | G74: 2016-07-01 | H74: 2017-06-30 | M74: Non-State Govt. | N74: Urban
A75: 31 | B75: ST. JOSEPH HOSPITAL SAVANNAH | C75: 000001801A | F75: 110043 | G75: 2016-07-01 | H75: 2017-06-30 | M75: Private | N75: Urban
A76: 32 | B76: PHOEBE SUMTER MEDICAL CENTER | C76: 000000019A | F76: 110044 | G76: 2016-08-01 | H76: 2017-07-31 | M76: Non-State Govt. | N76: Non-Small Rural
A77: 33 | B77: BARROW REGIONAL MEDICAL CENTER | C77: 000002098A | F77: 110045 | G77: 2017-01-01 | H77: 2017-09-30 | M77: Private | N77: Urban
A78: 34 | B78: PIEDMONT WALTON | C78: 000020677A | F78: 110046 | G78: 2016-10-01 | H78: 2017-09-30 | M78: Private | N78: Urban
A79: 35 | B79: MURRAY MEDICAL CENTER | C79: 000001383A | F79: 110050 | G79: 2017-01-01 | H79: 2017-12-31 | M79: Non-State Govt. | N79: Urban
A80: 36 | B80: UNION GENERAL HOSPITAL | C80: 000001966A | F80: 110051 | G80: 2016-05-01 | H80: 2017-04-30 | M80: Non-State Govt. | N80: Small Rural
A81: 37 | B81: FLOYD MEDICAL CENTER | C81: 000000756A | F81: 110054 | G81: 2016-07-01 | H81: 2017-06-30 | M81: Non-State Govt. | N81: Urban
A82: 38 | B82: MIDTOWN MEDICAL CENTER | C82: 000001196A | D82: 000148233A | F82: 110064 | G82: 2016-07-01 | H82: 2017-06-30 | M82: Non-State Govt. | N82: Urban
A83: 39 | B83: HOUSTON MEDICAL CENTER | C83: 000000976A | F83: 110069 | G83: 2017-01-01 | H83: 2017-12-31 | M83: Non-State Govt. | N83: Urban
A84: 40 | B84: APPLING HOSPITAL | C84: 000000052A | F84: 110071 | G84: 2016-09-01 | H84: 2017-08-31 | M84: Non-State Govt. | N84: Small Rural
A85: 41 | B85: DORMINY MEDICAL CENTER | C85: 000000613A | F85: 110073 | G85: 2016-08-01 | H85: 2017-07-31 | M85: Non-State Govt. | N85: Small Rural
A86: 42 | B86: PIEDMONT ATHENS REGIONAL MED CTR | C86: 000000074A | F86: 110074 | G86: 2016-10-01 | H86: 2017-06-30 | M86: Non-State Govt. | N86: Urban
A87: 43 | B87: EAST GEORGIA MEDICAL CENTER | C87: 000000272A | F87: 110075 | G87: 2016-10-01 | H87: 2017-09-30 | M87: Private | N87: Non-Small Rural
A88: 44 | B88: DEKALB MEDICAL CENTER | C88: 000000536A | F88: 110076 | G88: 2016-07-01 | H88: 2017-06-30 | M88: Non-State Govt. | N88: Urban
A89: 45 | B89: EMORY UNIVERSITY HOSPITAL MIDTOWN | C89: 000000503A | F89: 110078 | G89: 2016-09-01 | H89: 2017-08-31 | M89: Private | N89: Urban
A90: 46 | B90: CHILDREN'S HLTHCRE-HUGHES SPALDING | C90: 000679808A | F90: 110079 | G90: 2017-01-01 | H90: 2017-12-31 | M90: Non-State Govt. | N90: Urban
A91: 47 | B91: GRADY MEMORIAL HOSPITAL | C91: 000000855A | F91: 110079 | G91: 2017-01-01 | H91: 2017-12-31 | M91: Non-State Govt. | N91: Urban
A92: 48 | B92: ST. JOSEPH HOSPITAL-ATLANTA | C92: 000001812A | F92: 110082 | G92: 2016-09-01 | H92: 2017-08-31 | N92: Urban
A93: 49 | B93: PIEDMONT HOSPITAL | C93: 000001504A | F93: 110083 | G93: 2016-07-01 | H93: 2017-06-30 | M93: Private | N93: Urban
A94: 50 | B94: WASHINGTON COUNTY REGIONAL MED CTR | C94: 000001218A | F94: 110086 | G94: 2016-09-01 | H94: 2017-08-31 | M94: Non-State Govt. | N94: Small Rural
A95: 51 | B95: GWINNETT MEDICAL CENTER-DULUTH | C95: 000001064A | F95: 110087 | G95: 2016-07-01 | H95: 2017-06-30 | M95: Non-State Govt. | N95: Urban
A96: 52 | B96: GWINNETT MEDICAL CTR LAWRENCEVILLE | C96: 000000294A | F96: 110087 | G96: 2016-07-01 | H96: 2017-06-30 | M96: Non-State Govt. | N96: Urban
A97: 53 | B97: COFFEE REGIONAL MEDICAL CENTER | C97: 000000448A | F97: 110089 | G97: 2017-01-01 | H97: 2017-12-31 | M97: Non-State Govt. | N97: Small Rural
A98: 54 | B98: ROCKDALE MEDICAL CENTER | C98: 000001603A | F98: 110091 | G98: 2016-10-01 | H98: 2017-09-30 | M98: Private | N98: Urban
A99: 55 | B99: DODGE COUNTY HOSPITAL | C99: 000000591A | F99: 110092 | G99: 2016-10-01 | H99: 2017-09-30 | M99: Non-State Govt. | N99: Small Rural
A100: 56 | B100: TIFT REGIONAL MEDICAL CENTER | C100: 000001922A | F100: 110095 | G100: 2016-10-01 | H100: 2017-09-30 | M100: Non-State Govt. | N100: Non-Small Rural
A101: 57 | B101: JEFFERSON HOSPITAL | C101: 000001031A | F101: 110100 | G101: 2017-01-01 | H101: 2017-12-31 | M101: Non-State Govt. | N101: Small Rural
A102: 58 | B102: COOK MEDICAL CENTER | C102: 000001251A | F102: 110101 | G102: 2016-07-01 | H102: 2017-06-30 | M102: Non-State Govt. | N102: Small Rural
A103: 59 | B103: CRISP REGIONAL HOSPITAL | C103: 000000514A | F103: 110104 | G103: 2016-07-01 | H103: 2017-06-30 | M103: Non-State Govt. | N103: Small Rural
A104: 60 | B104: COLQUITT REGIONAL MEDICAL CENTER | C104: 000002021A | F104: 110105 | G104: 2016-10-01 | H104: 2017-09-30 | M104: Non-State Govt. | N104: Small Rural
A105: 61 | B105: MEDICAL CENTER OF CENTRAL GEORGIA | C105: 000001207A | F105: 110107 | G105: 2016-10-01 | H105: 2017-09-30 | M105: Non-State Govt. | N105: Urban
A106: 62 | B106: EMANUEL MEDICAL CENTER | C106: 000000701A | F106: 110109 | G106: 2016-07-01 | H106: 2017-06-30 | M106: Non-State Govt. | N106: Small Rural
A107: 63 | B107: UNIVERSITY HOSPITAL MCDUFFIE | C107: 000001185A | F107: 110111 | G107: 2017-01-01 | H107: 2017-12-31 | M107: Non-State Govt. | N107: Small Rural
A108: 64 | B108: BURKE MEDICAL CENTER | C108: 000000283A | F108: 110113 | G108: 2016-06-01 | H108: 2017-05-31 | M108: Non-State Govt. | N108: Small Rural
A109: 65 | B109: WELLSTAR ATLANTA MEDICAL CENTER | C109: 000000789A | D109: 000001713A | F109: 110115 | G109: 2016-07-01 | H109: 2017-06-30 | M109: Private | N109: Urban
A110: 66 | B110: GRADY GENERAL HOSPITAL | C110: 000000844A | F110: 110121 | G110: 2016-10-01 | H110: 2017-09-30 | M110: Non-State Govt. | N110: Small Rural
A111: =A110+1 -> 67 | B111: SOUTH GEORGIA MEDICAL CENTER | C111: 000001724A | D111: 000001724G | F111: 110122 | G111: 2016-10-01 | H111: 2017-09-30 | M111: Non-State Govt. | N111: Urban
A112: 68 | B112: WAYNE MEMORIAL HOSPITAL | C112: 000002054A | F112: 110124 | G112: 2016-07-01 | H112: 2017-06-30 | M112: Non-State Govt. | N112: Small Rural
A113: 69 | B113: FAIRVIEW PARK HOSPITAL | C113: 000001141A | F113: 110125 | G113: 2016-05-01 | H113: 2017-04-30 | M113: Private | N113: Non-Small Rural
A114: 70 | B114: MEADOWS REGIONAL MEDICAL CENTER | C114: 000001086A | F114: 110128 | G114: 2016-07-01 | H114: 2017-06-30 | M114: Non-State Govt. | N114: Small Rural
A115: 71 | B115: SAINT FRANCIS HOSPITAL | C115: 000001768A | F115: 110129 | G115: 2017-01-01 | H115: 2017-12-31 | M115: Private | N115: Urban
A116: 72 | B116: IRWIN COUNTY HOSPITAL | C116: 000000987A | F116: 110130 | G116: 2016-12-01 | H116: 2017-11-30 | M116: Non-State Govt. | N116: Small Rural
A117: 73 | B117: MEMORIAL HOSPITAL & MANOR-BAINBRIDGE | C117: 000001262A | F117: 110132 | G117: 2016-04-01 | H117: 2017-03-31 | M117: Non-State Govt. | N117: Small Rural
A118: 74 | B118: TAYLOR REGIONAL HOSPITAL | C118: 000001548A | F118: 110135 | G118: 2016-04-01 | H118: 2017-03-31 | M118: Private | N118: Small Rural
A119: 75 | B119: EVANS MEMORIAL HOSPITAL | C119: 000000734A | F119: 110142 | G119: 2016-10-01 | H119: 2017-09-30 | M119: Non-State Govt. | N119: Small Rural
A120: 76 | B120: WELLSTAR COBB HOSPITAL | C120: 000000426A | F120: 110143 | G120: 2016-07-01 | H120: 2017-06-30 | M120: Non-State Govt. | N120: Urban
A121: 77 | B121: SOUTHEAST GA HLTH SYS-CAMDEN CAMPUS | C121: 000000811A | F121: 110146 | G121: 2016-05-01 | H121: 2017-04-30 | M121: Non-State Govt. | N121: Small Rural
A122: 78 | B122: OCONEE REGIONAL MEDICAL CENTER | C122: 000000129A | F122: 110150 | G122: 2016-10-01 | H122: 2017-09-30 | M122: Private | N122: Non-Small Rural
A123: 79 | B123: PERRY HOSPITAL | C123: 000001471A | F123: 110153 | G123: 2017-01-01 | H123: 2017-12-31
A124: 80 | B124: NORTHSIDE HOSPITAL | C124: 000001405A | F124: 110161 | G124: 2016-10-01 | H124: 2017-09-30 | M124: Non-State Govt. | N124: Urban
A125: 81 | B125: COLISEUM MEDICAL CENTER | C125: 000000459A | F125: 110164 | G125: 2016-07-01 | H125: 2017-06-30 | M125: Private | N125: Urban
A126: 82 | B126: SOUTHERN REGIONAL MEDICAL CENTER | C126: 000000404A | F126: 110165 | G126: 2017-01-01 | H126: 2017-12-31 | M126: Private | N126: Urban
A127: 83 | B127: REDMOND REGIONAL MEDICAL CENTER | C127: 000001581A | F127: 110168 | G127: 2016-07-01 | H127: 2017-06-30 | M127: Private | N127: Urban
A128: 84 | B128: DOCTORS HOSPITAL-AUGUSTA | C128: 000000558A | F128: 110177 | G128: 2016-04-01 | H128: 2017-03-31 | M128: Private | N128: Urban
A129: 85 | B129: WELLSTAR DOUGLAS HOSPITAL | C129: 000000624A | F129: 110184 | G129: 2016-07-01 | H129: 2017-06-30 | M129: Non-State Govt. | N129: Urban
A130: 86 | B130: FANNIN REGIONAL HOSPITAL | C130: 000134406A | F130: 110189 | G130: 2017-01-01 | H130: 2017-12-31 | M130: Private | N130: Small Rural
A131: 87 | B131: FLINT RIVER HOSPITAL | C131: 000149487A | F131: 110190 | G131: 2017-01-01 | H131: 2017-12-31 | M131: Private | N131: Small Rural
A132: 88 | B132: PIEDMONT HENRY HOSPITAL | C132: 000182388A | F132: 110191 | G132: 2016-07-01 | H132: 2017-06-30 | M132: Non-State Govt. | N132: Urban
A133: 89 | B133: EMORY EASTSIDE MEDICAL CENTER | C133: 000190088A | F133: 110192 | G133: 2016-09-01 | H133: 2017-08-31 | M133: Private | N133: Urban
A134: 90 | B134: DONALSONVILLE HOSPITAL | C134: 000206181A | F134: 110194 | G134: 2016-07-01 | H134: 2017-06-30 | M134: Private | N134: Small Rural
A135: 91 | B135: WELLSTAR NORTH FULTON REGIONAL HOSP | C135: 000275976A | F135: 110198 | G135: 2016-07-01 | H135: 2017-06-30 | M135: Private | N135: Urban
A136: 92 | B136: NORTHSIDE MEDICAL CENTER | C136: 000315642A | F136: 110200 | G136: 2016-07-01 | H136: 2017-06-30 | M136: Non-State Govt. | N136: Urban
A137: 93 | B137: COLISEUM NORTHSIDE | C137: 000295358A | F137: 110201 | G137: 2016-07-01 | H137: 2017-06-30 | M137: Private | N137: Urban
A138: 94 | B138: PIEDMONT FAYETTE HOSPITAL | C138: 000755323A | F138: 110215 | G138: 2016-07-01 | H138: 2017-06-30 | M138: Private | N138: Urban
A139: 95 | B139: PIEDMONT MOUNTAINSIDE HOSPITAL | C139: 000001493A | F139: 110225 | G139: 2016-07-01 | H139: 2017-06-30 | M139: Private | N139: Small Rural
A140: 96 | B140: DEKALB MEDICAL CENTER-HILLENDALE | C140: 000000536U | F140: 110226 | G140: 2016-07-01 | H140: 2017-06-30 | M140: Non-State Govt. | N140: Urban
A141: 97 | B141: PIEDMONT NEWNAN HOSPITAL | C141: 000000492A | F141: 110229 | G141: 2016-07-01 | H141: 2017-06-30 | M141: Private | N141: Urban
A142: 98 | B142: EMORY JOHNS CREEK | C142: 344886600A | F142: 110230 | G142: 2016-09-01 | H142: 2017-08-31 | M142: Private | N142: Urban
A143: 99 | B143: SOUTH GEORGIA MED CTR - BERRIEN | C143: 000000173A | F143: 110234 | G143: 2016-10-01 | H143: 2017-09-30 | M143: Non-State Govt. | N143: Small Rural
A144: 100 | B144: CORNERSTONE MEDICAL CENTER | C144: 003180661A | F144: 110236 | G144: 2017-01-01 | H144: 2017-12-29 | M144: Private | N144: Urban
A145: 101 | B145: SOUTHWEST GEORGIA REGIONAL MEDICAL C | C145: 000001427A | F145: 111300 | G145: 2016-08-01 | H145: 2017-07-31 | M145: Non-State Govt. | N145: Small Rural
A146: 102 | B146: BLECKLEY MEMORIAL HOSPITAL | C146: 000000195A | F146: 111302 | G146: 2016-04-01 | H146: 2017-03-31 | M146: Non-State Govt. | N146: Small Rural
A147: 103 | B147: JASPER MEMORIAL HOSPITAL | C147: 000000998A | F147: 111303 | G147: 2016-10-01 | H147: 2017-09-30 | M147: Non-State Govt. | N147: Small Rural
A148: 104 | B148: MORGAN MEMORIAL HOSPITAL | C148: 000694229A | F148: 111304 | G148: 2016-07-01 | H148: 2017-06-30 | M148: Non-State Govt. | N148: Small Rural
A149: 105 | B149: MILLER COUNTY HOSPITAL | C149: 000001317A | F149: 111305 | G149: 2016-07-01 | H149: 2017-06-30 | M149: Non-State Govt. | N149: Small Rural
A150: 106 | B150: EFFINGHAM HOSPITAL | C150: 000000657A | F150: 111306 | G150: 2016-07-01 | H150: 2016-10-31 | I150: 2016-11-01 | J150: 2017-06-30 | M150: Non-State Govt. | N150: Urban
A151: 107 | B151: CLINCH MEMORIAL HOSPITAL | C151: 000000415A | F151: 111308 | G151: 42552 | H151: 42916 | M151: Non-State Govt. | N151: Small Rural
A152: 108 | B152: MEDICAL CENTER OF PEACH COUNTY | C152: 000001449A | F152: 111310 | G152: 2016-10-01 | H152: 2017-09-30 | M152: Non-State Govt. | N152: Small Rural
A153: 109 | B153: OPTIM MEDICAL CENTER - JENKINS | C153: 000001042A | F153: 111311 | G153: 2017-01-01 | H153: 2017-06-15 | M153: Private | N153: Small Rural
A154: 110 | B154: OPTIM MEDICAL CENTER - SCREVEN | C154: 000001647A | F154: 111312 | G154: 2017-01-01 | H154: 2017-12-31 | M154: Private | N154: Small Rural
A155: 111 | B155: PUTNAM GENERAL HOSPITAL | C155: 000001537A | F155: 111313 | G155: 2016-10-01 | H155: 2017-09-30 | M155: Non-State Govt. | N155: Small Rural
A156: 112 | B156: PIONEER HLTH SERV OF EARLY COUNTY | C156: 000000635A | F156: 111314 | G156: 2016-10-01 | H156: 2017-10-31 | M156: Non-State Govt. | N156: Small Rural
A157: 113 | B157: WARM SPRINGS MEDICAL CENTER | C157: 000001284A | F157: 111316 | G157: 2017-01-01 | H157: 2017-12-31 | M157: Non-State Govt. | N157: Small Rural
A158: 114 | B158: MONROE COUNTY HOSPITAL | C158: 000001361A | F158: 111318 | G158: 2016-10-01 | H158: 2017-09-30 | M158: Non-State Govt. | N158: Small Rural
A159: 115 | B159: WELLSTAR SYLVAN GROVE HOSPITAL | C159: 000001856A | F159: 111319 | G159: 2016-07-01 | H159: 2017-06-30 | M159: Non-State Govt. | N159: Small Rural
A160: 116 | B160: HIGGINS GENERAL HOSPITAL | C160: 000000954A | F160: 111320 | G160: 2016-07-01 | H160: 2017-06-30 | M160: Non-State Govt. | N160: Small Rural
A161: 117 | B161: OPTIM MEDICAL CENTER - TATTNALL | C161: 000001878A | F161: 111323 | G161: 2017-01-01 | H161: 2017-12-31 | M161: Private | N161: Small Rural
A162: 118 | B162: CHATUGE REGIONAL HOSPITAL | C162: 000001933A | F162: 111324 | G162: 2016-05-01 | H162: 2017-04-30 | M162: Non-State Govt. | N162: Small Rural
A163: 119 | B163: WILLS MEMORIAL HOSPITAL | C163: 000002087A | F163: 111325 | G163: 2016-05-01 | H163: 2017-04-30 | M163: Non-State Govt. | N163: Small Rural
A164: 120 | B164: SOUTH GEORGIA MED CTR - LANIER | C164: 000001163A | F164: 111326 | G164: 2016-10-01 | H164: 2017-09-30 | M164: Non-State Govt. | N164: Small Rural
A165: 121 | B165: BACON COUNTY HOSPITAL | C165: 000000118A | F165: 111327 | G165: 2016-07-01 | H165: 2017-06-30 | M165: Non-State Govt. | N165: Small Rural
A166: 122 | B166: PHOEBE WORTH MEDICAL CENTER | C166: 000002109A | F166: 111328 | G166: 2016-08-01 | H166: 2017-07-31 | M166: Private | N166: Small Rural
A167: 123 | B167: ST. MARYS GOOD SAMARITAN | C167: 000001328A | F167: 111329 | G167: 2016-07-01 | H167: 2017-06-30 | M167: Private | N167: Small Rural
A168: 124 | B168: POLK MEDICAL CENTER | C168: 000001526A | F168: 111330 | G168: 2016-07-01 | H168: 2017-06-30 | M168: Non-State Govt. | N168: Small Rural
A169: 125 | B169: MITCHELL COUNTY HOSPITAL | C169: 000001339A | F169: 111331 | G169: 2016-10-01 | H169: 2017-09-30 | M169: Non-State Govt. | N169: Small Rural
A170: 126 | B170: BROOKS COUNTY HOSPITAL | C170: 000000239A | F170: 111332 | G170: 2016-10-01 | H170: 2017-09-30 | M170: Non-State Govt. | N170: Small Rural
A171: 127 | B171: JEFF DAVIS HOSPITAL | C171: 000001009A | F171: 111333 | G171: 2016-10-01 | H171: 2017-09-30 | M171: Non-State Govt. | N171: Small Rural
A172: 128 | B172: CANDLER COUNTY HOSPITAL | C172: 000000316A | F172: 111334 | G172: 2017-01-01 | H172: 2017-12-31 | M172: Non-State Govt. | N172: Small Rural
A173: 129 | B173: LIBERTY REGIONAL MEDICAL CENTER | C173: 000001152A | F173: 111335 | G173: 2016-12-01 | H173: 2017-11-30 | M173: Non-State Govt. | N173: Small Rural
A174: 130 | B174: MOUNTAIN LAKES MEDICAL CENTER | C174: 000001559A | F174: 111336 | G174: 2017-01-01 | H174: 2017-12-31 | M174: Private | N174: Small Rural
A175: =A174+1 -> 131 | B175: SHEPHERD CENTER | C175: 000248069A | F175: 112003 | G175: 2016-04-01 | H175: 2017-03-31 | M175: Private | N175: Urban
A176: 132 | B176: DEKALB MEDICAL CENTER AT DECATUR | C176: 000000525A | F176: 112006 | G176: 2016-07-01 | H176: 2017-06-30 | M176: Non-State Govt. | N176: Urban
A177: 133 | B177: WELLSTAR WINDY HILL HOSPITAL | C177: 000001999A | F177: 112007 | G177: 2016-07-01 | H177: 2017-06-30 | M177: Non-State Govt. | N177: Urban
A178: 134 | B178: KINDRED HOSPITAL ROME | C178: 000886179A | F178: 112010 | G178: 2016-09-01 | H178: 2017-08-31 | N178: Urban
A179: 135 | B179: HEALTHSOUTH WALTON REHAB HOSPITAL | C179: 000368387A | F179: 113030 | G179: 2016-04-01 | H179: 2017-03-31 | N179: Urban
A180: 136 | B180: ROOSEVELT WARM SPRGS LTAC HOSPITAL | C180: 000000778A | F180: 113028 | G180: 2016-07-01 | H180: 2017-06-30 | M180: State Govt. | N180: Small Rural
A181: 137 | B181: CHILDREN'S HOSPITAL ATL AT EGLESTON | C181: 000000943A | F181: 113300 | G181: 2017-01-01 | H181: 2017-12-31 | M181: Private | N181: Urban
A182: 138 | B182: CHILDREN'S HEALTHCARE-SCOTTISH RITE | C182: 000001636A | F182: 113301 | G182: 2017-01-01 | H182: 2017-12-31 | M182: Private | N182: Urban
A183: 139
A184: 140
A185: 141
A186: 142
A187: 143
A188: 144
A189: 145
A190: 146
A191: 147
A192: 148
A193: 149
A194: 150
A195: 151
A196: 152
A197: 153
A198: 154
A199: 155
A200: 156
A201: 157
A202: 158
A203: 159
... 45 more rows

Sheet Instructions
A1: General Instructions and Identification of Cost Reports that Cover the DSH Year:
C3: Macro Settings for Microsoft Excel 2007 Software
A4: 1. | C4: Please make sure Macros are enabled under the Excel options. If Macros are disabled, the DSH survey will not have full functionality. Macros can be enabled for Microsoft Excel 2007 software by first selecting "Excel Options" under the Microsoft Office File Menu Button (upper left hand corner of the screen). Then under the Excel Options dialog box select the "Trust Center" option. Under the Trust Center Dialog box select the "Trust Center Settings" button. Then select "Macro Settings" and click the "Enable all macros" button. Then press the OK button. After the Macro settings have been enabled it will be necessary to save changes and close the Excel program and re-open the DSH Survey Part II Excel workbook so the setting changes can take place. OR Select the Developer tab on the Excel Ribbon Menu. If the Developer tab is not displayed, click the Microsoft Office File Menu Button (upper left hand corner of the screen), then select the "Excel Options" button. Under Excel Options, Select the "Popular" category, then under "Top Options for working with Excel" select the "Show Developer Tab in The Ribbon" option. Once the Developer tab is available select the "Macro Security" option under the Code Group. Under Macro Security settings select the "Enable All Macros" option or the option that allows you to disable macros with notification (if the notification option is chosen, you will see a "SECURITY WARNING" message). Then close and re-open the Excel workbook so the settings changes can take place.
C5: Macro Settings for Older Versions of Microsoft Excel Software
C6: For older versions of Microsoft Excel software (before Microsoft Excel 2007) select the "Tools" menu. Under the Tools Menu select "Macro" - "Security". Then select "Low" or "Medium" security. Then close and re-open the Excel workbook for the settings changes to take place.
A7: 2. | C7: DSH Survey Sections A, B, and C are part of a separate Excel workbook titled DSH Survey Part I and should be submitted along with the completed DSH Survey Part II Excel workbook. DSH Survey sections A, B, and C contain DSH eligibility and certification questions.
A9: 3. | C9: Select the "Survey - Sec. D, E, F CR Data" tab in the Excel workbook. On Line 1, select your facility from the drop-down menu provided. When your facility is selected, the following Lines will be populated with your facility specific information: Line 2 - applicable cost report years, Line 4 - Hospital Name, Line 5 - in-state Medicaid provider number, Line 6 - Medicaid Subprovider Number 1 (Psychiatric or Rehab), Line 7 - Medicaid Provider Number 2 (Psychiatric or Rehab), and Line 8 -Medicare provider number. The provider must manually select the appropriate option from the drop down menu for Line 3 - Status of Cost Report Used for the Survey. Review the information and indicate whether it is correct or incorrect. If incorrect, provide correct information in the provided space and submit supporting documentation when you submit your survey.
A11: 4. | C11: You must complete a separate DSH Survey Part II Excel workbook for each cost report year needed to cover the State DSH year and not previously submitted for a DSH examination. To indicate the proper time period for the current survey select an "X" from the drop down menu on the appropriate box of Line 2 of the "Survey - Sec. D, E, F CR Data" tab in this Excel workbook. If two cost report years are selected at the same time the survey will generate an error message as only one cost report year may be selected per Excel workbook.
C12: NOTE: For the 2014 DSH Survey, if your hospital completed the DSH survey for 2013, the first cost report year should follow the last cost report year reported on the 2013 DSH survey. The last cost report year on the 2014 survey must end on or after the end of the 2014 DSH year. If your hospital did not complete the 2013 survey, you must report data for each cost report year that covers the 2014 DSH year.
A14: 5. | C14: Supporting documentation for all data elements provided within the DSH survey must be maintained for a minimum of five years.
A15: Exhibit A - Support of Uninsured I/P and O/P Hospital Services:
A17: 1. | C17: See Exhibit A for an example format of the information that needs to be available to support the data reported in Section H of the survey related to uninsured services provided in each cost reporting year needed to completely cover the DSH year. This information must be maintained by the facility in accordance with the documentation retention requirements outlined in the general instructions section. Submit a separate Exhibit A for each cost reporting period included in the survey.
A18: 2. | C18: Complete Exhibit A based on your individual state Medicaid hospital reimbursement methodology (if your state reimburses based on discharge date then only include claims in Exhibit A that were discharged during the cost reporting period for which you are pulling the data).
A19: 3. | C19: Exhibit A population should include all uninsured patients whose dates of service (see above) fall within the cost report period.
A20: 4. | C20: The total inpatient and outpatient hospital (excluding professional fees, and other non-hospital items) charges from Exhibit A, column N should tie to Section H, line 128 of the DSH survey.
A22: Exhibit B - Support for Self-Pay I/P and O/P Hospital Payments Received:
A24: 1. | C24: See Exhibit B for an example format of the information that needs to be available to support the data reported in Section E of the survey related to ALL patient payments received during each cost reporting year needed to completely cover the DSH year. This information must be maintained by the facility in accordance with the documentation retention requirements outlined in the general instructions section. Submit a separate Exhibit B for each cost reporting period included in the survey.
C25: Note: If insurance status cannot be determined on older service dates, report the older service date payments received during the cost report period on Exhibit B-1, as noted below.
C26: Note: Include Section 1011 payments received related to undocumented aliens if they are applied at a patient level.
A27: 2. | C27: Exhibit B population should include all payments received from patients during the cost report year regardless of dates of service and insurance status.
A28: 3. | C28: Only the payments received from uninsured patients should be included on Section H of the DSH survey, line 143. Payments from both the uninsured and insured patients should be reported on Section E of the DSH survey, lines 9 and 10, respectively. The total payments from Section H, line 143 should reconcile to Section E, line 9.
A30: Exhibit B-1 - Support for Self-Pay I/P and O/P Hospital Payments Received for Older Service Dates:
A31: 1. | C31: Exhibit B-1 is only needed if a hospital cannot determine or support insurance status related to self-pay payments received during the cost report periods on the survey. This may be the case on much older service date payments (e.g., 1999 service dates paid on in 2005). In these cases, we will calculate the uninsured portion of the older service date payments based on the more recent self-pay data included on the previous exhibit (Exhibit B).
C32: See Exhibit B-1 for an example format of the information needed to support the data reported in Section D of the survey related to payments received from ALL older self-pay services during each cost report year needed to completely cover the DSH year. Submit a separate Exhibit B-1 for each cost reporting period included in the survey, if applicable.
A34: Section D - General Cost Report Year Information
A36: 1. | C36: For Lines 1 through 8 of Section D, please refer to the instructions listed above in the "General Information and Identification of Cost Reports that Cover the DSH Year" section.
A38: 2. | C38: For Lines 9 through 15, provide the name and Medicaid provider number for each state (other than your home state) where you had a current Medicaid provider agreement during the term of the DSH year. Per federal regulation, the DSH examination must review both in-state Medicaid services as well as out-of-state Medicaid services when determining the Medicaid shortfall or longfall.
A40: Section E - Disclosure of Medicaid / Uninsured Payments Received
A41: 1. | C41: Please read "Note 1" located at the bottom of Section E before entering information for Lines 1 through 7. After reading through Note 1, please provide the applicable Section 1011 payment information as indicated.
A42: 2. | C42: Please read "Note 2" located at the bottom of Section E before entering information for Line 8. After reading through Note 2, please provide the total Out-of-State DSH payments as indicated.
A43: 3. | C43: Lines 9 and 10 should reconcile to the Exhibit B information provided by the facility.
A45: 4. | C45: =IF(State="California DPH","Line 13 is a drop-down menu. Please answer 'Yes' or 'No' to the question. This question is referring to Rate Range, Seniors with Disabilities, and Hospital Fee payments received by your hospital.","Line 13 is a drop-down menu. Please answer 'Yes' or 'No' to the question.") -> Line 13 is a drop-down menu. Please answer 'Yes' or 'No' to the question.
A47: 5. | C47: Lines 14 and 15 should be completed if you answered 'Yes' to line 13. Please provide the amount of lump sum (non-claims-based) payments received from Medicaid Managed Care plans. Please also provide supporting documentation for the amounts reported in the form of cancelled checks, general ledger records, or some other financial records.
A49: Section F - MIUR / LIUR Qualifying Data from the Cost Report
C51: Section F-1 Total Hospital Days Used in Medicaid Inpatient Utilization Ration (MIUR)
A52: 1. | C52: Section F-1 is required to calculate the Medicaid Inpatient Utilization Rate (MIUR). The MIUR is a federal DSH eligibility criteria that must be met in order to receive DSH payments.
C53: Section F-2 Cash Subsidies for Patient Services Received from State or Local Governments and Charity Care Charges
A54: 2. | C54: For Lines 2 through 6 report all state or local government cash subsidies received for patient care services. If the subsidies are directed specifically for inpatient or outpatient services, record the subsidies in the appropriate cell. If the subsidies do not specify inpatient or outpatient services, record the subsidies in the unspecified cell. If any subsidies are directed toward non-hospital services, record the subsidies in the non-hospital cell.
C55: =IF(State="California DPH","The amount reported here should reconcile to the amount that was reported on the hospital's OSHPD report. Please submit the OSHPD report as support for the amount reported in this section.","") -> 
A56: 3. | C56: The unspecified subsidies will be allocated between inpatient and outpatient using your hospital volume statistics. State and local subsidies do not include regular Medicaid payments, supplemental (UPL) Medicaid payments or Medicaid/Medicare DSH payments. Subsidies are funds the hospital received from state or local government sources to assist hospitals to provide care to uninsured or underinsured patients.
A57: 4. | C57: Cash subsidies are used to calculate Medicaid DSH eligibility under the federal low-income utilization rate formula. They are NOT used to reduce your net uninsured cost for DSH payment programs.
A58: 5. | C58: For Lines 7 through 10 report the applicable charity care charges. Charity care charges are used in the calculation of the low-income utilization rate. Report the hospital's inpatient and outpatient charity care charges for the applicable cost reporting period. Any charity care charges related to non-hospital services should be reported on the non-hospital charity care charges line. Total charity care charges must reconcile to the charity care charges reported in your financial statements and/or annual audit or they must be in compliance with the definition of charity per your state's DSH payment program.
C59: =IF(State="California DPH","The amount reported here should reconcile to the amount that was reported on the hospital's OSHPD report. Please submit the OSHPD report as support for the amount reported in this section.","") -> 
C61: Section F-3 Calculation of Net Hospital Revenue from Patient Services (Used for LIUR)
A63: 6. | C63: For purposes of the low-income utilization rate (LIUR) calculation, it is necessary to calculate net hospital revenue from patient services. This section of the survey requests a breakdown of charges reported on cost report Worksheet G-2 between hospital and non-hospital services. The form directs you to allocate your total contractual adjustments, as reported on cost report Worksheet G-3, Line 2, between hospital and non-hospital services. The form provides space for an allocation of contractual allowances among service types. If contractual adjustment amounts are not maintained by service type in your accounting system, a reasonable allocation method must be used. This will allow for the calculation of net "hospital" revenue. Total charges and contractual adjustments must agree to your cost report. Contractuals may have been spread on the survey using formulas but you can overwrite those amounts with actual contractuals if you have the data.
A65: 7. | C65: A separate Excel workbook must be used for each cost reporting period needed to completely cover the DSH year as indicated in the "General Information and Identification of Cost Reports that Cover the DSH Year" section of the instructions.
A67: Section G - CR Data
E68: NOTE: All data in this section must be verified by the hospital. If data is already present in this section, it was completed using CMS HCRIS cost report data. If the hospital has a more recent version of the cost report or will be using the Medi-Cal Cost Report, the data should be updated to the hospital's version of the cost report. Formulas can be overwritten as needed with actual data.
C69: =IF(State="California DPH",E68,E69) -> NOTE: All data in this section must be verified by the hospital. If data is already present in this section, it was completed using CMS HCRIS cost report data. If the hospital has a more recent version of the cost report, the data should be updated to the hospital's version of the cost report. Formulas can be overwritten as needed with actual data. | E69: NOTE: All data in this section must be verified by the hospital. If data is already present in this section, it was completed using CMS HCRIS cost report data. If the hospital has a more recent version of the cost report, the data should be updated to the hospital's version of the cost report. Formulas can be overwritten as needed with actual data.
A70: 1. | C70: The provider should enter all applicable Routine and Ancillary Cost Centers not currently provided in Section G. Once the Routine and Ancillary Cost Centers have been entered into Section G of the DSH survey, they will populate the Routine and Ancillary Cost Centers on DSH survey "Sec. H - In-State", "Sec. I - Out-of-State.
A72: 2. | C72: If your teaching hospital removed intern and resident costs in Column 25 of Worksheet B, Part I, you will need to enter those amounts in the column provided so the amounts can be added back to your total cost per diems and CCRs for Medicaid/Uninsured. If intern and resident cost was not removed in Column 25 of Worksheet B, Part I then no entry is needed. Teaching costs should be included in the final cost per diems and CCRs.
A74: 3. | C74: After the Routine and Ancillary Cost Centers have been identified, it will be necessary for the provider to fill in the remaining information required by Section G. The location of the specific cost report information required by Schedule G for both Routine and Ancillary Cost Centers is identified in each column heading. The provider will NOT need to enter data into the "Net Cost", or "Medicaid Per Diem/Cost-to-Charge Ratios" columns as these are calculated columns.
A76: 4. | C76: Once the "Medicaid Per Diem/Cost-to-Charge Ratios" column has been calculated, the values will also populate on DSH Survey "Sec. H - In-State", and "Sec. I - Out-of-State".
A78: Section H - Calculation of In-State Medicaid and Uninsured I/P and O/P Costs:
A80: 1. | C80: This section of the survey is used to collect information to calculate the hospital's Medicaid shortfall or longfall. By federal Medicaid DSH regulations, the shortfall/longfall must be calculated using Medicare cost report costing methodologies.
A82: 2. | C82: The routine per diem cost per day for each hospital routine cost center present on the Medicaid cost report will automatically populate in Section H after DSH Survey "Sec. G - CR Data" has been completed. These amounts are calculated on Worksheet D-1 of the cost report. The ancillary cost-to-charge ratio for each ancillary cost center on your cost report will also automatically be populated in Section H after DSH Survey "Sec. G - CR Data" has been completed.
A84: 3. | C84: Record your routine days of care, routine charges and I/P and O/P ancillary charges in the next several columns. This information, when combined with cost information from the cost report, will calculate the total cost of hospital services provided to Medicaid and uninsured individuals.
C85: ='Survey Set-Up'!$D$5 -> In-State Medicaid FFS Primary
C86: ='Survey Set-Up'!I5 -> Traditional Medicaid Primary (should exclude non-Title 19 programs such as CHIP/SCHIP)
C87: In these two columns, record your in-state Medicaid fee-for-services days and charges. The days and charges should reconcile to your Medicaid provider statistics and reimbursement (PS&R) report, or your state version generated from the MMIS. Record in the box labeled "Total Medicaid Paid Amount (excludes TPL, Co-Pay and Spend-Down)," the total (gross) payments, prior to reductions for third party liability (TPL), your hospital received for these services. Reconcile your responses on the survey with the PS&R total at the bottom of each column. Provide an explanation for any unreconciled amounts.
C88: ='Survey Set-Up'!$D$6 -> In-State Medicaid Managed Care Primary
C89: ='Survey Set-Up'!I6 -> Managed Care Medicaid Primary (should exclude non-Title 19 programs such as CHIP/SCHIP)
C90: Same requirements as above, except payments received from the Medicaid Managed Care entity should be reported on the line titled "Total Medicaid Managed Care Paid Amount (excludes TPL, Co-Pay and Spend-Down)". If your hospital does business with more than one in-state Medicaid managed care entity, your combined results should be reported in these two columns (inpatient and outpatient). NOTE: Medicaid Managed Care payments should include all Medicaid Managed Care payments related to the services provided, including, but not limited to, incentive payments, bonus payments, capitation and sub-capitation payments.
C91: =IF(State="California DPH",E91,"") ->  | E91: Medicaid Managed Care lump sum (non-claims-based payments) reported on Line 14 of Section E such as Rate Range, Seniors and Persons with Disabilities, and Hospital Fee payments should be reported on line 138 of Section H. The payments reported on line 138 should EXCLUDE the physician and non-hospital program amounts.
C92: ='Survey Set-Up'!D7 -> In-State Medicare FFS Cross-Overs (with Medicaid Secondary)
C93: ='Survey Set-Up'!I7 -> Traditional Medicare Primary with Traditional Medicaid or Managed Care Medicaid Secondary
C94: Each hospital must report its Medicare/Medicaid cross-over claims summary data on the survey. Total cross-over days and routine and ancillary charges must be reported and grouped in the same cost centers as reported on the hospital's cost report. Report payments as instructed on each line. In total, payments must include all amounts collected from the Medicare program, patient co-pays and deductible payments, Medicare bad debt payments, and any Medicaid payments and other third party payments.
C95: =IF(State="California DPH","For Designated Public Hospitals (DPH), report your Medi-Medi Longfall claims here.","") -> 
C96: =IF(State="California DPH",CONCATENATE("In-State ",'Sec. H In-State'!$X$5),"N/A") -> N/A
C97: ='Survey Set-Up'!I7 -> Traditional Medicare Primary with Traditional Medicaid or Managed Care Medicaid Secondary
C98: Each hospital must report its Medicare/Medicaid cross-over claims summary data on the survey. Total cross-over days and routine and ancillary charges must be reported and grouped in the same cost centers as reported on the hospital's cost report. Report payments as instructed on each line. In total, payments must include all amounts collected from the Medicare program, patient co-pays and deductible payments, Medicare bad debt payments, and any Medicaid payments and other third party payments.
C99: =IF(State="California DPH","For Designated Public Hospitals (DPH), report your Medi-Medi Shortfall claims here.","N/A") -> N/A
C100: ='Survey Set-Up'!D8 -> In-State Other Medicaid Eligibles (Not Included Elsewhere)
C101: ='Survey Set-Up'!I8 -> In-State Other Medicaid Eligibles (Not Included Elsewhere) (should exclude non-Title 19 programs such as CHIP/SCHIP)
C102: =IF(C100="In-State Other Medicaid Eligibles (Not Included Elsewhere)", G102, G115) -> Enter claim charges, days, and payments for any other Medicaid-Eligible patients that have not been reported anywhere else in the survey. The patients must be Medicaid-eligible for the dates of service and they must be supported by Exhibit C and include the patient's Medicaid ID number. This would include Medicare Part C cross-overs not reported elsewhere on the survey. | G102: Enter claim charges, days, and payments for any other Medicaid-Eligible patients that have not been reported anywhere else in the survey. The patients must be Medicaid-eligible for the dates of service and they must be supported by Exhibit C and include the patient's Medicaid ID number. This would include Medicare Part C cross-overs not reported elsewhere on the survey.
C103: =IF(State="California NDPH","Report your hospital's psychiatric days, charges and payments in this category.","") -> 
C104: =IF(State="California DPH",CONCATENATE("In-State ",'Sec. H In-State'!$AB$5),"N/A") -> N/A
F105: Enter days, charges, and payment for Medicaid psychiatric claims. The patients included in this category must be Medicaid-eligible for the dates of service and the claims patient detail must be supported by an Exhibit C that includes the patient's Medicaid recipient ID number. Please also submit support identifying the number of psychiatric administrative days included in the days reported in Section H of the DSH survey.
C106: =IF(State="California DPH",F105,"N/A") -> N/A
C107: =IF(State="California DPH",CONCATENATE("In-State ",'Sec. H In-State'!$AF$5),"N/A") -> N/A
F108: Enter days, charges, and payment for LIHP and MCE claims. The patients included in this category must be Medicaid-eligible for the dates of service and the claims patient detail must be supported by an Exhibit C that includes the patient's Medicaid recipient ID number.
C109: =IF(State="California DPH",F108,"N/A") -> N/A
C110: =IF(State="California DPH",CONCATENATE("In-State ",'Sec. H In-State'!$AJ$5),"N/A") -> N/A
F111: Enter days, charges, and payment for HCCI claims. The patients included in this category must be Medicaid-eligible for the dates of service and the claims patient detail must be supported by an Exhibit C that includes the patient's Medicaid recipient ID number.
C112: =IF(State="California DPH",F111,"N/A") -> N/A
C113: =IF(StateOnlyDisplay="YES",CONCATENATE('Sec. H In-State'!AN5," (without any other third party coverage)"),"N/A") -> N/A
C114: =IF(StateOnlyDisplay="YES",'Survey Set-Up'!AS19,"N/A") -> N/A
G115: Each hospital must report its Medicare/Medicaid managed care cross-over claims summary data on the survey. Total cross-over days and routine and ancillary charges must be reported and grouped in the same cost centers as reported on the hospital's cost report. Report payments as instructed on each line. In total, payments must include all amounts collected from the Medicare program, patient co-pays and deductible payments, Medicare bad debt payments, and any Medicaid managed care payments and other third party payments.
C116: ='Sec. H In-State'!$AR$5 -> Uninsured
C117: Federal requirements mandate the uninsured services must be costed using Medicare cost reporting methodologies. As such, a hospital will need to report the uninsured days of care they provided each cost reporting period, by routine cost center, as well as inpatient and outpatient ancillary service revenue by cost report cost center. Exhibit A has been prepared to assist hospitals in developing the data needed to support responses on the survey. This data must be maintained in a reviewable format. It must also only include charges for inpatient and outpatient hospital services, excluding physician charges and other non-hospital charges. Per federal guidelines uninsured patients are individuals with no source of third party healthcare coverage (insurance) or third party liability for the specific service provided. See "Uninsured Definitions" tab for additional details.
A119: 4. | C119: Federal requirements mandate the hospital cost of providing services to the uninsured during the DSH year must be reduced by uninsured self-pay payments received during the DSH year. Exhibit B will assist hospitals in developing the data necessary to support uninsured payments received during each cost reporting period. The data must be maintained in a reviewable format and made available upon request.
A121: Section I - Calculation of Out-of-State Medicaid Costs:
A122: 1. | C122: This schedule is formatted similar to Schedule H. It should be prepared to capture all out-of-state Medicaid FFS, managed care, FFS cross-over and managed care cross-over services the hospital provided during the cost reporting year. Like Schedule H, a separate schedule is required for each cost reporting period needed to completely cover the DSH year. Amounts reported on this schedule should reconcile to the out-of-state PS&R (or equivalent schedule) produced by the Medicaid program or managed care entity.
C123: ='Survey Set-Up'!D12 -> Out-of-State Medicaid FFS Primary
C124: ='Survey Set-Up'!I12 -> Traditional Medicaid Primary (should exclude non-Title 19 programs such as CHIP/SCHIP)
C126: ='Survey Set-Up'!D13 -> Out-of-State Medicaid Managed Care Primary
C127: ='Survey Set-Up'!I13 -> Managed Care Medicaid Primary (should exclude non-Title 19 programs such as CHIP/SCHIP)
C129: ='Survey Set-Up'!D14 -> Out-of-State Medicare FFS Cross-Overs (with Medicaid Secondary)
C130: ='Survey Set-Up'!I14 -> Traditional Medicare Primary with Traditional Medicaid or Managed Care Medicaid Secondary
C132: ='Survey Set-Up'!D15 -> Out-of-State Other Medicaid Eligibles (Not Included Elsewhere)
C133: ='Survey Set-Up'!I15 -> Out-of-State Other Medicaid Eligibles (Not Included Elsewhere) (should exclude non-Title 19 programs such as CHIP/SCHIP)
A135: Section J - Calculation of In-State Medicaid and Uninsured Organ Acquisition Costs:
A136: 1. | C136: This section is to be completed by hospitals that have incurred in-state Medicaid or uninsured organ acquisition costs only. Information is collected in a format similar to Section H.
A137: 2. | C137: Total Medicaid and uninsured organ acquisition cost is calculated based on the ratio of Medicaid and uninsured useable organs to total organs.
A139: Section K - Calculation of Out-of-State Medicaid Organ Acquisition Costs:
A140: 1. | C140: This section is to be completed by hospitals that have incurred out-of-state Medicaid organ acquisition costs only. Information is collected in a format similar to Section I.
A141: 2. | C141: Total Medicaid and uninsured organ acquisition cost is calculated based on the ratio of Medicaid and uninsured useable organs to total organs.
A142: 3. | C142: The following columns will NOT need to be entered by the provider as they will automatically populate after Section J has been completed: "Total Organ Acquisition Cost", "Revenue for Medicaid/Uninsured Organs Sold", and "Total Useable Organs (Count)".
A144: =IF(IncludeFRA="YES", CONCATENATE("Section " & 'Sec. L Tax'!B2),"N/A") -> Section L. Provider Tax Assessment Reconciliation / Adjustment
A145: =IF(IncludeFRA="YES","1.","") -> 1. | C145: =IF(IncludeFRA="YES","This section is to be completed by all hospitals in states that assess a provider tax on hospitals. Complete all lines as instructed below.","N/A") -> This section is to be completed by all hospitals in states that assess a provider tax on hospitals. Complete all lines as instructed below.
C146: =IF(IncludeFRA="YES","The objective of this form is to determine the state-assessed total hospital provider tax not included in your cost-to-charge ratios and per diem cost on the cost report.", "") -> The objective of this form is to determine the state-assessed total hospital provider tax not included in your cost-to-charge ratios and per diem cost on the cost report.
A147: =IF(IncludeFRA="YES",A145+1,"") -> 2 | C147: =IF(IncludeFRA="YES","Line 1 should be the total hospital Provider Tax Assessment from the general ledger, whether it is included as an expense, a revenue offset, etc..","N/A") -> Line 1 should be the total hospital Provider Tax Assessment from the general ledger, whether it is included as an expense, a revenue offset, etc..
C148: =IF(IncludeFRA="YES","It should exclude non-hospital assessments such as a nursing facility tax unless an adjustment is made on W/S A-8 to remove the non-hospital expense.","") -> It should exclude non-hospital assessments such as a nursing facility tax unless an adjustment is made on W/S A-8 to remove the non-hospital expense.
A149: =IF(IncludeFRA="YES",A147+1,"") -> 3 | C149: =IF(IncludeFRA="YES","Line 2 should be the total amount of the Provider Tax Assessment from line 1 that is included in Expense on Worksheet A, Column 2 of the cost report. Please report the cost report line number in which the expense is included in the box provided.","N/A") -> Line 2 should be the total amount of the Provider Tax Assessment from line 1 that is included in Expense on Worksheet A, Column 2 of the cost report. Please report the cost report line number in which the expense is included in the box provided.
A150: =IF(IncludeFRA="YES",A149+1,"") -> 4 | C150: =IF(IncludeFRA="YES","If there is a difference in the values you are reporting in lines 1 and 2, please explain that difference in the box provided (or attach separate explanation if it won't fit).","N/A") -> If there is a difference in the values you are reporting in lines 1 and 2, please explain that difference in the box provided (or attach separate explanation if it won't fit).
A151: 5 | C151: =IF(IncludeFRA="YES","Lines 4-7 should identify any amount of the Provider Tax expense that was reclassified on Worksheet A-6 of the cost report. Please report the reasons for the reclassifications and the cost report line numbers affected in the boxes provided.","N/A") -> Lines 4-7 should identify any amount of the Provider Tax expense that was reclassified on Worksheet A-6 of the cost report. Please report the reasons for the reclassifications and the cost report line numbers affected in the boxes provided.
A152: 6 | C152: =IF(IncludeFRA="YES","Lines 8-11 should identify any amount of the hospital allowable Provider Tax expense (assessed by the state) that was adjusted on Worksheet A-8 of the cost report.","N/A") -> Lines 8-11 should identify any amount of the hospital allowable Provider Tax expense (assessed by the state) that was adjusted on Worksheet A-8 of the cost report.
C153: =IF(IncludeFRA="YES","Please report the reasons for the adjustments and the affected cost report line numbers in the boxes provided.","") -> Please report the reasons for the adjustments and the affected cost report line numbers in the boxes provided.
A154: =IF(IncludeFRA="YES",A152+1,"") -> 7 | C154: =IF(IncludeFRA="YES","Lines 12-15 should identify Provider Tax expense adjustments on Worksheet A-8 of the cost report that are not related to the actual tax assessed by the state (e.g., association fees, other funding arrangments outside of the state's assessed tax). ","N/A") -> Lines 12-15 should identify Provider Tax expense adjustments on Worksheet A-8 of the cost report that are not related to the actual tax assessed by the state (e.g., association fees, other funding arrangments outside of the state's assessed tax).
C155: =IF(IncludeFRA="YES","Please report the reasons for the adjustments and the affected cost report line numbers in the boxes provided.","") -> Please report the reasons for the adjustments and the affected cost report line numbers in the boxes provided.
A156: =IF(IncludeFRA="YES",A154+1,"") -> 8 | C156: =IF(IncludeFRA="YES","Line 16 calculates the net Provider tax expense included in the cost report after all reclassifications and adjustments.","N/A") -> Line 16 calculates the net Provider tax expense included in the cost report after all reclassifications and adjustments.
A157: 9 | C157: =IF(IncludeFRA="YES","Line 17 calculates the total Provider Tax expense that has been excluded from the cost report - this amount is used to determine the amount that will be added back to your hospital's DSH UCC.","N/A") -> Line 17 calculates the total Provider Tax expense that has been excluded from the cost report - this amount is used to determine the amount that will be added back to your hospital's DSH UCC.
A158: 10 | C158: =IF(IncludeFRA="YES","The amount on Line 25 may NOT be the final amount added into your DSH UCC. The examination will review the various adjustments and reconciliations and make a final determination.","") -> The amount on Line 25 may NOT be the final amount added into your DSH UCC. The examination will review the various adjustments and reconciliations and make a final determination.
A161: Please submit your completed cost report year surveys (Part II), along with your Part I DSH Year Survey, and uninsured data analyses (exhibits A and B) electronically to Myers and Stauffer LC. This information contains protected health information (PHI), and as such, should be sent on CD or DVD via U.S. mail, or via other carrier authorized to transfer PHI.
A163: Submit To:
A164: ='Survey Set-Up'!B25 -> Myers and Stauffer LC
A165: ='Survey Set-Up'!B26 -> Attention: DSH Examinations
A166: ='Survey Set-Up'!B27 -> 700 W. 47th Street, Suite 1100
A167: ='Survey Set-Up'!B28 -> Kansas City, MO 64112
A168: ='Survey Set-Up'!B29 -> Fax: (816) 945-5301
A169: ='Survey Set-Up'!B30 -> Phone: (800) 374-6858
A170: ='Survey Set-Up'!B31 -> e-mail:

Sheet Instructions - Indy (hidden)
A1: General Instructions and Identification of Cost Reports that Cover the DSH Year:
C3: Macro Settings for Microsoft Excel 2007 Software
A4: 1. | C4: Please make sure Macros are enabled under the Excel options. If Macros are disabled, the DSH survey will not have full functionality. Macros can be enabled for Microsoft Excel 2007 software by first selecting "Excel Options" under the Microsoft Office File Menu Button (upper left hand corner of the screen). Then under the Excel Options dialog box select the "Trust Center" option. Under the Trust Center Dialog box select the "Trust Center Settings" button. Then select "Macro Settings" and click the "Enable all macros" button. Then press the OK button. After the Macro settings have been enabled it will be necessary to save changes and close the Excel program and re-open the DSH Survey Part II Excel workbook so the setting changes can take place.
C5: OR Select the Developer tab on the Excel Ribbon Menu. If the Developer tab is not displayed, click the Microsoft Office File Menu Button (upper left hand corner of the screen), then select the "Excel Options" button. Under Excel Options, Select the "Popular" category, then under "Top Options for working with Excel" select the "Show Developer Tab in The Ribbon" option. Once the Developer tab is available select the "Macro Security" option under the Code Group. Under Macro Security settings select the "Enable All Macros" option or the option that allows you to disable macros with notification (if the notification option is chosen, you will see a "SECURITY WARNING" message). Then close and re-open the Excel workbook so the settings changes can take place.
C7: Macro Settings for Older Versions of Microsoft Excel Software
C8: For older versions of Microsoft Excel software (before Microsoft Excel 2007) select the "Tools" menu. Under the Tools Menu select "Macro" - "Security". Then select "Low" or "Medium" security. Then close and re-open the Excel workbook for the settings changes to take place.
A10: 2. | C10: DSH Survey Sections A, B, and C are part of a separate Excel workbook titled DSH Survey Part I and should be submitted along with the completed DSH Survey Part II Excel workbook. DSH Survey sections A, B, and C contain DSH eligibility and certification questions.
A12: 3. | C12: Select the "Survey - Sec. D, E, F CR Data" tab in the Excel workbook. On Line 1, select your facility from the drop-down menu provided. When your facility is selected, the following Lines will be populated with your facility specific information: Line 2 - applicable cost report years, Line 4 - Hospital Name, Line 5 - in-state Medicaid provider number, Line 6 - Medicaid Subprovider Number 1 (Psychiatric or Rehab), Line 7 - Medicaid Provider Number 2 (Psychiatric or Rehab), and Line 8 -Medicare provider number. The provider must manually select the appropriate option from the drop down menu for Line 3 - Status of Cost Report Used for the Survey. Review the information and indicate whether it is correct or incorrect. If incorrect, provide correct information in the provided space and submit supporting documentation when you submit your survey.
A14: 4. | C14: You must complete a separate DSH Survey Part II Excel workbook for each cost report year needed to cover the State DSH year and not previously submitted for a DSH examination. To indicate the proper time period for the current survey select an "X" from the drop down menu on the appropriate box of Line 2 of the "Survey - Sec. D, E, F CR Data" tab in this Excel workbook. If two cost report years are selected at the same time the survey will generate an error message as only one cost report year may be selected per Excel workbook.
C15: NOTE: For the 2012 DSH Survey, if your hospital completed the DSH survey for 2011, the first cost report year should follow the last cost report year reported on the 2011 DSH survey. The last cost report year on the 2012 survey must end on or after the end of the 2012 DSH year. If your hospital did not complete the 2011 survey, you must report data for each cost report year that covers the 2012 DSH year.
A17: 5. | C17: Supporting documentation for all data elements provided within the DSH survey must be maintained for a minimum of five years.
A19: Section D - General Cost Report Year Information
A21: 1. | C21: For Lines 1 through 8 of Section D, please refer to the instructions listed above in the "General Information and Identification of Cost Reports that Cover the DSH Year" section.
A23: 2. | C23: For Lines 9 through 15, provide the name and Medicaid provider number for each state (other than your home state) where you had a current Medicaid provider agreement during the term of the DSH year. Per federal regulation, the DSH examination must review both in-state Medicaid services as well as out-of-state Medicaid services when determining the Medicaid shortfall or longfall.
A25: Section E - Disclosure of Medicaid / Uninsured Payments Received
A27: 1. | C27: Please read "Note 1" located at the bottom of Section E before entering information for Lines 1 through 7. After reading through Note 1, please provide the applicable Section 1011 payment information as indicated.
A29: 2. | C29: Please read "Note 2" located at the bottom of Section E before entering information for Line 8. After reading through Note 2, please provide the total Out-of-State DSH payments as indicated.
A31: 3. | C31: Lines 9 and 10 should reconcile to the Exhibit B information provided by the facility.
A33: Section F - MIUR / LIUR Qualifying Data from the Cost Report
C35: Section F-1 Total Hospital Days Used in Medicaid Inpatient Utilization Ration (MIUR)
A36: 1. | C36: Section F-1 is required to calculate the Medicaid Inpatient Utilization Rate (MIUR). The MIUR is a federal DSH eligibility criteria that must be met in order to receive DSH payments.
C38: Section F-2 Cash Subsidies for Patient Services Received from State or Local Governments and Charity Care Charges
A39: 2a. | C39: For Lines 2 report all state or local government cash subsidies received for patient care services. If the subsidies are directed specifically for inpatient or outpatient services, record the subsidies in the appropriate box. If the subsidies do not specify inpatient or outpatient services, record the subsidies in the unspecified column.
A40: 2b. | C40: The unspecified subsidies will be allocated between inpatient and outpatient using your hospital volume statistics. State and local subsidies do not include regular Medicaid payments, supplemental (UPL) Medicaid payments or Medicaid/Medicare DSH payments. Subsidies are funds the hospital received from state or local government sources to assist hospitals to provide care to uninsured or underinsured patients.
A41: 2c. | C41: Answer Line 3a question. If there is cash subsidy amount not included in w/s G-3, Line 3 (survey Section F-3 Column P, line 25), list the amount in Line 3b, which will be added back to Total Hospital Revenues to calculate LIUR.
A42: 2d. | C42: Cash subsidies are used to calculate Medicaid DSH eligibility under the federal low-income utilization rate formula. They are NOT used to reduce your net uninsured cost for DSH payment programs.
A43: 3a. | C43: Report the applicable charity care charges in lines 4. Report the hospital's inpatient and outpatient charity care charges for the applicable cost reporting period. These charges must reconcile to the charity care charges reported in your financial statements and/or annual audit or they must be in compliance with the definition of charity per your state's DSH payment program.
A44: 3b. | C44: Amount reported in Line 5 should be traced back to Exhibit A.
A45: 3c. | C45: Charity care charges are used in the calculation of the low-income utilization rate.
C47: Section F-3 Calculation of Net Hospital Revenue from Patient Services (Used for LIUR)
A48: 6. | C48: For purposes of the low-income utilization rate (LIUR) calculation, it is necessary to calculate net hospital revenue from patient services. This section of the survey requests a breakdown of charges reported on cost report Worksheet G-2 between hospital and non-hospital services. The form directs you to allocate your total contractual adjustments, as reported on cost report Worksheet G-3, Line 2, between hospital and non-hospital services. The form provides space for an allocation of contractual allowances among service types. If contractual adjustment amounts are not maintained by service type in your accounting system, a reasonable allocation method must be used. This will allow for the calculation of net "hospital" revenue. Total charges and contractual adjustments must agree to your cost report. Contractuals may have been spread on the survey using formulas but you can overwrite those amounts with actual contractuals if you have the data.
A50: 7. | C50: A separate Excel workbook must be used for each cost reporting period needed to completely cover the DSH year as indicated in the "General Information and Identification of Cost Reports that Cover the DSH Year" section of the instructions.
A52: Section G - CR Data
C54: NOTE: All data in this section must be verified by the hospital. If data is already present in this section, it was completed using CMS HCRIS cost report data. If the hospital has a more recent version of the cost report, the data should be updated to the hospital's version of the cost report. Formulas can be overwritten as needed with actual data.
A55: 1. | C55: The provider should enter all applicable Routine and Ancillary Cost Centers not currently provided in Section G. Once the Routine and Ancillary Cost Centers have been entered into Section G of the DSH survey, they will populate the Routine and Ancillary Cost Centers on DSH survey "Sec. H - In-State", "Sec. I - Out-of-State.
A57: 2. | C57: If your teaching hospital removed intern and resident costs in Column 25 of Worksheet B, Part I, you will need to enter those amounts in the column provided so the amounts can be added back to your total cost per diems and CCRs for Medicaid/Uninsured. If intern and resident cost was not removed in Column 25 of Worksheet B, Part I then no entry is needed. Teaching costs should be included in the final cost per diems and CCRs.
A59: 3. | C59: After the Routine and Ancillary Cost Centers have been identified, it will be necessary for the provider to fill in the remaining information required by Section G. The location of the specific cost report information required by Schedule G for both Routine and Ancillary Cost Centers is identified in each column heading. The provider will NOT need to enter data into the "Net Cost", or "Medicaid Per Diem/Cost-to-Charge Ratios" columns as these are calculated columns.
A61: 4. | C61: Once the "Medicaid Per Diem/Cost-to-Charge Ratios" column has been calculated, the values will also populate on DSH Survey "Sec. H - In-State", and "Sec. I - Out-of-State".
A63: Section H - Calculation of In-State Medicaid and Uninsured I/P and O/P Costs:
A65: 1. | C65: This section of the survey is used to collect information to calculate the hospital's Medicaid shortfall or longfall. By federal Medicaid DSH regulations, the shortfall/longfall must be calculated using Medicare cost report costing methodologies.
A67: 2. | C67: The routine per diem cost per day for each hospital routine cost center present on the Medicaid cost report will automatically populate in Section H after DSH Survey "Sec. G - CR Data" has been completed. These amounts are calculated on Worksheet D-1 of the cost report. The ancillary cost-to-charge ratio for each ancillary cost center on your cost report will also automatically be populated in Section H after DSH Survey "Sec. G - CR Data" has been completed.
A69: 3. | C69: Record your routine days of care, routine charges and I/P and O/P ancillary charges in the next several columns. This information, when combined with cost information from the cost report, will calculate the total cost of hospital services provided to Medicaid and uninsured individuals.
A70: i) | C70: In-State Paid Claims - from M&S paid claims reports
C71: In-State Medicaid FFS Primary
C72: Traditional Medicaid Primary
C73: In these two columns, record your in-state Medicaid fee-for-services days and charges. The days and charges should reconcile to the Included Medicaid Paid Claims data. Record in the box labeled "Total Allowed Amount from Medicaid Paid Claim Data (Payments)" the total (gross) payments, prior to reductions for third party liability (TPL), your hospital received for these services. Reconcile your responses on the survey with the Included Medicaid Paid Claims data total at the bottom of each column. Provide an explanation for any unreconciled amounts.
C74: In-State Medicaid Managed Care Primary
C75: Managed Care Medicaid Primary
C76: Same requirements as above. If your hospital does business with more than one in-state Medicaid managed care entity, your combined results should be reported in these two columns (inpatient and outpatient).
C77: In-State Medicaid FFS Cross-Overs (with Medicare Primary)
C78: Traditional Medicare or Managed Care Medicare Primary with Traditional Medicaid Secondary
C79: Each hospital must report its Medicare/Medicaid cross-over claims summary data on the survey. Total cross-over days and routine and ancillary charges must be reported and grouped in the same cost centers as reported on the hospital's cost report. Report payments as instructed on each line. In total, payments must include all amounts collected from the Medicare program, patient co-pays and deductible payments, Medicare bad debt payments, and any Medicaid payments and other third party payments. Reconcile your responses on the survey with the Included Medicaid Paid Claims data total for cross-overs at the bottom of each column. Provide an explanation for any unreconciled amounts.
C80: HIP claims
C81: Same requirements as i) above. If your hospital does business with more than one in-state Medicaid managed care entity, your combined results should be reported in these two columns (inpatient and outpatient).
C82: *If you have supplemental HIP claims that not included in the Included Medicaid Paid Claims data, put those claims in column "In-State Medicaid-Eligible Not on Medicaid Paid Claims Data - MCO and HIP", with supporting detail claims submitted in Exhibit C.
A84: ii) | C84: Validated Paid Claims – Not Duplicates/Overlaps
C85: Using the criteria listed below, we identified several sets of Medicaid claims that may pertain to the same service-which may indicate a possible duplicate claim for which no adjustment was made by Indiana AIM; and some sets of Medicaid claims that the FDOS and LDOS overlapped (within the same provider and across the providers) - which may indicate a possible overlap claim. Accordingly, we have removed these claims from the Included paid claims report, and put them in a separate report entitled “Possible Duplicate and Overlap Claims Report” and mailed to you.
C86: Criteria for including inpatient claims in Possible Duplicate/Overlap Claims Report: Claims, including managed care and crossovers, were identified as possible duplicate records if they that had different ICNs, but identical recipient ID, provider ID, FDOS and LDOS; were identified as possible overlap records if the FDOS/LODS of the claims overlap each other. | G86: Enter claim charges, days, and payments for any other Medicaid-Eligible patients that have not been reported anywhere else in the survey. The patients must be Medicaid-eligible for the dates of service and they must be supported by Exhibit C and include the patient's Medicaid ID number. This would include Medicare Part C cross-overs not reported elsewhere on the survey.
C87: Please review these claims against your records and make decision which claims should be included in the survey. | G87: Each hospital must report its Medicare/Medicaid managed care cross-over claims summary data on the survey. Total cross-over days and routine and ancillary charges must be reported and grouped in the same cost centers as reported on the hospital's cost report. Report payments as instructed on each line. In total, payments must include all amounts collected from the Medicare program, patient co-pays and deductible payments, Medicare bad debt payments, and any Medicaid managed care payments and other third party payments.
C88: 1) Send the "Possible Duplicates and Overlaps-provider number-FYE" back with a column added to indicate that among the duplicates/overlaps, which claim(s) should be included in the survey, and which should be excluded. Please note: You can NOT include both/all of a duplicate/overlap set.
C89: 2) For valid claims that are for separate services and are not duplicates/overlaps of other reported services, please include in the Section H "Validated Paid Claims – Not Duplicates/Overlaps" columns. Please provide an explanation as to why these claims do not represent duplicate/overlap claims. Supporting documentation for these explanations to verify that they are separate services, and are not duplicate/overlap claims, should be prepared and retained in your records, and made available upon request by OMPP.
C90: 3) For claims you identify as a duplicate/overlap reporting of a service already included in the survey, do not include in your survey response.
A92: iii) | C92: Report services provided to all Indiana Medicaid-eligible patients that were not included in the Medicaid Paid Claims reports, regardless of payment status or if covered under other insurance.
C93: In-State Medicaid-Eligible Not on Medicaid Paid Claims Data - FFS
C94: In these two columns, record your in-state Medicaid fee-for-service days, charges and payments for services not included on the Medicaid Paid Claims Data. Exhibit C needed as supporting documentation.
C95: In-State Medicaid-Eligible Not on Medicaid Paid Claims Data - MC and HIP
C96: Same requirements as above. If your hospital does business with more than one in-state Medicaid managed care entity, your combined results should be reported in these two columns (inpatient and outpatient). Exhibit C needed as supporting documentation.
C97: In-State Medicaid-Eligible Not on Medicaid Paid Claims Data - FFS Cross-over
C98: Same requirements as above. If your hospital does business with more than one in-state Medicaid managed care entity, your combined results should be reported in these two columns (inpatient and outpatient). Exhibit C needed as supporting documentation.
A100: vi) | C100: Uninsured claims
C101: Federal requirements mandate the uninsured services must be costed using Medicare cost reporting methodologies. As such, a hospital will need to report the uninsured days of care they provided each cost reporting period, by routine cost center, as well as inpatient and outpatient ancillary service revenue by cost report cost center. Exhibit A has been prepared to assist hospitals in developing the data needed to support responses on the survey. This data must be maintained in an auditable analysis. It must also only include charges for inpatient and outpatient hospital services, excluding physician charges and other non-hospital charges. Per federal guidelines uninsured patients are individuals with no source of third party healthcare coverage (insurance). If the patient had health insurance, even if the third party insurer did not pay, those services are insured and cannot be reported as uninsured on the survey.
C102: Federal requirements mandate the hospital cost of providing services to the uninsured during the DSH year must be reduced by uninsured self-pay payments received during the DSH year. Exhibit B will assist hospitals in developing the data necessary to support uninsured payments received during each cost reporting period. The data must be maintained in an auditable format and made available upon request.
C103: Federal requirements mandate the hospital cost of providing services to the uninsured during the DSH year must be reduced by uninsured self-pay payments received during the DSH year. Exhibit B will assist hospitals in developing the data necessary to support uninsured payments received during each cost reporting period. The data must be maintained in a reviewable format and made available upon request.
A105: 4. | C105: The Lines 19 and 129 "Total Days / Charges per Paid Claims Reports or other Exhibits" MUST be filled, and any outstanding reconciled amount in Lines below need to be explained.
C106: The totals need to be traceable to the "Included Claims-provider number-FYE" we mailed to you, the "Possible Duplicates and Overlaps-provider number-FYE" you sent back, and the other supplemental claims supported by the Exhibit A, B and C submitted by you.
A109: Section I - Calculation of Out-of-State Medicaid Costs:
A111: 1. | C111: This schedule is formatted similar to Schedule H. It should be prepared to capture all out-of-state Medicaid FFS, managed care, FFS cross-over and other services the hospital provided during the cost reporting year. Like Schedule H, a separate schedule is required for each cost reporting period needed to completely cover the DSH year. Amounts reported on this schedule (details in Exhibit D) should reconcile to the out-of-state PS&R (or equivalent schedule) produced by the Medicaid program or managed care entity.
C112: Out-of-State Medicaid FFS Primary
C113: Traditional Medicaid Primary (should exclude non-Title 19 programs such as CHIP/SCHIP)
C114: Out-of-State Medicaid Managed Care Primary
C115: Managed Care Medicaid Primary (should exclude non-Title 19 programs such as CHIP/SCHIP)
C116: Out-of-State Medicare FFS Cross-Overs (with Medicaid Secondary)
C117: Traditional Medicare Primary with Traditional Medicaid or Managed Care Medicaid Secondary
C118: Out-of-State Other Medicaid Eligibles (Not Included Elsewhere)
C119: Out-of-State Other Medicaid Eligibles (Not Included Elsewhere) (should exclude non-Title 19 programs such as CHIP/SCHIP)
A121: 2. | C121: The Lines 19 and 129 "Total Days / Charges per Paid Claims Reports or other Exhibits" MUST be filled, and any outstanding reconciled amount in Lines below need to be explained.
C122: The totals need to be traceable to the Out-Of-State claims supported by the Exhibit D submitted by you.
A125: Section J - Calculation of In-State Medicaid and Uninsured Organ Acquisition Costs:
A127: 1. | C127: This section is to be completed by hospitals that have incurred in-state Medicaid or uninsured organ acquisition costs only. Information is collected in a format similar to Section H.
A129: 2. | C129: Total Medicaid and uninsured organ acquisition cost is calculated based on the ratio of Medicaid and uninsured useable organs to total organs.
A131: Section K - Calculation of Out-of-State Medicaid Organ Acquisition Costs:
A133: 1. | C133: This section is to be completed by hospitals that have incurred out-of-state Medicaid organ acquisition costs only. Information is collected in a format similar to Section I.
A135: 2. | C135: Total Medicaid and uninsured organ acquisition cost is calculated based on the ratio of Medicaid and uninsured useable organs to total organs.
A137: 3. | C137: The following columns will NOT need to be entered by the provider as they will automatically populate after Section J has been completed: "Total Organ Acquisition Cost", "Revenue for Medicaid/Uninsured Organs Sold", and "Total Useable Organs (Count)".
A139: Section L - Tax Assessment
A140: 1. | C140: This section is to be completed by all hospitals in states that assess a provider tax on hospitals. Complete all lines as instructed below.
C141: The objective of this form is to determine the state-assessed total hospital provider tax not included in your cost-to-charge ratios and per diem cost on the cost report.
A142: 2 | C142: Line 1 should be the total hospital Provider Tax Assessment from the general ledger, whether it is included as an expense, a revenue offset, etc..
C143: It should exclude non-hospital assessments such as a nursing facility tax unless an adjustment is made on W/S A-8 to remove the non-hospital expense.
A144: 3 | C144: Line 2 should be the total amount of the Provider Tax Assessment from line 1 that is included in Expense on Worksheet A, Column 2 of the cost report. Please report the cost report line number in which the expense is included in the box provided.
A145: 4 | C145: If there is a difference in the values you are reporting in lines 1 and 2, please explain that difference in the box provided (or attach separate explanation if it won't fit).
A146: 5 | C146: Lines 4-7 should identify any amount of the Provider Tax expense that was reclassified on Worksheet A-6 of the cost report. Please report the reasons for the reclassifications and the cost report line numbers affected in the boxes provided.
A147: 6 | C147: Lines 8-11 should identify any amount of the hospital allowable Provider Tax expense (assessed by the state) that was adjusted on Worksheet A-8 of the cost report.
C148: Please report the reasons for the adjustments and the affected cost report line numbers in the boxes provided.
A149: 7 | C149: Lines 12-15 should identify Provider Tax expense adjustments on Worksheet A-8 of the cost report that are not related to the actual tax assessed by the state (e.g., association fees, other funding arrangements outside of the state's assessed tax).
C150: Please report the reasons for the adjustments and the affected cost report line numbers in the boxes provided.
A151: 8 | C151: Line 16 calculates the net Provider tax expense included in the cost report after all reclassifications and adjustments.
A152: =IF(IncludeFRA="YES",A151+1,"") -> 9 | C152: Line 17 calculates the total Provider Tax expense that has been excluded from the cost report - this amount is used to determine the amount that will be added back to your hospital's DSH UCC.
A153: =IF(IncludeFRA="YES",A152+1,"") -> 10
C154: The amount on Line 25 may NOT be the final amount added into your DSH UCC. The examination will review the various adjustments and reconciliations and make a final determination.
A156: Exhibit A - Support of Uninsured I/P and O/P Hospital Services:
A158: 1. | C158: See Exhibit A for an example format of the information that needs to be available to support the data reported in Section H of the survey related to uninsured services provided in each cost reporting year needed to completely cover the DSH year. This information must be maintained by the facility in accordance with the documentation retention requirements outlined in the general instructions section. Submit a separate Exhibit A for each cost reporting period included in the survey.
A159: 2. | C159: Complete Exhibit A based on your individual state Medicaid hospital reimbursement methodology (if your state reimburses based on discharge date then only include claims in Exhibit A that were discharged during the cost reporting period for which you are pulling the data).
A160: 3. | C160: Exhibit A population should include all uninsured patients whose dates of service (see above) fall within the cost report period.
A161: 4. | C161: The total inpatient and outpatient hospital charges (Column N - excluding professional fees, and other non-hospital items) from Exhibit A should tie to Section H, Uninsured columns, line 129 of the survey.
A162: 5. | C162: The total inpatient and outpatient hospital charges (Column N) from Exhibit A, with Column R indicating "the charges NOT included in charity care charges" should tie to Section F-2, line 5 of the survey.
A164: Exhibit B - Support for Self-Pay I/P and O/P Hospital Payments Received:
A166: 1. | C166: See Exhibit B for an example format of the information that needs to be available to support the data reported in Section E of the survey related to ALL patient payments received during each cost reporting year needed to completely cover the DSH year. This information must be maintained by the facility in accordance with the documentation retention requirements outlined in the general instructions section. Submit a separate Exhibit B for each cost reporting period included in the survey.
C167: Note: If insurance status cannot be determined on older service dates, report the older service date payments received during the cost report period on Exhibit B-1, as noted below.
C168: Note: Include Section 1011 payments received related to undocumented aliens if they are applied at a patient level.
A169: 2. | C169: Exhibit B population should include all payments received from patients during the cost report year regardless of dates of service and insurance status.
A170: 3. | C170: Only the payments received from uninsured patients should be included on Section H of the survey, line 140. Payments from both the uninsured and insured patients should be reported on Section E of the survey, lines 9 and 10, respectively. The total payments from Section H, line 140 should reconcile to Section E, line 9.
A172: Exhibit B-1 - Support for Self-Pay I/P and O/P Hospital Payments Received for Older Service Dates:
A173: 1. | C173: Exhibit B-1 is only needed if a hospital cannot determine or support insurance status related to self-pay payments received during the cost report periods on the survey. This may be the case on much older service date payments (e.g., 1999 service dates paid on in 2005). In these cases, we will calculate the uninsured portion of the older service date payments based on the more recent self-pay data included on the previous exhibit (Exhibit B).
C174: See Exhibit B-1 for an example format of the information needed to support the data reported in Section D of the survey related to payments received from ALL older self-pay services during each cost report year needed to completely cover the DSH year. Submit a separate Exhibit B-1 for each cost reporting period included in the survey, if applicable.
A176: Exhibit C - Support of In-State Medicaid-Eligible Not on Included Medicaid Paid Claims report data
A178: 1. | C178: See Exhibit C for an example format of the information that needs to be available to support the data reported in Section H of the survey related to services for In-State Medicaid-Eligible Not on Medicaid Paid Claims Data provided for each cost reporting year needed to completely cover the DSH year. This information must be maintained by the facility in accordance with the documentation retention requirements outlined in the general instructions section. Submit a separate Exhibit C for each cost reporting period included in the survey.
A180: Exhibit D - Support of Out-Of-State claims data:
A182: 1. | C182: See Exhibit D for an example format of the information that needs to be available to support the data reported in Section I of the survey related to services provided for Out-Of-State Medicaid-Eligible claims for each cost reporting year needed to completely cover the DSH year. This information must be maintained by the facility in accordance with the documentation retention requirements outlined in the general instructions section. Submit a separate Exhibit D for each cost reporting period included in the survey.
A185: Please submit your completed cost report year surveys (Part II), along with your Part I DSH Year Survey, and uninsured data analyses (exhibits A and B) electronically to Myers and Stauffer LC. This information contains protected health information (PHI), and as such, should be sent on CD or DVD via U.S. mail, or via other carrier authorized to transfer PHI.
A187: Submit To:
B188: Myers and Stauffer LC
B189: Attention: DSH Audits
B190: 9266 Counselors Row, Suite 200
B191: Indianapolis, Indiana 46241
B192: Phone: 800-877-6928
B193: Fax: (317) 571-8482
B194: claimsrequest@mslc.com

Sheet Paid Claims Reports - Indy (hidden)
A1: Medicaid Paid Claims Reports Summary
A2: Medicaid Paid Claims reports have been provided to assist you in completing this survey. The accuracy and completeness of these reports has not been verified. You are responsible for the accuracy and completeness of the information reported on the survey you submit.
A3: Several paid claims reports accompany this survey on the CD sent to your facility. Below is a description of the reports, as well as the purpose. Please note, depending upon the claims submitted by your facility, the CD may not include all of these reports.
A4: As noted above, the accuracy and completeness of this information has not been verified. There may be inaccuracies or missing information, particularly with respect to managed care claims.
A6: File Name
A7: Included Claims-provider number-FYE
A8: Description
A9: Header Level Information for included paid claims - FFS, MC, HIP, Crossover
A10: Purpose
A11: The survey allows you to report services provided to Medicaid-eligible patients that are not included on the paid claims report. This report provides you patient level detail in order to identify which services have not been included.
A12: File Name
A13: Included Claims-provider number-FYE-Paid and Denied Detail
A14: Description
A15: Paid/Denied Detail Level Information for included paid claims - FFS, MC, HIP, Crossover
A16: Purpose
A17: A revenue code summary has been provided to assist with completing Survey Section H (Medicaid costs). Even though some claims were denied at the detail level, costs of hospital services provided to Medicaid-eligible patients are permitted.
A18: File Name
A19: Included Claims-provider number-FYE-Disallowed Detail
A20: Description
A21: Disallowed Detail Level Information for included paid claims - FFS, MC, HIP, Crossover
A22: Purpose
A23: Costs for these detail lines are for services not permitted by federal rule to be included in the DSH calculation. These are included so that you can identify these charges - do not include them in your survey response. If your paid claims include charges for these services, do not include an apportionment of header level charges, if they include charges for these disallowed services.
A24: File Name
A25: Possible Duplicates and Overlaps-provider number-FYE
A26: Description
A27: Possible Duplicates/Overlaps - Header Level Information for paid claims - FFS, MC, HIP, Crossover
A28: Purpose
A29: Our review of paid claims data indicated several claims that could be duplicates or overlaps. Please review and determine which, if any services, are not duplicates/overlaps and are eligible to be included in the DSH calculation.
A30: File Name
A31: Possible Duplicates and Overlaps-provider number-FYE-Paid and Denied Detail
A32: Description
A33: Possible Duplicates/Overlaps - Paid/Denied Detail Level Information for paid claims - FFS, MC, HIP, Crossover
A34: Purpose
A35: A revenue code summary has been provided to assist with completing Survey Section H (Medicaid costs). Even though some claims were denied at the detail level, costs of hospital services provided to Medicaid-eligible patients are permitted in the DSH calculation. These are possible duplicate/overlap claims . Please review and determine which, if any services, are not duplicates/overlaps, and are eligible to be included in the DSH calculation.
A36: File Name
A37: Possible Duplicates and Overlaps-provider number-FYE-Disallowed Detail
A38: Description
A39: Possible Duplicates/Overlaps - Disallowed Detail Level Information for paid claims - FFS, MC, HIP, Crossover
A40: Purpose
A41: Costs for these detail lines are for services not permitted by federal rule to be included in the DSH calculation. These are included so that you can identify these charges - do not include them in your survey response. If your paid claims include charges for these services, do not include an apportionment of header level charges, if they include charges for these disallowed services.
A42: File Name
A43: Excluded Claims-provider number-FYE
A44: Description
A45: Claims excluded from DSH calculation
A46: Purpose
A47: The claims in this report were excluded from the claims to be utilized in completing the Hospital Specific Limit survey. These claims represent payments for patients eligible under the Assistance to Residents to County Homes (ARCH), category 9 with no credible insurance or TPL ( CHIP1), SCHIP (category 10), or disallowed services. These claims should not be included in your survey response. They are provided to serve as identification of these claims for that exclusion.

Sheet Uninsured Definitions
A1: Include In Hospital Uninsured Charges:
A3: To the extent hospital charges pertain to services that are medically necessary under applicable Medicaid standards and the services are defined as inpatient or outpatient hospital services under the Medicaid state plan the following charges are generally considered to be "uninsured":
A5: Hospital inpatient and outpatient charges for services to patients who have no source of third party coverage for a specific inpatient hospital or outpatient hospital service (reported based on date of service). (42 CFR 447.295 (b))
A6: ■ | B6: Include facility fee charges generated for hospital provider based sub-provider services to uninsured patients. Such services are identified as psychiatric or rehabilitation services, as identified on the facility cost report, Worksheet S-2, Line 3. The costs of these services are included on the provider's cost report.
A8: ■ | B8: Include hospital charges for undocumented aliens with no source of third party coverage for hospital services. (73 FR dated 12/19/08, page 77916 / 42 CFR 447.299 (13))
A10: ■ | B10: Include lab and therapy outpatient hospital services.
A12: ■ | B12: Include services paid for by religious charities with no legal obligation to pay.
A14: Include In Hospital Uninsured Payments:
A16: Include all payments provided for hospital patients that met the uninsured definition for the specific inpatient or outpatient hospital service provided. The payments must be reported on a cash basis (report in the year provided, regardless of the year of service). (73 FR dated 12/19/08, pages 77913 & 77927)
A18: ■ | B18: Include uninsured liens and uninsured accounts sold, when the cash is collected. (73 FR dated 12/19/08, pages 77942 & 77927)
A20: ■ | B20: Include Section 1011 payments for hospital services without insurance or other third party coverage (undocumented aliens). (42 CFR 447.299 (13))
A22: ■ | B22: Include other waiver payments for uninsured such as Hurricane Katrina/Rita payments. (73 FR dated 12/19/08, pages 77942 & 77927)
A24: Do NOT Include In Hospital Uninsured Charges:
A26: Exclude charges for patients who had hospital health insurance or other legally liable third party coverage for the specific inpatient or outpatient hospital service provided. Exclude charges for all non-hospital services. (42 CFR 447.295 (b))
A28: ■ | B28: Exclude professional fees for hospital services to uninsured patients, such as Emergency Room (ER) physician charges and provider-based outpatient services. Exclude all physician professional services fees and CRNA charges. (42 CFR 447.299 (15) / 73 FR dated 12/19/08, pages 77924-77926)
A30: ■ | B30: Exclude bad debts and charity care associated with patients that have insurance or other third party coverage for the specific inpatient or outpatient hospital service provided. (42 CFR 447.299 (15) and 42 CFR 447.295 (b))
A32: ■ | B32: Exclude claims denied by an active health insurance carrier unless the entire claim was denied due to exhaustion of benefits or due to the benefit package not covering the specific inpatient or outpatient hospital service provided. (73 FR dated 12/19/08, pages 77910-77911, 77913 and 42 CFR 447.295 (b))
A34: ■ | B34: Exclude uninsured charges for services that are not medically necessary (including elective procedures), under applicable Medicaid standards (if the service does not meet definition of a hospital service covered under the Medicaid state plan). (42 CFR 447.299 (14) / 73 FR dated 12/19/08, pages 77913 & 77930)
A36: ■ | B36: Exclude charges for services to prisoners (wards of the state). (73 FR dated 12/19/08, page 77915 / State Medicaid Director letter dated August 16, 2002)
A38: ■ | B38: Exclude Medicaid eligible patient charges (even if claim was not paid or denied). (42 CFR 447.299 (14) / 73 FR dated 12/19/08, page 77916)
A40: ■ | B40: Exclude patient charges covered under an automobile or liability policy that actually covers the hospital service (insured). (45 CFR 146.113, 45 CFR 146.145, 73 FR dated 12/19/08, pages 77911 & 77916)
A42: ■ | B42: Exclude contractual adjustments required by law or contract with respect to services provided to patients covered by Medicare, Medicaid or other government or private third party payers (insured). (42 CFR 447.299 (15), 73 FR dated 12/19/08, page 77922)
A44: ■ | B44: Exclude charges for services to patients where coverage has been denied by the patient's public or private payer on the basis of lack of medical necessity, regardless as to whether they met Medicaid's medical necessity and coverage criteria (still insured). (73 FR dated 12/19/08, page 77916)
A46: ■ | B46: Exclude charges related to accounts with unpaid Medicaid or Medicare deductible or co-payment amounts (patient has coverage). (42 CFR 447.299 (15))
A48: ■ | B48: Exclude charges associated with the provision of durable medical equipment (DME) or prescribed drugs that are for "at home use", because the goods or services upon which these charges are based are not hospital services. (42 CFR 447.299 (14) / 73 FR dated 12/19/08, page 77913)
A50: ■ | B50: Exclude charges associated with services not billed under the hospital’s provider numbers, as identified on the facility cost report, Worksheet S-2, Lines 2 and 3. These include non-hospital services offered by provider owned or provider based nursing facilities (SNF) and home health agencies (HHA). (42 CFR 447.299 (14) / 73 FR dated 12/19/08, page 77913)
A52: ■ | B52: Exclude facility fees generated in provider based rural health clinic outpatient facilities (not a hospital service in state plan). (42 CFR 447.299 (14) / 73 FR dated 12/19/08, pages 77913 & 77926)
A54: ■ | B54: Exclude charges for provider's swing bed SNF services (not a hospital service in state plan). (42 CFR 447.299 (14) / 73 FR dated 12/19/08, page 77913)
A56: ■ | B56: Exclude non-Title XIX charges including stand-alone Supplemental Children's Hospital Insurance Programs (SCHIP / CHIP).
A58: ■ | B58: Exclude Independent Clinical (“Reference”) Laboratory Charges (not a hospital service). (42 CFR 447.299 (14) / 73 FR dated 12/19/08, page 77913)
A60: Do NOT Include In Hospital Uninsured Payments:
A62: ■ | B62: Exclude State, county or other municipal subsidy payments made to hospitals for indigent care. (42 CFR 447.299 (12))
A64: ■ | B64: Exclude any individual payments or third party payments on deductibles and co-insurance on Commercial and Medicare accounts (cost not included so neither is payment). (42 CFR 447.299 (15))
A66: ■ | B66: Exclude collections for non-hospital services: Skilled Nursing Facility, Nursing Facility, Rural Health Clinic, Federally Qualified Health Clinic, and non-hospital clinics (i.e. clinics not reported on Worksheet “C” Part I) (not hospital services). (42 CFR 447.299 (14) / 73 FR dated 12/19/08, page 77913)
A68: December 3, 2014 Final Rule Highlights:
A70: ■ | B70: Medicaid Eligible Individuals:
B71: • If an individual is Medicaid eligible for any day during a single inpatient stay for a particular service, states must classify the individual as Medicaid eligible.
B72: • If an individual is not Medicaid eligible and has a source of third party coverage for all or a portion of the single inpatient stay for a particular service, states cannot include any costs and revenues associated with that particular service when calculating the hospital-specific DSH limit.
B73: • If an individual has no source of third-party coverage for the specific inpatient hospital or outpatient hospital service, states should classify the individual as uninsured and include all costs and revenues associated with the particular service when calculating the hospital-specific DSH limit.
A75: ■ | B75: Uninsured and Underinsured:
B76: • Individuals who have exhausted benefits before obtaining services will be considered uninsured.
B77: • Individuals who exhaust covered benefits during the course of a service will not be considered uninsured for the particular service. If the individual is not Medicaid eligible and has a source of third party coverage for all or a portion of the single inpatient stay for a particular service, the costs and revenues of the service cannot be included in the hospital-specific DSH limit.
B78: • Individuals with high deductible or catastrophic plans are considered insured for the service even in instances when the policy requires the individual to satisfy a deductible and/or share in the overall cost of the hospital service. The cost and revenues associated with these claims cannot be included in the hospital-specific DSH limit.
B79: • The costs and revenues, including the payments from private insurance for Medicaid eligible individuals, should be included in the calculation of the hospital-specific DSH limit.
A81: ■ | B81: Scope of Inpatient and Outpatient Hospital Services:
B82: • To be considered as an inpatient or outpatient hospital service for purposes of Medicaid DSH, the service must meet the federal and state definitions of inpatient or outpatient hospital services and must be included in the state’s definition of an inpatient or outpatient hospital service under the approved state plan.
B83: • FQHC services are not inpatient or outpatient hospital services and cannot be included in the hospital-specific DSH limit.
B84: • Example: If transplant services are not covered under the approved state plan, costs associated with transplants cannot be included in calculating the hospital-specific DSH limit.
B85: • Example: NF, HHA, employed physicians or other licensed practitioners are not recognized as inpatient or outpatient hospital services and are not covered under the inpatient or outpatient hospital Medicaid benefit service categories and cannot be included in the hospital-specific DSH limit.
B86: • Administratively necessary days (days awaiting placement) are recognized as inpatient hospital services and should be included in the hospital-specific DSH limit.
A88: ■ | B88: Timing of Service Specific Determination:
B89: • The determination of an individual’s status as having a source of third party coverage can occur only once per individual per service provided and applies to the entire claim’s services.
B90: • When benefits have been exhausted for individuals with a source of third party coverage, only costs associated with separate services provided after the exhaustion of covered benefits are permitted for inclusion in the calculation of the hospital-specific limit. These services must be a separate service based on the definition of a service for Medicaid (e.g., separate inpatient stay or separate outpatient billing period).
B91: • Uncompensated care costs incurred by hospitals due to unpaid co-pays, co-insurance, or deductibles associated with a non-Medicaid eligible individual cannot be included in the calculation of the hospital-specific DSH limit.
A93: ■ | B93: Physician Services:
B94: • Services that are not inpatient or outpatient hospital services, including physician services, must be excluded when calculating the hospital-specific DSH limit.
B95: • Exception: Costs where insurance pays an all inclusive rate are allowable.
B96: • Physician costs under Section 1115 waivers are still excluded from the DSH limit calculation.
A98: ■ | B98: Prisoners:
B99: • Individuals who are inmates in a public institution or are otherwise involuntarily in secure custody as a result of criminal charges are considered to have a source of third party coverage.
A101: ■ | B101: Indian Health Services:
B102: • For Medicaid DSH purposes, American Indians/Alaska Natives are considered to have third party coverage for inpatient and outpatient hospital services received directly from IHS or tribal health programs (direct health care services) and for services specifically authorized under CHS.
B103: • Determining factor in deciding whether an American Indian or Alaska Native has health insurance for I/P or O/P hospital service is if the providing entity is an IHS facility or tribal health program.
B104: • Contract Services (Non-IHS provider): if the service is specifically authorized via a purchase order or equivalent document, it is considered to be insured. If it does not have an authorization, it is considered an uninsured service.

Sheet Exhibit A - Uninsured
A1: Claim Type (A) | B1: Primary Payor Plan (B) | C1: Secondary Payor Plan (C) | D1: Hospital's Medicaid Provider # (D) | E1: Patient Identifier Code (PCN) (E) | F1: Patient's Birth Date (F) | G1: Patient's Social Security Number (G) | H1: Patient's Gender (H) | I1: Name (I) | J1: Admit Date (J) | K1: Discharge Date (K) | L1: Service Indicator (Inpatient / Outpatient) (L) | M1: Revenue Code (M) | N1: Total Charges for Services Provided (N) * | O1: Routine Days of Care (O) | P1: Total Patient Payments for Services Provided (P) ** | Q1: Total Private Insurance Payments for Services Provided (Q) ** | R1: Claim Status (Exhausted or Non-Covered Service ***, if applicable) (R)
A2: Uninsured Charges | B2: Charity | C2: Self-Pay | D2: 12345 | E2: 2222222 | F2: 1960-01-01 | G2: 999-99-999 | H2: Female | I2: Doe, Jane | J2: 2010-03-01 | K2: 2010-03-11 | L2: Inpatient | M2: 110 | N2: 4000 | O2: 7 | Q2: 0
A3: Uninsured Charges | B3: Charity | C3: Self-Pay | D3: 12345 | E3: 2222222 | F3: 1960-01-01 | G3: 999-99-999 | H3: Female | I3: Doe, Jane | J3: 2010-03-01 | K3: 2010-03-11 | L3: Inpatient | M3: 200 | N3: 4500 | O3: 3 | Q3: 0
A4: Uninsured Charges | B4: Charity | C4: Self-Pay | D4: 12345 | E4: 2222222 | F4: 1960-01-01 | G4: 999-99-999 | H4: Female | I4: Doe, Jane | J4: 2010-03-01 | K4: 2010-03-11 | L4: Inpatient | M4: 250 | N4: 5200.25 | Q4: 0
A5: Uninsured Charges | B5: Charity | C5: Self-Pay | D5: 12345 | E5: 2222222 | F5: 1960-01-01 | G5: 999-99-999 | H5: Female | I5: Doe, Jane | J5: 2010-03-01 | K5: 2010-03-11 | L5: Inpatient | M5: 300 | N5: 2700 | Q5: 0
A6: Uninsured Charges | B6: Charity | C6: Self-Pay | D6: 12345 | E6: 2222222 | F6: 1960-01-01 | G6: 999-99-999 | H6: Female | I6: Doe, Jane | J6: 2010-03-01 | K6: 2010-03-11 | L6: Inpatient | M6: 360 | N6: 15000.75 | Q6: 0
A7: Uninsured Charges | B7: Charity | C7: Self-Pay | D7: 12345 | E7: 2222222 | F7: 1960-01-01 | G7: 999-99-999 | H7: Female | I7: Doe, Jane | J7: 2010-03-01 | K7: 2010-03-11 | L7: Inpatient | M7: 450 | N7: 1000.25 | Q7: 0
A8: Uninsured Charges | B8: Medicare | D8: 12345 | E8: 4444444 | F8: 1985-07-12 | G8: 999-99-999 | H8: Male | I8: Jones, James | J8: 2010-06-15 | K8: 2010-06-15 | L8: Outpatient | M8: 250 | N8: 150 | P8: 500 | Q8: 0 | R8: Exhausted
A9: Uninsured Charges | B9: Medicare | D9: 12345 | E9: 4444444 | F9: 1985-07-12 | G9: 999-99-999 | H9: Male | I9: Jones, James | J9: 2010-06-15 | K9: 2010-06-15 | L9: Outpatient | M9: 450 | N9: 750 | P9: 500 | Q9: 0 | R9: Exhausted
A10: Uninsured Charges | B10: Blue Cross | D10: 12345 | E10: 1111111 | F10: 2000-03-05 | G10: 999-99-999 | H10: Male | I10: Smith, Mike | J10: 2010-08-10 | K10: 2010-08-10 | L10: Outpatient | M10: 450 | N10: 1100 | Q10: 0 | R10: Non-Covered Service
A16: Notes for Completing Exhibit A:
A17: * All charges for non-hospital services should be excluded.
A18: ** Payments reported in Columns P & Q are not reported in the survey. These amounts are used for examination purposes only. Amount should include all payments received to date on the account.
A19: *** Report services not covered under the patient's insurance package as a "Non-Covered Service". Note - the service must be covered under the state Medicaid plan.
A23: Please submit the above data in the electronic file included with this survey document. The electronic file must be submitted in Excel (.xls or .xlsx). If this is not possible, the data must be submitted as a CSV (.csv) file using either the TAB or | (pipe symbol above the ENTER key). The data may not be accepted if not in one of these formats. Please do not alter column headings! These column headings will be used to input patient detail into a database from which Myers and Stauffer will generate reports.

Sheet Exhibit B - Self-Pay Payments
A1: Claim Type (A) | B1: Primary Payor Plan (B) | C1: Secondary Payor Plan (C) | D1: Transaction Code (D) | E1: Hospital's Medicaid Provider # (E) | F1: Patient Identifier Code (PCN) (F) | G1: Patient's Birth Date (G) | H1: Patient's Social Security Number (H) | I1: Patient's Gender (I) | J1: Name (J) | K1: Admit Date (K) | L1: Discharge Date (L) | M1: Date of Cash Collection (M) | N1: Amount of Cash Collections (N) | O1: Indicate if Collection is a 1011 Payment (O) *** | P1: Service Indicator (Inpatient / Outpatient) (P) | Q1: Total Hospital Charges for Services Provided (Q) * | R1: Total Physician Charges for Services Provided (R) | S1: Total Other Non-Hospital Charges for Services Provided (S) ** | T1: Insurance Status When Services Were Provided (Insured or Uninsured) (T) * | U1: Claim Status (Exhausted or Non-Covered Service****, if applicable) (U) | V1: Calculated Hospital Uninsured Collections If (T)="Uninsured" or (U)="Exhausted" or (U)="Non-Covered Service", (Q)/((Q)+(R)+(S))*(N), 0) *****
A2: Self Pay Payments | B2: Medicare | C2: Medicaid | D2: 500 | E2: 12345 | F2: 3333333 | G2: 2025-02-07 | H2: 999-99-999 | I2: Male | J2: Jones, Anthony | K2: 1995-07-12 | L2: 1995-07-14 | M2: 2010-01-01 | N2: 50 | O2: No | P2: Inpatient | Q2: 10000 | R2: 900 | S2: 0 | T2: Insured | V2: =IF(OR(T2="Uninsured", U2="Exhausted",U2="Non-Covered Service"),Q2/(Q2+R2+S2)*N2,0) -> 0
A3: Self Pay Payments | B3: Medicare | C3: Medicaid | D3: 500 | E3: 12345 | F3: 3333333 | G3: 2025-02-07 | H3: 999-99-999 | I3: Male | J3: Jones, Anthony | K3: 1995-07-12 | L3: 1995-07-14 | M3: 2010-02-01 | N3: 50 | O3: No | P3: Inpatient | Q3: 10000 | R3: 900 | S3: 0 | T3: Insured | V3: 0
A4: Self Pay Payments | B4: Medicare | C4: Medicaid | D4: 500 | E4: 12345 | F4: 3333333 | G4: 2025-02-07 | H4: 999-99-999 | I4: Male | J4: Jones, Anthony | K4: 1995-07-12 | L4: 1995-07-14 | M4: 2010-03-01 | N4: 50 | O4: No | P4: Inpatient | Q4: 10000 | R4: 900 | S4: 0 | T4: Insured | V4: 0
A5: Self Pay Payments | B5: Medicare | C5: Medicaid | D5: 500 | E5: 12345 | F5: 3333333 | G5: 2025-02-07 | H5: 999-99-999 | I5: Male | J5: Jones, Anthony | K5: 1995-07-12 | L5: 1995-07-14 | M5: 2010-04-01 | N5: 50 | O5: No | P5: Inpatient | Q5: 10000 | R5: 900 | S5: 0 | T5: Insured | V5: 0
A6: Self Pay Payments | B6: Blue Cross | D6: 150 | E6: 12345 | F6: 9999999 | G6: 1979-09-25 | H6: 999-99-999 | I6: Male | J6: Smith, John | K6: 2000-09-21 | L6: 2000-09-21 | M6: 2009-09-30 | N6: 150 | O6: No | P6: Outpatient | Q6: 2000 | R6: 0 | S6: 50 | T6: Insured | U6: Exhausted | V6: 146.3414634
A7: Self Pay Payments | B7: Blue Cross | D7: 150 | E7: 12345 | F7: 9999999 | G7: 1979-09-25 | H7: 999-99-999 | I7: Male | J7: Smith, John | K7: 2000-09-21 | L7: 2000-09-21 | M7: 2009-10-31 | N7: 150 | O7: No | P7: Outpatient | Q7: 2000 | R7: 0 | S7: 50 | T7: Insured | U7: Exhausted | V7: 146.3414634
A8: Self Pay Payments | B8: Blue Cross | D8: 150 | E8: 12345 | F8: 9999999 | G8: 1979-09-25 | H8: 999-99-999 | I8: Male | J8: Smith, John | K8: 2000-09-21 | L8: 2000-09-21 | M8: 2009-11-30 | N8: 150 | O8: No | P8: Outpatient | Q8: 2000 | R8: 0 | S8: 50 | T8: Insured | U8: Exhausted | V8: 146.3414634
A9: Self Pay Payments | B9: Self-Pay | D9: 500 | E9: 12345 | F9: 7777777 | G9: 2000-07-09 | H9: 999-99-999 | I9: Male | J9: Cliff, Heath | K9: 2009-12-31 | L9: 2010-01-01 | M9: 2010-05-15 | N9: 90 | O9: No | P9: Inpatient | Q9: 15000 | R9: 1000 | S9: 0 | T9: Uninsured | V9: 84.375
A10: Self Pay Payments | B10: Self-Pay | D10: 500 | E10: 12345 | F10: 7777777 | G10: 2000-07-09 | H10: 999-99-999 | I10: Male | J10: Cliff, Heath | K10: 2009-12-31 | L10: 2010-01-01 | M10: 2010-05-31 | N10: 90 | O10: No | P10: Inpatient | Q10: 15000 | R10: 1000 | S10: 0 | T10: Uninsured | V10: 84.375
A11: Self Pay Payments | B11: United Healthcare | D11: 500 | E11: 12345 | F11: 5555555 | G11: 1960-02-15 | H11: 999-99-999 | I11: Male | J11: Johnson, Joe | K11: 2005-09-01 | L11: 2005-09-03 | M11: 2010-11-12 | N11: 130 | O11: No | P11: Inpatient | Q11: 14000 | R11: 400 | S11: 50 | T11: Insured | U11: Non-Covered Service | V11: 125.9515571
A14: Notes for Completing Exhibit B:
A15: * Charges and insurance status will be the same when listing multiple payments for the same patient and dates of service.
A16: ** Other Non-Hospital Charges should include RHC, FQHC, Pharmacy, etc...
A17: *** If Section 1011 (Undocumented Alien) payments are applied at a patient level, include those payments in the cash collection column. If they are not applied at patient level, include them in Section E of the survey document.
A18: **** Report services not covered under the patient's insurance package as a "Non-Covered Service". Note - the service must be covered under the state Medicaid plan.
A19: ***** The total Calculated Hospital Uninsured Collections (column V) should tie to the total Inpatient and Outpatient payments reported in Section H, Line 143 of the DSH Survey.
A23: Please submit the above data in the electronic file included with this survey document. The electronic file must be submitted in Excel (.xls or .xlsx). If this is not possible, the data must be submitted as a CSV (.csv) file using either the TAB or | (pipe symbol above the ENTER key). The data may not be accepted if not in one of these formats. Please do not alter column headings! These column headings will be used to input patient detail into a database from which Myers and Stauffer will generate reports.

Sheet Exhibit B-1 Unknown Ins Status
A2: Summary of Self Pay Cash Collections During the Cost Report Year
A3: (Unknown Insurance Status)
A4: NOTE: This is NOT intended for DOS prior to the cost report period. It is intended to be used for claims that are too old to determine the patient's true insurance status. Claims with DOS prior to the cost report period should be included in Exhibit B unless the patient's insurance status cannot be determined.
A5: Patient Identifier Code (PCN) (A) | B5: Name (B) | C5: Admit Date (C) | D5: Discharge Date (D) | E5: Date of Cash Collection (E) | F5: Amount of Cash Collections (F) | G5: Indicate if Collection is a 1011 Payment (G) *** | H5: Total Hospital Charges for Services Provided (H) * | I5: Total Physician Charges for Services Provided (I) | J5: Total Other Non-Hospital Charges for Services Provided (J) ** | K5: Calculated Uninsured Percentage (K) **** | L5: Calculated Hospital Uninsured Collections (= (H)/((H)+(I)+(J))*(F)*(K))
A6: 8888888 | B6: Johnson, Joe | C6: 1999-05-12 | D6: 1999-05-25 | E6: 2010-05-01 | F6: 500 | G6: No | H6: 55000 | I6: 1100 | J6: 0 | K6: 0.06724137931 | L6: =ROUND(H6/(H6+I6+J6)*F6*K6,0) -> 33
A7: 8888888 | B7: Johnson, Joe | C7: 1999-05-12 | D7: 1999-05-25 | E7: 2010-03-01 | F7: 250 | G7: Yes | H7: 55000 | I7: 1100 | J7: 0 | K7: 0.06724137931 | L7: 16
A8: 8888888 | B8: Johnson, Joe | C8: 1999-05-12 | D8: 1999-05-25 | E8: 2010-05-15 | F8: 100 | G8: No | H8: 55000 | I8: 1100 | J8: 0 | K8: 0.06724137931 | L8: 7
A9: 8888888 | B9: Johnson, Joe | C9: 1999-05-12 | D9: 1999-05-25 | E9: 2010-06-15 | F9: 300 | G9: No | H9: 55000 | I9: 1100 | J9: 0 | K9: 0.06724137931 | L9: 20
A10: 5555555 | B10: Smith, Scott | C10: 2004-07-01 | D10: 2004-07-15 | E10: 2010-02-18 | F10: 800 | G10: No | H10: 35000 | I10: 550 | J10: 330 | K10: 0.06724137931 | L10: 52
A11: 5555555 | B11: Smith, Scott | C11: 2004-07-01 | D11: 2004-07-15 | E11: 2010-03-25 | F11: 500 | G11: No | H11: 35000 | I11: 550 | J11: 330 | K11: 0.06724137931 | L11: 33
A12: 5555555 | B12: Smith, Scott | C12: 2004-07-01 | D12: 2004-07-15 | E12: 2010-04-28 | F12: 200 | G12: No | H12: 35000 | I12: 550 | J12: 330 | K12: 0.06724137931 | L12: 13
A13: 5555555 | B13: Smith, Scott | C13: 2004-07-01 | D13: 2004-07-15 | E13: 2010-06-15 | F13: 100 | G13: No | H13: 35000 | I13: 550 | J13: 330 | K13: 0.06724137931 | L13: 7
A16: Notes for Completing Exhibit B-1:
A17: * Charges will be the same when listing multiple payments for the same patient and dates of service.
A18: ** Other Non-Hospital Charges should include RHC, FQHC, Pharmacy, etc...
A19: *** If Section 1011 (Undocumented Alien) payments are applied at a patient level, include those payments in the cash collection column. If they are not applied at patient level, include them in Section E of the survey document.
A20: **** The uninsured percentage should be calculated based on the total uninsured payments as a percentage of the self pay payments shown on Exhibit B. This percentage will be the same for all of the older service date collections since documentation is not available to support the insurance status.
A23: Please submit the above data in an electronic file with this survey document. The electronic file must be submitted in Excel (.xls, .xlsx). If this is not possible, the data must be submitted as a CSV (.csv) file using either the TAB or | (pipe symbol above the ENTER key).

Sheet Exhibit C Other MCD
A1: Claim Type (A) ** | B1: Primary Payor Plan (B) | C1: Secondary Payor Plan (C) | D1: Hospital's Medicaid Provider # (D) | E1: Patient Identifier Number (PCN) (E) | F1: Patient's Medicaid Recipient # (F) | G1: Patient's Birth Date (G) | H1: Patient's Social Security Number (H) | I1: Patient's Gender (I) | J1: Name (J) | K1: Admit Date (K) | L1: Discharge Date (L) | M1: Service Indicator (Inpatient / Outpatient) (M) | N1: Revenue Code (N) | O1: Total Charges for Services Provided (O) * | P1: Routine Days of Care (P) | Q1: Total Medicare Payments for Services Provided (Q) | R1: Total Medicare HMO Payments for Services Provided (R) | S1: Total Medicaid Payments for Services Provided (S) | T1: Total Medicaid MCO Payments for Services Provided (T) | U1: Total Private Insurance Payments for Services Provided (U) | V1: Self-Pay Payments (V) | W1: Sum of All Payments Received on Claim (Q)+(R)+(S)+(T)+(U)+(V)
A2: Other Medicaid Eligibles | B2: Blue Cross | C2: Medicaid | D2: 12345 | E2: 888888 | F2: 123456789 | G2: 1960-01-01 | H2: 999-99-999 | I2: Male | J2: James, Samuel | K2: 2009-09-01 | L2: 2009-09-04 | M2: Inpatient | N2: 120 | O2: 1200 | P2: 3 | Q2: 0 | R2: 0 | S2: 50 | T2: 0 | U2: 1500 | V2: 0 | W2: =SUM(Q2:V2) -> 1550
A3: Other Medicaid Eligibles | B3: Blue Cross | C3: Medicaid | D3: 12345 | E3: 888888 | F3: 123456789 | G3: 1960-01-01 | H3: 999-99-999 | I3: Male | J3: James, Samuel | K3: 2009-09-01 | L3: 2009-09-04 | M3: Inpatient | N3: 206 | O3: 1500 | P3: 1 | Q3: 0 | R3: 0 | S3: 50 | T3: 0 | U3: 1500 | V3: 0 | W3: 1550
A4: Other Medicaid Eligibles | B4: Blue Cross | C4: Medicaid | D4: 12345 | E4: 888888 | F4: 123456789 | G4: 1960-01-01 | H4: 999-99-999 | I4: Male | J4: James, Samuel | K4: 2009-09-01 | L4: 2009-09-04 | M4: Inpatient | N4: 250 | O4: 100 | P4: 0 | Q4: 0 | R4: 0 | S4: 50 | T4: 0 | U4: 1500 | V4: 0 | W4: 1550
A5: Other Medicaid Eligibles | B5: Blue Cross | C5: Medicaid | D5: 12345 | E5: 888888 | F5: 123456789 | G5: 1960-01-01 | H5: 999-99-999 | I5: Male | J5: James, Samuel | K5: 2009-09-01 | L5: 2009-09-04 | M5: Inpatient | N5: 300 | O5: 375 | P5: 0 | Q5: 0 | R5: 0 | S5: 50 | T5: 0 | U5: 1500 | V5: 0 | W5: 1550
A6: Other Medicaid Eligibles | B6: Blue Cross | C6: Medicaid | D6: 12345 | E6: 888888 | F6: 123456789 | G6: 1960-01-01 | H6: 999-99-999 | I6: Male | J6: James, Samuel | K6: 2009-09-01 | L6: 2009-09-04 | M6: Inpatient | N6: 450 | O6: 1500 | P6: 0 | Q6: 0 | R6: 0 | S6: 50 | T6: 0 | U6: 1500 | V6: 0 | W6: 1550
A7: Other Medicaid Eligibles | B7: Aetna | C7: Medicaid | D7: 12345 | E7: 666666 | F7: 978654321 | G7: 1985-07-12 | H7: 999-99-999 | I7: Female | J7: Johnson, Sandy | K7: 2010-06-30 | L7: 2010-06-30 | M7: Outpatient | N7: 250 | O7: 100 | P7: 0 | Q7: 0 | R7: 0 | S7: 0 | T7: 0 | U7: 900 | V7: 75 | W7: 975
A8: Other Medicaid Eligibles | B8: Aetna | C8: Medicaid | D8: 12345 | E8: 666666 | F8: 978654321 | G8: 1985-07-12 | H8: 999-99-999 | I8: Female | J8: Johnson, Sandy | K8: 2010-06-30 | L8: 2010-06-30 | M8: Outpatient | N8: 300 | O8: 375 | P8: 0 | Q8: 0 | R8: 0 | S8: 0 | T8: 0 | U8: 900 | V8: 75 | W8: 975
A9: Other Medicaid Eligibles | B9: Aetna | C9: Medicaid | D9: 12345 | E9: 666666 | F9: 978654321 | G9: 1985-07-12 | H9: 999-99-999 | I9: Female | J9: Johnson, Sandy | K9: 2010-06-30 | L9: 2010-06-30 | M9: Outpatient | N9: 450 | O9: 1500 | P9: 0 | Q9: 0 | R9: 0 | S9: 0 | T9: 0 | U9: 900 | V9: 75 | W9: 975
A10: Other Medicaid Eligibles | B10: Cigna | C10: Medicaid | D10: 12345 | E10: 555555 | F10: 654321978 | G10: 2000-03-05 | H10: 999-99-999 | I10: Female | J10: Jeffery, Susan | K10: 2010-02-28 | L10: 2010-02-28 | M10: Outpatient | N10: 300 | O10: 375 | P10: 0 | Q10: 0 | R10: 0 | S10: 100 | T10: 0 | U10: 1000 | V10: 0 | W10: 1100
A11: Other Medicaid Eligibles | B11: Cigna | C11: Medicaid | D11: 12345 | E11: 555555 | F11: 654321978 | G11: 2000-03-05 | H11: 999-99-999 | I11: Female | J11: Jeffery, Susan | K11: 2010-02-28 | L11: 2010-02-28 | M11: Outpatient | N11: 450 | O11: 1500 | P11: 0 | Q11: 0 | R11: 0 | S11: 100 | T11: 0 | U11: 1000 | V11: 0 | W11: 1100
A16: Notes for Completing Exhibit C:
A17: * All charges for non-hospital services should be excluded.
A18: ** A separate Exhibit C file should be submitted for each claim type reported (e.g. Medicaid Managed Care, Other Medicaid Eligibles, Out-of-State Medicaid, etc.). The format above should be used for each Exhibit C.
A23: Please submit the above data in the electronic file included with this survey document. The electronic file must be submitted in Excel (.xls or .xlsx). If this is not possible, the data must be submitted as a CSV (.csv) file using either the TAB or | (pipe symbol above the ENTER key). The data may not be accepted if not in one of these formats. Please do not alter column headings! These column headings will be used to input patient detail into a database from which Myers and Stauffer will generate reports.

Sheet Exhibit D Other MCD OOS (hidden)
A1: Example of Exhibit D (Out-of-State Medicaid example)
A2: Claim Type (A) ** | B2: Primary Payor Plan (B) | C2: Secondary Payor Plan (C) | D2: Hospital's Medicaid Provider # (D) | E2: Patient Identifier Number (PCN) (E) | F2: Patient's Medicaid Recipient # (F) | G2: Patient's Birth Date (G) | H2: Patient's Social Security Number (H) | I2: Patient's Gender (I) | J2: Name (J) | K2: Admit Date (K) | L2: Discharge Date (L) | M2: Service Indicator (Inpatient / Outpatient) (M) | N2: Revenue Code (N) | O2: Total Charges for Services Provided (O) * | P2: Routine Days of Care (P) | Q2: Total Medicare Payments for Services Provided (Q) | R2: Total Medicare HMO Payments for Services Provided (R) | S2: Total Medicaid Payments for Services Provided (S) | T2: Total Medicaid MCO Payments for Services Provided (T) | U2: Total Private Insurance Payments for Services Provided (U) | V2: Self-Pay Payments (V) | W2: Sum of All Payments Received on Claim (Q)+(R)+(S)+(T)+(U)+(V)
A3: Out-of-State Medicaid | B3: Arkansas Medicaid | D3: 12345 | E3: 888888 | F3: 123456789 | G3: 1960-01-01 | H3: 999-99-999 | I3: Male | J3: James, Samuel | K3: 2009-09-01 | L3: 2009-09-04 | M3: Inpatient | N3: 120 | O3: 1200 | P3: 3 | Q3: 0 | R3: 0 | S3: 1500 | T3: 0 | U3: 50 | V3: 0 | W3: =SUM(Q3:V3) -> 1550
A4: Out-of-State Medicaid | B4: Arkansas Medicaid | D4: 12345 | E4: 888888 | F4: 123456789 | G4: 1960-01-01 | H4: 999-99-999 | I4: Male | J4: James, Samuel | K4: 2009-09-01 | L4: 2009-09-04 | M4: Inpatient | N4: 206 | O4: 1500 | P4: 1 | Q4: 0 | R4: 0 | S4: 1500 | T4: 0 | U4: 50 | V4: 0 | W4: 1550
A5: Out-of-State Medicaid | B5: Arkansas Medicaid | D5: 12345 | E5: 888888 | F5: 123456789 | G5: 1960-01-01 | H5: 999-99-999 | I5: Male | J5: James, Samuel | K5: 2009-09-01 | L5: 2009-09-04 | M5: Inpatient | N5: 250 | O5: 100 | P5: 0 | Q5: 0 | R5: 0 | S5: 1500 | T5: 0 | U5: 50 | V5: 0 | W5: 1550
A6: Out-of-State Medicaid | B6: Arkansas Medicaid | D6: 12345 | E6: 888888 | F6: 123456789 | G6: 1960-01-01 | H6: 999-99-999 | I6: Male | J6: James, Samuel | K6: 2009-09-01 | L6: 2009-09-04 | M6: Inpatient | N6: 300 | O6: 375 | P6: 0 | Q6: 0 | R6: 0 | S6: 1500 | T6: 0 | U6: 50 | V6: 0 | W6: 1550
A7: Out-of-State Medicaid | B7: Arkansas Medicaid | D7: 12345 | E7: 888888 | F7: 123456789 | G7: 1960-01-01 | H7: 999-99-999 | I7: Male | J7: James, Samuel | K7: 2009-09-01 | L7: 2009-09-04 | M7: Inpatient | N7: 450 | O7: 1500 | P7: 0 | Q7: 0 | R7: 0 | S7: 1500 | T7: 0 | U7: 50 | V7: 0 | W7: 1550
A8: Out-of-State Medicaid | B8: Texas Medicaid | D8: 12345 | E8: 666666 | F8: 978654321 | G8: 1985-07-12 | H8: 999-99-999 | I8: Female | J8: Johnson, Sandy | K8: 2010-06-30 | L8: 2010-06-30 | M8: Outpatient | N8: 250 | O8: 100 | P8: 0 | Q8: 0 | R8: 0 | S8: 900 | T8: 0 | U8: 0 | V8: 75 | W8: 975
A9: Out-of-State Medicaid | B9: Texas Medicaid | D9: 12345 | E9: 666666 | F9: 978654321 | G9: 1985-07-12 | H9: 999-99-999 | I9: Female | J9: Johnson, Sandy | K9: 2010-06-30 | L9: 2010-06-30 | M9: Outpatient | N9: 300 | O9: 375 | P9: 0 | Q9: 0 | R9: 0 | S9: 900 | T9: 0 | U9: 0 | V9: 75 | W9: 975
A10: Out-of-State Medicaid | B10: Texas Medicaid | D10: 12345 | E10: 666666 | F10: 978654321 | G10: 1985-07-12 | H10: 999-99-999 | I10: Female | J10: Johnson, Sandy | K10: 2010-06-30 | L10: 2010-06-30 | M10: Outpatient | N10: 450 | O10: 1500 | P10: 0 | Q10: 0 | R10: 0 | S10: 900 | T10: 0 | U10: 0 | V10: 75 | W10: 975
A11: Out-of-State Medicaid | B11: Texas Medicaid | D11: 12345 | E11: 555555 | F11: 654321978 | G11: 2000-03-05 | H11: 999-99-999 | I11: Female | J11: Jeffery, Susan | K11: 2010-02-28 | L11: 2010-02-28 | M11: Outpatient | N11: 300 | O11: 375 | P11: 0 | Q11: 0 | R11: 0 | S11: 1000 | T11: 0 | U11: 100 | V11: 0 | W11: 1100
A12: Out-of-State Medicaid | B12: Texas Medicaid | D12: 12345 | E12: 555555 | F12: 654321978 | G12: 2000-03-05 | H12: 999-99-999 | I12: Female | J12: Jeffery, Susan | K12: 2010-02-28 | L12: 2010-02-28 | M12: Outpatient | N12: 450 | O12: 1500 | P12: 0 | Q12: 0 | R12: 0 | S12: 1000 | T12: 0 | U12: 100 | V12: 0 | W12: 1100
A17: Notes for Completing Exhibit D:
A18: * All charges for non-hospital services should be excluded.
A19: ** A separate Exhibit D file should be submitted for each claim type reported (e.g. OOS FFS, OOS Medicaid Managed Care, OOS Other Medicaid Eligibles, etc.). The format above should be used for each Exhibit D.
A24: Please submit the above data in the electronic file included with this survey document. The electronic file must be submitted in Excel (.xls or .xlsx). If this is not possible, the data must be submitted as a CSV (.csv) file using either the TAB or | (pipe symbol above the ENTER key). The data may not be accepted if not in one of these formats. Please do not alter column headings! These column headings will be used to input patient detail into a database from which Myers and Stauffer will generate reports.

Sheet Sec. D, E, F CR Data
K4: DSH Version | M4: 7.25 | O4: 2018-05-03
A5: D. General Cost Report Year Information | C5: =IF(UPPER($C$14)="X", $C$11, IF(UPPER($E$14)="X", $E$11, IF(UPPER($G$14)="X", $G$11, ""))) -> 2016-07-01 | D5: - | E5: =IF(UPPER($C$14)="X", $C$13, IF(UPPER($E$14)="X", $E$13, IF(UPPER($G$14)="X", $G$13, ""))) -> 2017-06-30
A6: The following information is provided based on the information we received from the state. Please review this information for items 4 through 8 and select "Yes" or "No" to either agree or disagree with the accuracy of the information. If you disagree with one of these items, please provide the correct information along with supporting documentation when you submit your survey.
A8: 1. | B8: Select Your Facility from the Drop-Down Menu Provided: | C8: WELLSTAR WEST GEORGIA HOSPITAL
C11: =IF(VLOOKUP(HOSPITALNAME,DATATABLE,6,FALSE)=0,"",VLOOKUP(HOSPITALNAME,DATATABLE,6,FALSE)) -> 2016-07-01 | E11: =IF(VLOOKUP(HOSPITALNAME,DATATABLE,8,FALSE)=0,"",VLOOKUP(HOSPITALNAME,DATATABLE,8,FALSE)) ->  | G11: =IF(VLOOKUP(HOSPITALNAME,DATATABLE,10,FALSE)=0,"",VLOOKUP(HOSPITALNAME,DATATABLE,10,FALSE)) -> 
C12: =IF(LEN(FYB_Choice_1)=0, "", "through") -> through | E12: =IF(LEN(FYB_Choice_2)=0, "", "through") ->  | G12: =IF(LEN(FYB_Choice_3)=0,"","through") -> 
C13: =IF(VLOOKUP(HOSPITALNAME,DATATABLE,7,FALSE)=0,"",VLOOKUP(HOSPITALNAME,DATATABLE,7,FALSE)) -> 2017-06-30 | E13: =IF(VLOOKUP(HOSPITALNAME,DATATABLE,9,FALSE)=0,"",VLOOKUP(HOSPITALNAME,DATATABLE,9,FALSE)) ->  | G13: =IF(VLOOKUP(HOSPITALNAME,DATATABLE,11,FALSE)=0,"",VLOOKUP(HOSPITALNAME,DATATABLE,11,FALSE)) -> 
A14: 2. | B14: Select Cost Report Year Covered by this Survey (enter "X"): | C14: X | I14: =IF(COUNTIF($C$14:$G$14,"X")>1,"ERROR: Please Select Only 1 Year! - Complete a Separate Survey for each Cost Report Year.","") -> 
A16: 3. | B16: Status of Cost Report Used for this Survey (Should be audited if available): | C16: 1 - As Submitted
A18: 3a. | B18: Date CMS processed the HCRIS file into the HCRIS database: | C18: 2017-12-21
C20: Data | G20: Correct? | I20: If Incorrect, Proper Information
A21: 4. | B21: Hospital Name: | C21: =VLOOKUP(HOSPITALNAME,DATATABLE,1,FALSE) -> WELLSTAR WEST GEORGIA HOSPITAL | G21: Yes
A22: 5. | B22: Medicaid Provider Number: | C22: =VLOOKUP(HOSPITALNAME,DATATABLE,2,FALSE) -> 000002065A | G22: Yes
A23: 6. | B23: Medicaid Subprovider Number 1 (Psychiatric or Rehab): | C23: =VLOOKUP(HOSPITALNAME,DATATABLE,3,FALSE) -> 0 | G23: Yes
A24: 7. | B24: Medicaid Subprovider Number 2 (Psychiatric or Rehab): | C24: =VLOOKUP(HOSPITALNAME,DATATABLE,4,FALSE) -> 0 | G24: Yes
A25: 8. | B25: Medicare Provider Number: | C25: =VLOOKUP(HOSPITALNAME,DATATABLE,5,FALSE) -> 110016 | G25: Yes
A26: 8a. | B26: Owner/Operator (Private, State Govt., Non-State Govt., HIS/Tribal): | C26: =VLOOKUP(HOSPITALNAME,DATATABLE,12,FALSE) -> Non-State Govt. | G26: Yes
A27: 8b. | B27: DSH Pool Classification (Small Rural, Non-Small Rural, Urban): | C27: =+VLOOKUP(HOSPITALNAME,DATATABLE,13,FALSE) -> Non-Small Rural | G27: Yes
B30: Out-of-State Medicaid Provider Number. List all states where you had a Medicaid provider agreement during the cost report year:
C32: State Name | G32: Provider No.
A33: 9. | B33: State Name & Number | C33: Alabama | G33: 1821221144
A34: 10. | B34: State Name & Number
A35: 11. | B35: State Name & Number
A36: 12. | B36: State Name & Number
A37: 13. | B37: State Name & Number
A38: 14. | B38: State Name & Number
A39: 15. | B39: State Name & Number
B40: (List additional states on a separate attachment)
AC43: OKLAHOMA
A45: =CONCATENATE("E. Disclosure of Medicaid / Uninsured Payments Received: (",TEXT(FYB_1,"mm/dd/yyyy")," - ",TEXT(FYE_1,"mm/dd/yyyy"),")") -> E. Disclosure of Medicaid / Uninsured Payments Received: (07/01/2016 - 06/30/2017)
A48: 1. | B48: Section 1011 Payment Related to Hospital Services Included in Exhibits B & B-1 (See Note 1)
A49: 2. | B49: Section 1011 Payment Related to Inpatient Hospital Services NOT Included in Exhibits B & B-1 (See Note 1)
A50: 3. | B50: Section 1011 Payment Related to Outpatient Hospital Services NOT Included in Exhibits B & B-1 (See Note 1)
A51: 4. | B51: Total Section 1011 Payments Related to Hospital Services (See Note 1) | I51: =SUM(I48:I50) -> 0
A52: 5. | B52: Section 1011 Payment Related to Non-Hospital Services Included in Exhibits B & B-1 (See Note 1)
A53: 6. | B53: Section 1011 Payment Related to Non-Hospital Services NOT Included in Exhibits B & B-1 (See Note 1)
A54: 7. | B54: Total Section 1011 Payments Related to Non-Hospital Services (See Note 1) | I54: =SUM(I52:I53) -> 0
A57: 8. | B57: Out-of-State DSH Payments (See Note 2)
I59: Inpatient | K59: Outpatient | M59: Total
A60: 9. | B60: Total Cash Basis Patient Payments from Uninsured (On Exhibit B) | I60: 178219 | K60: 572282 | M60: =K60+I60 -> 750501
A61: 10. | B61: Total Cash Basis Patient Payments from All Other Patients (On Exhibit B) | I61: 832938 | K61: 4023044 | M61: =K61+I61 -> 4855982
A62: 11. | B62: Total Cash Basis Patient Payments Reported on Exhibit B (Agrees to Column (N) on Exhibit B, less physician and non-hospital portion of payments) | I62: =SUM(I60:I61) -> 1011157 | K62: =SUM(K60:K61) -> 4595326 | M62: =SUM(M60:M61) -> 5606483
A63: 12. | B63: Uninsured Cash Basis Patient Payments as a Percentage of Total Cash Basis Patient Payments: | I63: =IF(I62<>0,I60/I62,0) -> 0.1762525503 | K63: =IF(K62<>0,K60/K62,0) -> 0.1245356695 | M63: =IF(M62<>0,M60/M62,0) -> 0.1338630653
B64: =IF($M$63>50%, "NOTE: According to the payment data entered above, uninsured patient payments account for more than half of all patient payments. Please verify this is correct.","") -> 
B65: =IF(ROUND(M60,0)<>ROUND(SUM('Sec. H In-State'!AR165,'Sec. H In-State'!AT165),0), "NOTE: Uninsured payments reported on Section H do not reconcile to uninsured payments reported on Section E. Please verify this is correct.","") -> 
A66: 13. | B66: Did your hospital receive any Medicaid managed care payments not paid at the claim level? | I66: No
B67: Should include all non-claim-specific payments such as lump sum payments for full Medicaid pricing, supplementals, quality payments, bonus payments, capitation payments received by the hospital (not by the MCO), or other incentive payments.
A68: 14. | B68: Total Medicaid managed care non-claims payments (see question 13 above) received applicable to hospital services | I68: 0
A69: 15. | B69: Total Medicaid managed care non-claims payments (see question 13 above) received applicable to non-hospital services | I69: 0
A70: 16. | B70: Total Medicaid managed care non-claims payments (see question 13 above) received | I70: =SUM(I68:I69) -> 0
A72: Note 1: Subtitle B - Miscellaneous Provision, Section 1011 of the Medicare Prescription Drug Improvement and Modernization Act of 2003 provides federal reimbursement for emergency health services furnished to undocumented aliens. If your hospital received these funds during any cost report year covered by the survey, they must be reported here. If you can document that a portion of the payment received is related to non-hospital services (physician or ambulance services), report that amount in the section titled "Section 1011 Payments Related to Non-Hospital Services." Otherwise report 100 percent of the funds you received in the section related to hospital services.
A74: Note 2: Report any DSH payments your hospital received from a state Medicaid program (other than your home state). In-state DSH payments will be reported directly from the Medicaid program and should not be included in this section of the survey.
A77: =CONCATENATE("F. MIUR / LIUR Qualifying Data from the Cost Report (",TEXT(FYB_1,"mm/dd/yyyy")," - ",TEXT(FYE_1,"mm/dd/yyyy"),")") -> F. MIUR / LIUR Qualifying Data from the Cost Report (07/01/2016 - 06/30/2017)
B79: F-1. Total Hospital Days Used in Medicaid Inpatient Utilization Ratio (MIUR)
A80: 1. | B80: Total Hospital Days Per Cost Report Excluding Swing-Bed (C/R, W/S S-3, Pt. I, Col. 8, Sum of Lns. 14, 16, 17, 18.00-18.03, 30, 31 less lines 5 & 6) | I80: 27088 | K80: (See Note in Section F-3, below)
B85: F-2. Cash Subsidies for Patient Services Received from State or Local Governments and Charity Care Charges (Used in Low-Income Utilization Ratio (LIUR) Calculation):
A86: 2. | B86: Inpatient Hospital Subsidies
A87: 3. | B87: Outpatient Hospital Subsidies
A88: 4. | B88: Unspecified I/P and O/P Hospital Subsidies
A89: 5. | B89: Non-Hospital Subsidies
A90: 6. | B90: Total Hospital Subsidies | I90: =I86+I87+I88+I89 -> 0
A92: 7. | B92: Inpatient Hospital Charity Care Charges | I92: 11312337
A93: 8. | B93: Outpatient Hospital Charity Care Charges | I93: 46832555
A94: 9. | B94: Non-Hospital Charity Care Charges
A95: 10. | B95: Total Charity Care Charges | I95: =I92+I93+I94 -> 58144892
B98: F-3. Calculation of Net Hospital Revenue from Patient Services (Used for LIUR) (W/S G-2 and G-3 of Cost Report)
A101: NOTE: All data in this section must be verified by the hospital. If data is already present in this section, it was completed using CMS HCRIS cost report data. If the hospital has a more recent version of the cost report, the data should be updated to the hospital's version of the cost report. Formulas can be overwritten as needed with actual data. | C101: Total Patient Revenues (Charges) | I101: Contractual Adjustments (formulas below can be overwritten if amounts are known)
C102: Inpatient Hospital | E102: Outpatient Hospital | G102: Non-Hospital | I102: Inpatient Hospital | K102: Outpatient Hospital | M102: Non-Hospital | O102: Net Hospital Revenue
A104: 11. | B104: Hospital | C104: 43829351 | I104: =IF($G$122<>0, C104/$G$122*Adj_Hosp_CR_Contractuals_1, 0) -> 28872506.36 | K104: =IF($G$122<>0, E104/$G$122*Adj_Hosp_CR_Contractuals_1, 0) -> 0 | M104: =IF($G$122<>0, G104/$G$122*Adj_Hosp_CR_Contractuals_1, 0) -> 0 | O104: =C104+E104-I104-K104 -> 14956844.64
A105: 12. | B105: Subprovider I (Psych or Rehab) | C105: 0 | I105: =IF($G$122<>0, C105/$G$122*Adj_Hosp_CR_Contractuals_1, 0) -> 0 | K105: =IF($G$122<>0, E105/$G$122*Adj_Hosp_CR_Contractuals_1, 0) -> 0 | M105: 0 | O105: =C105+E105-I105-K105 -> 0
A106: 13. | B106: Subprovider II (Psych or Rehab) | C106: 0 | I106: =IF($G$122<>0, C106/$G$122*Adj_Hosp_CR_Contractuals_1, 0) -> 0 | K106: =IF($G$122<>0, E106/$G$122*Adj_Hosp_CR_Contractuals_1, 0) -> 0 | M106: 0 | O106: =C106+E106-I106-K106 -> 0
A107: 14. | B107: Swing Bed - SNF | G107: 0 | M107: 0
A108: 15. | B108: Swing Bed - NF | G108: 0 | M108: 0
A109: 16. | B109: Skilled Nursing Facility | G109: 8870906 | M109: 5843693.417
A110: 17. | B110: Nursing Facility | G110: 0 | M110: 0
A111: 18. | B111: Other Long-Term Care | G111: 0 | M111: 0
A112: 19. | B112: Ancillary Services | C112: 138621550 | E112: 252752716 | I112: =IF($G$122<>0, C112/$G$122*Adj_Hosp_CR_Contractuals_1, 0) -> 91316697.44 | K112: =IF($G$122<>0, E112/$G$122*Adj_Hosp_CR_Contractuals_1, 0) -> 166500398.3 | M112: 0 | O112: =C112+E112-I112-K112 -> 133557170.2
A113: 20. | B113: Outpatient Services | E113: 67312804 | K113: =IF($G$122<>0, E113/$G$122*Adj_Hosp_CR_Contractuals_1, 0) -> 44342188.91 | M113: 0 | O113: =C113+E113-I113-K113 -> 22970615.09
A114: 21. | B114: Home Health Agency | G114: 3761850 | M114: 2478111.94
A115: 22. | B115: Ambulance | C115: ='Survey Set-Up'!AA27 -> 0 | E115: ='Survey Set-Up'!AA28 -> 0 | G115: ='Survey Set-Up'!AA29 -> 0 | I115: =IF($G$122<>0, C115/$G$122*Adj_Hosp_CR_Contractuals_1, 0) -> 0 | K115: =IF($G$122<>0, E115/$G$122*Adj_Hosp_CR_Contractuals_1, 0) -> 0 | M115: 0 | O115: =+C115+E115-I115-K115 -> 0
A116: 23. | B116: Outpatient Rehab Providers | G116: 0 | I116: =IF($G$122<>0, C116/$G$122*Adj_Hosp_CR_Contractuals_1, 0) -> 0 | K116: =IF($G$122<>0, E116/$G$122*Adj_Hosp_CR_Contractuals_1, 0) -> 0 | M116: 0 | O116: =C116+E116-I116-K116 -> 0
A117: 24. | B117: ASC | C117: 0 | E117: 0 | I117: =IF($G$122<>0, C117/$G$122*Adj_Hosp_CR_Contractuals_1, 0) -> 0 | K117: =IF($G$122<>0, E117/$G$122*Adj_Hosp_CR_Contractuals_1, 0) -> 0 | M117: 0 | O117: =C117+E117-I117-K117 -> 0
A118: 25. | B118: Hospice | G118: 6634566 | M118: =IF($G$122<>0, G118/$G$122*Adj_Hosp_CR_Contractuals_1, 0) -> 4370508.453
A119: 26. | B119: Other | C119: 7499510 | E119: 10296018 | G119: 0 | I119: =IF($G$122<>0, C119/$G$122*Adj_Hosp_CR_Contractuals_1, 0) -> 4940288.762 | K119: =IF($G$122<>0, E119/$G$122*Adj_Hosp_CR_Contractuals_1, 0) -> 6782483.391 | M119: 0 | O119: =C119+E119-I119-K119 -> 6072755.847
A121: 27. | B121: Total | C121: =SUM(C104:C119) -> 189950411 | E121: =SUM(E104:E119) -> 330361538 | G121: =SUM(G104:G119) -> 19267322 | I121: =SUM(I104:I119) -> 125129492.6 | K121: =SUM(K104:K119) -> 217625070.6 | M121: =SUM(M104:M119) -> 12692313.81 | O121: =SUM(O104:O119) -> 177557385.8
A122: 28. | B122: Total Hospital and Non Hospital | E122: Total from Above | G122: =G121+E121+C121 -> 539579271 | K122: Total from Above | M122: =I121+K121+M121 -> 355446877
A126: 29. | B126: Total Per Cost Report | E126: Total Patient Revenues (G-3 Line 1) | G126: 539579271 | K126: Total Contractual Adj. (G-3 Line 2) | M126: 355446877
A127: 30. | B127: =IF('Survey Set-Up'!E32="","",'Survey Set-Up'!E32) -> Increase worksheet G-3, Line 2 for Bad Debts NOT INCLUDED on worksheet G-3, Line 2 (impact is a decrease in net patient revenue) | L127: =IF('Survey Set-Up'!M32="Increase","+",IF('Survey Set-Up'!M32="Decrease","-","")) -> +
A128: 31. | B128: =IF('Survey Set-Up'!E33="","",'Survey Set-Up'!E33) -> Increase worksheet G-3, Line 2 for Charity Care Write-Offs NOT INCLUDED on worksheet G-3, Line 2 (impact is a decrease in net patient revenue) | L128: =IF('Survey Set-Up'!M33="Increase","+",IF('Survey Set-Up'!M33="Decrease","-","")) -> +
A129: 32. | B129: =IF('Survey Set-Up'!E34="","",'Survey Set-Up'!E34) -> Increase worksheet G-3, Line 2 to reverse offset of Medicaid DSH Revenue INCLUDED on worksheet G-3, Line 2 (impact is a decrease in net patient revenue) | L129: =IF('Survey Set-Up'!M34="Increase","+",IF('Survey Set-Up'!M34="Decrease","-","")) -> +
A130: 33. | B130: =IF('Survey Set-Up'!E35="","",'Survey Set-Up'!E35) -> Increase worksheet G-3, Line 2 to reverse offset of State and Local Patient Care Cash Subsidies INCLUDED on worksheet G-3, Line 2 (impact is a decrease in net patient revenue) | L130: =IF('Survey Set-Up'!M35="Increase","+",IF('Survey Set-Up'!M35="Decrease","-","")) -> +
A131: 34. | B131: =IF('Survey Set-Up'!E36="","",'Survey Set-Up'!E36) -> Decrease worksheet G-3, Line 2 to remove Medicaid Provider Taxes INCLUDED on worksheet G-3, Line 2 (impact is an increase in net patient revenue) | L131: =IF('Survey Set-Up'!M36="Increase","+",IF('Survey Set-Up'!M36="Decrease","-","")) -> -
A132: 35. | B132: =IF('Survey Set-Up'!E37="","",'Survey Set-Up'!E37) -> Blank Recon Line OR "Decrease worksheet G-3, Line 2 to remove Charity Care Charges related to insured patients INCLUDED on worksheet G-3, Line 2 (impact is an increase in net patient revenue)" | L132: =IF('Survey Set-Up'!M37="Increase","+",IF('Survey Set-Up'!M37="Decrease","-","")) -> -
A133: 35. | B133: Adjusted Contractual Adjustments | M133: =Tot_Hosp_CR_Contractuals_1+CONCATENATE(L127,ABS(M127))+CONCATENATE(L128,ABS(M128))+CONCATENATE(L129,ABS(M129))+CONCATENATE(L130,ABS(M130))+CONCATENATE(L131,ABS(M131))+CONCATENATE(L132,ABS(M132)) -> 355446877
A134: 36. | B134: Unreconciled Difference | E134: Unreconciled Difference (Should be $0) | G134: =G122-G126 -> 0 | K134: Unreconciled Difference (Should be $0) | M134: =M122-M133 -> 0
G135: =IF(ROUND('Sec. D, E, F CR Data'!G134,0)<>0, "Please Attach Explanation of Variance","") ->  | M135: =IF(ROUND('Sec. D, E, F CR Data'!M134,0)<>0, "Please Attach Explanation of Variance","") -> 
B136: =IF(LIUR_1>100%,"NOTE: Your calculated LIUR percentage is unusually high (above 100%). Please verify your cash subsidies and charity care charges reported above are correctly reported in your total charges reported above. ", "") -> 

Sheet Sec. G CR Data
B1: G. Cost Report - Cost / Days / Charges
B3: =CONCATENATE("Cost Report Year (" & TEXT(FYB_1,"MM/DD/YYYY") & "-" & TEXT(FYE_1,"MM/DD/YYYY") &")") -> Cost Report Year (07/01/2016-06/30/2017) | D3: =ProvName -> WELLSTAR WEST GEORGIA HOSPITAL | U3: Title XIX | X3: Title XVIII
B6: Line # | C6: Cost Center Description | D6: Total Allowable Cost | E6: Intern & Resident Costs Removed on Cost Report * | F6: RCE and Therapy Add-Back (If Applicable) | H6: Provider Tax Assessment | I6: Total Cost | J6: I/P Days and I/P Ancillary Charges | K6: I/P Routine Charges and O/P Ancillary Charges | L6: Total Charges | M6: Medicaid Per Diem / Cost or Other Ratios | U6: I/P Days and I/P Ancillary Charges | V6: I/P Routine Charges and O/P Ancillary Charges | X6: I/P Days and I/P Ancillary Charges | Y6: I/P Routine Charges and O/P Ancillary Charges
A8: NOTE: All data in this section must be verified by the hospital. If data is already present in this section, it was completed using CMS HCRIS cost report data. If the hospital has a more recent version of the cost report, the data should be updated to the hospital's version of the cost report. Formulas can be overwritten as needed with actual data. | D8: Cost Report Worksheet B, Part I, Col. 26 | E8: Cost Report Worksheet B, Part I, Col. 25 (Intern & Resident Offset ONLY)* | F8: Cost Report Worksheet C, Part I, Col.2 and Col. 4 | G8: Swing-Bed Carve Out - Cost Report Worksheet D-1, Part I, Line 26 | H8: Allocation of Provider Tax from Section L of the Survey Based on Total Cost | I8: Calculated | J8: Days - Cost Report W/S D-1, Pt. I, Line 2 for Adults & Peds; W/S D-1, Pt. 2, Lines 42-47 for others | K8: Inpatient Routine Charges - Cost Report Worksheet C, Pt. I, Col. 6 (Informational only unless used in Section L charges allocation) | M8: Calculated Per Diem | U8: Days - Cost Report W/S S-3, Pt. I, Column 7 | V8: Inpatient Routine Charges - Cost Report W/S D-3, Col. 2 (Informational only) | X8: Days - Cost Report W/S S-3, Pt. I, Column 6 | Y8: Inpatient Routine Charges - Cost Report W/S D-3, Col. 2 (Informational only)
B10: Routine Cost Centers (list below): | O10: Lookup HCRIS Line | P10: True HCRIS Line | Q10: HCRIS Non-Stnd Days | R10: I&R Lookup | S10: I&R Lookup | T10: Total B Alloc
A11: 1 | B11: 03000 | C11: ADULTS & PEDIATRICS | D11: 20655287 | E11: =IF($T11>=$D11,$R11,0) -> 0 | F11: 0 | G11: 0 | H11: =IF(OR(FRAAddBackGross=0,FRAAddBack<>0,FRA_Basis<>"Cost"),0,FRAAddBackGross*(D11+ABS(E11)+F11-G11)/(SUM($D$144,ABS($E$144),$F$144)-$G$11)) -> 0 | I11: =D11+ABS(E11)+F11-G11+H11 -> 20655287 | J11: 26144 | K11: 34554230 | M11: =IF(J11<>0,ROUND(I11/J11,2),0) -> 790.06 | O11: 3000 | P11: =O11 -> 3000 | Q11: 0 | R11: 0 | T11: 20655287 | U11: 1618 | V11: 2064065 | X11: 7933 | Y11: 10871100
A12: 2 | B12: 03100 | C12: INTENSIVE CARE UNIT | D12: 5404012 | E12: =IF($T12>=$D12,$R12,0) -> 0 | F12: 0 | H12: =IF(OR(FRAAddBackGross=0,FRAAddBack<>0,FRA_Basis<>"Cost"),0,FRAAddBackGross*(D12+ABS(E12)+F12)/(SUM($D$144,ABS($E$144),$F$144)-$G$11)) -> 0 | I12: =D12+ABS(E12)+F12+H12 -> 5404012 | J12: =$Q12 -> 2134 | K12: 6389924 | M12: =IF(J12<>0,ROUND(I12/J12,2),0) -> 2532.34 | O12: 3100 | P12: =O12 -> 3100 | Q12: 2134 | R12: 0 | T12: 5404012 | U12: 249 | V12: 535050 | X12: 1360 | Y12: 2932080
A13: 3 | B13: 03200 | C13: CORONARY CARE UNIT | D13: 0 | E13: 0 | F13: 0 | H13: 0 | I13: =D13+ABS(E13)+F13+H13 -> 0 | J13: =$Q13 -> 0 | K13: 0 | M13: =IF(J13<>0,ROUND(I13/J13,2),0) -> 0 | Q13: 0 | R13: 0 | T13: 0 | U13: 0 | V13: 0 | X13: 0 | Y13: 0
A14: 4 | B14: 03300 | C14: BURN INTENSIVE CARE UNIT | D14: 0 | E14: 0 | F14: 0 | H14: 0 | I14: 0 | J14: =$Q14 -> 0 | K14: 0 | M14: 0 | Q14: 0 | R14: 0 | T14: 0 | U14: 0 | V14: 0 | X14: 0 | Y14: 0
A15: 5 | B15: 03400 | C15: SURGICAL INTENSIVE CARE UNIT | D15: 0 | E15: 0 | F15: 0 | H15: 0 | I15: 0 | J15: =$Q15 -> 0 | K15: 0 | M15: 0 | Q15: 0 | R15: 0 | T15: 0 | U15: 0 | V15: 0 | X15: 0 | Y15: 0
A16: 6 | B16: 03500 | C16: OTHER SPECIAL CARE UNIT | D16: 0 | E16: 0 | F16: 0 | H16: 0 | I16: 0 | J16: =$Q16 -> 0 | K16: 0 | M16: 0 | Q16: 0 | R16: 0 | T16: 0 | U16: 0 | V16: 0 | X16: 0 | Y16: 0
A17: 7 | B17: 04000 | C17: SUBPROVIDER I | D17: 0 | E17: 0 | F17: 0 | H17: 0 | I17: 0 | J17: 0 | K17: 0 | M17: 0 | Q17: 0 | R17: 0 | T17: 0 | U17: 0 | V17: 0 | X17: 0 | Y17: 0
A18: 8 | B18: 04100 | C18: SUBPROVIDER II | D18: 0 | E18: 0 | F18: 0 | H18: 0 | I18: 0 | J18: 0 | K18: 0 | M18: 0 | O18: 4100 | P18: 4100 | Q18: 0 | R18: 0 | T18: 0 | U18: 0 | V18: 0 | X18: 0 | Y18: 0
A19: 9 | B19: 04200 | C19: OTHER SUBPROVIDER | D19: 0 | E19: 0 | F19: 0 | H19: 0 | I19: 0 | J19: =$Q19 -> 0 | K19: 0 | M19: 0 | O19: 4200 | P19: 4200 | Q19: 0 | R19: 0 | T19: 0 | U19: 0 | V19: 0 | X19: 0 | Y19: 0
A20: 10 | B20: 04300 | C20: NURSERY | D20: 2118684 | E20: 0 | F20: 0 | H20: 0 | I20: 2118684 | J20: =$Q20 -> 2349 | K20: 2885197 | M20: 901.95 | O20: 4300 | P20: 4300 | Q20: 2349 | R20: 0 | T20: 2118684 | U20: 99 | V20: 56510 | X20: 0 | Y20: 0
A21: 11 | D21: 0 | E21: 0 | F21: 0 | H21: 0 | I21: 0 | J21: 0 | K21: 0 | M21: 0 | O21: 1 | Q21: 0 | R21: 0 | T21: 0 | U21: 0 | V21: 0 | X21: 0 | Y21: 0
A22: 12 | D22: 0 | E22: 0 | F22: 0 | H22: 0 | I22: 0 | J22: 0 | K22: 0 | M22: 0 | O22: 2 | Q22: 0 | R22: 0 | T22: 0 | U22: 0 | V22: 0 | X22: 0 | Y22: 0
A23: 13 | D23: 0 | E23: 0 | F23: 0 | H23: 0 | I23: 0 | J23: 0 | K23: 0 | M23: 0 | O23: 3 | Q23: 0 | R23: 0 | T23: 0 | U23: 0 | V23: 0 | X23: 0 | Y23: 0
A24: 14 | D24: 0 | E24: 0 | F24: 0 | H24: 0 | I24: 0 | J24: 0 | K24: 0 | M24: 0 | O24: 4 | Q24: 0 | R24: 0 | T24: 0 | U24: 0 | V24: 0 | X24: 0 | Y24: 0
A25: 15 | D25: 0 | E25: 0 | F25: 0 | H25: 0 | I25: 0 | J25: 0 | K25: 0 | M25: 0 | O25: 5 | Q25: 0 | R25: 0 | T25: 0 | U25: 0 | V25: 0 | X25: 0 | Y25: 0
A26: 16 | D26: 0 | E26: 0 | F26: 0 | H26: 0 | I26: 0 | J26: 0 | K26: 0 | M26: 0 | O26: 6 | Q26: 0 | R26: 0 | T26: 0 | U26: 0 | V26: 0 | X26: 0 | Y26: 0
A27: 17 | D27: 0 | E27: 0 | F27: 0 | H27: 0 | I27: 0 | J27: 0 | K27: 0 | M27: 0 | O27: 7 | Q27: 0 | R27: 0 | T27: 0 | U27: 0 | V27: 0 | X27: 0 | Y27: 0
A28: 18 | C28: Total Routine | D28: =SUM(D11:D27) -> 28177983 | E28: 0 | F28: 0 | G28: 0 | H28: 0 | I28: 28177983 | J28: 30627 | K28: 43829351 | U28: =SUM(U11:U27) -> 1966 | V28: 2655625 | X28: =SUM(X11:X27) -> 9293 | Y28: 13803180
A29: 19 | C29: Weighted Average | M29: =IF(J28>0, SUMPRODUCT($M$11:$M$27,$J$11:$J$27)/$J$28,0) -> 920.0386179
B31: Observation Data (Non-Distinct) | E31: Hospital Observation Days - Cost Report W/S S-3, Pt. I, Line 28, Col. 8 | F31: Subprovider I Observation Days - Cost Report W/S S-3, Pt. I, Line 28.01, Col. 8 | G31: Subprovider II Observation Days - Cost Report W/S S-3, Pt. I, Line 28.02, Col. 8 | I31: Calculated (Per Diems Above Multiplied by Days) | J31: Inpatient Charges - Cost Report Worksheet C, Pt. I, Col. 6 | K31: Outpatient Charges - Cost Report Worksheet C, Pt. I, Col. 7 | L31: Total Charges - Cost Report Worksheet C, Pt. I, Col. 8 | M31: Medicaid Calculated Cost-to-Charge Ratio | U31: Inpatient Charges - Cost Report W/S D-3, Col. 2 | V31: Outpatient Charges - Cost Report W/S D, Pt. V, Col. 2-4 | X31: Inpatient Charges - Cost Report W/S D-3, Col. 2 | Y31: Outpatient Charges - Cost Report W/S D, Pt. V, Col. 2-4
A32: 20 | B32: 09200 | C32: Observation (Non-Distinct) | E32: 3539 | F32: 0 | G32: 0 | I32: =IF(ISNA(VLOOKUP("03000",$B$11:$M$27,12,FALSE)),0,VLOOKUP("03000",$B$11:$M$27,12,FALSE)*$E$32)+IF(ISNA(VLOOKUP("04000",$B$11:$M$27,12,FALSE)),0,VLOOKUP("04000",$B$11:$M$27,12,FALSE))*$F$32+IF(ISNA(VLOOKUP("04100",$B$11:$M$27,12,FALSE)),0,VLOOKUP("04100",$B$11:$M$27,12,FALSE))*$G$32 -> 2796022.34 | J32: 2589077 | K32: 3046875 | L32: =SUM(J32:K32) -> 5635952 | M32: =IF(SUM(J32:K32)<>0,ROUND(ROUND(I32,0)/SUM(J32:K32),6),0) -> 0.496105 | O32: 09200 | U32: 8108 | V32: 400191 | X32: 467959 | Y32: 2646684
D34: =D8 -> Cost Report Worksheet B, Part I, Col. 26 | E34: =E8 -> Cost Report Worksheet B, Part I, Col. 25 (Intern & Resident Offset ONLY)* | F34: =F8 -> Cost Report Worksheet C, Part I, Col.2 and Col. 4 | H34: Allocation of Provider Tax from Section L of the Survey Based on Total Cost | I34: =I8 -> Calculated | J34: Inpatient Charges - Cost Report Worksheet C, Pt. I, Col. 6 | K34: Outpatient Charges - Cost Report Worksheet C, Pt. I, Col. 7 | L34: Total Charges - Cost Report Worksheet C, Pt. I, Col. 8 | M34: Medicaid Calculated Cost-to-Charge Ratio | U34: Inpatient Charges - Cost Report W/S D-3, Col. 2 | V34: Outpatient Charges - Cost Report W/S D, Pt. V, Col. 2-4 | X34: Inpatient Charges - Cost Report W/S D-3, Col. 2 | Y34: Outpatient Charges - Cost Report W/S D, Pt. V, Col. 2-4
B35: Ancillary Cost Centers (from W/S C excluding Observation) (list below): | O35: CC Line Number | P35: True HCRIS Line Number | Q35: I&R Lookup | S35: Total B Alloc
A36: 21 | B36: =IF(ISNA(P36),"",P36) -> 5000 | C36: OPERATING ROOM | D36: 9382633 | E36: =IF($S36>=$D36,$Q36,0) -> 0 | F36: 0 | H36: =IF(OR(FRAAddBackGross=0,FRAAddBack<>0,FRA_Basis<>"Cost"),0,FRAAddBackGross*(D36+ABS(E36)+F36)/(SUM($D$144,ABS($E$144),$F$144)-$G$11)) -> 0 | I36: =D36+ABS(E36)+F36+H36 -> 9382633 | J36: 19338613 | K36: 42879969 | L36: =SUM(J36:K36) -> 62218582 | M36: =IF(SUM(J36:K36)<>0,ROUND(I36/SUM(J36:K36),6),0) -> 0.150801 | O36: 1 | P36: 5000 | Q36: 0 | S36: 9382633 | U36: 1410319 | V36: 1367969 | X36: 7092590 | Y36: 9851750
A37: 22 | B37: =IF(ISNA(P37),"",P37) -> 5100 | C37: RECOVERY ROOM | D37: 1462188 | E37: =IF($S37>=$D37,$Q37,0) -> 0 | F37: 0 | H37: 0 | I37: =D37+ABS(E37)+F37+H37 -> 1462188 | J37: 1251425 | K37: 3268195 | L37: =SUM(J37:K37) -> 4519620 | M37: 0.32352 | O37: 2 | P37: 5100 | Q37: 0 | S37: 1462188 | U37: 105997 | V37: 196666 | X37: 471754 | Y37: 1128884
A38: 23 | B38: 5200 | C38: DELIVERY ROOM & LABOR ROOM | D38: 3219563 | E38: 0 | F38: 0 | H38: 0 | I38: 3219563 | J38: 6721095 | K38: 1063720 | L38: 7784815 | M38: 0.41357 | O38: 3 | P38: 5200 | Q38: 0 | S38: 3219563 | U38: 186461 | V38: 30827 | X38: 0 | Y38: 1058
A39: 24 | B39: 5300 | C39: ANESTHESIOLOGY | D39: 295750 | E39: 0 | F39: 0 | H39: 0 | I39: 295750 | J39: 5542057 | K39: 12604451 | L39: 18146508 | M39: 0.016298 | O39: 4 | P39: 5300 | Q39: 0 | S39: 295750 | U39: 331460 | V39: 438041 | X39: 1389408 | Y39: 2363612
A40: 25 | B40: 5400 | C40: RADIOLOGY-DIAGNOSTIC | D40: 5439991 | E40: 0 | F40: 0 | H40: 0 | I40: 5439991 | J40: 4494164 | K40: 16163806 | L40: 20657970 | M40: 0.263336 | O40: 5 | P40: 5400 | Q40: 0 | S40: 5439991 | U40: 228569 | V40: 1053300 | X40: 1741776 | Y40: 4267726
A41: 26 | B41: 5500 | C41: RADIOLOGY-THERAPEUTIC | D41: 2596476 | E41: 0 | F41: 0 | H41: 0 | I41: 2596476 | J41: 417741 | K41: 15613470 | L41: 16031211 | M41: 0.161964 | O41: 6 | P41: 5500 | Q41: 0 | S41: 2596476 | U41: 32760 | V41: 0 | X41: 126119 | Y41: 6650662
A42: 27 | B42: 5601 | C42: NUCLEAR MEDICINE | D42: 1394555 | E42: 0 | F42: 0 | H42: 0 | I42: 1394555 | J42: 638732 | K42: 6321580 | L42: 6960312 | M42: 0.200358 | O42: 7 | P42: 5601 | Q42: 0 | S42: 1394555 | U42: 73830 | V42: 136348 | X42: 564101 | Y42: 1809662
A43: 28 | B43: 5700 | C43: CT SCAN | D43: 1647912 | E43: 0 | F43: 0 | H43: 0 | I43: 1647912 | J43: 7185293 | K43: 23929140 | L43: 31114433 | M43: 0.052963 | O43: 8 | P43: 5700 | Q43: 0 | S43: 1647912 | U43: 567897 | V43: 821376 | X43: 3081258 | Y43: 5853302
A44: 29 | B44: =IF(ISNA(P44),"",P44) -> 5800 | C44: MRI | D44: 833378 | E44: 0 | F44: 0 | H44: 0 | I44: 833378 | J44: 1024247 | K44: 3653805 | L44: 4678052 | M44: 0.178146 | O44: 9 | P44: 5800 | Q44: 0 | S44: 833378 | U44: 72860 | V44: 69030 | X44: 369535 | Y44: 987285
A45: 30 | B45: 5900 | C45: CARDIAC CATHETERIZATION | D45: 2393773 | E45: 0 | F45: 0 | H45: 0 | I45: 2393773 | J45: 8982348 | K45: 15138806 | L45: 24121154 | M45: 0.09924 | O45: 10 | P45: 5900 | Q45: 0 | S45: 2393773 | U45: 267341 | V45: 372736 | X45: 2542435 | Y45: 3675635
A46: 31 | B46: 6000 | C46: LABORATORY | D46: 9038887 | E46: 0 | F46: 0 | H46: 0 | I46: 9038887 | J46: 21120695 | K46: 37581326 | L46: 58702021 | M46: 0.153979 | O46: 11 | P46: 6000 | Q46: 0 | S46: 9038887 | U46: 1866461 | V46: 98123 | X46: 9297974 | Y46: 6293908
A47: 32 | B47: 6500 | C47: RESPIRATORY THERAPY | D47: 2934569 | E47: 0 | F47: 0 | H47: 0 | I47: 2934569 | J47: 6903285 | K47: 4732353 | L47: 11635638 | M47: 0.252205 | O47: 12 | P47: 6500 | Q47: 0 | S47: 2934569 | U47: 450552 | V47: 129775 | X47: 2408605 | Y47: 337220
A48: 33 | B48: 6600 | C48: PHYSICAL THERAPY | D48: 3452964 | E48: 0 | F48: 0 | H48: 0 | I48: 3452964 | J48: 5768112 | K48: 3681975 | L48: 9450087 | M48: 0.36539 | O48: 13 | P48: 6600 | Q48: 0 | S48: 3452964 | U48: 93063 | V48: 11554 | X48: 740256 | Y48: 60600
A49: 34 | B49: 6800 | C49: SPEECH PATHOLOGY | D49: 224488 | E49: 0 | F49: 0 | H49: 0 | I49: 224488 | J49: 5756 | K49: 490738 | L49: 496494 | M49: 0.452146 | O49: 14 | P49: 6800 | Q49: 0 | S49: 224488 | U49: 5475 | V49: 1046 | X49: 0 | Y49: 52736
A50: 35 | B50: 6900 | C50: ELECTROCARDIOLOGY | D50: 390014 | E50: 0 | F50: 0 | H50: 0 | I50: 390014 | J50: 2598063 | K50: 5484732 | L50: 8082795 | M50: 0.048252 | O50: 15 | P50: 6900 | Q50: 0 | S50: 390014 | U50: 171531 | V50: 234921 | X50: 1401296 | Y50: 1615381
A51: 36 | B51: 7000 | C51: ELECTROENCEPHALOGRAPHY | D51: 209458 | E51: 0 | F51: 0 | H51: 0 | I51: 209458 | J51: 64217 | K51: 68964 | L51: 133181 | M51: 1.572732 | O51: 16 | P51: 7000 | Q51: 0 | S51: 209458 | U51: 5942 | V51: 1615 | X51: 27143 | Y51: 20297
A52: 37 | B52: 7100 | C52: MEDICAL SUPPLIES CHARGED TO PATIENT | D52: 11838179 | E52: 0 | F52: 0 | H52: 0 | I52: 11838179 | J52: 9909609 | K52: 10219998 | L52: 20129607 | M52: 0.588098 | O52: 17 | P52: 7100 | Q52: 0 | S52: 11838179 | U52: 486304 | V52: 297782 | X52: 3158166 | Y52: 2641944
A53: 38 | B53: 7200 | C53: IMPL. DEV. CHARGED TO PATIENTS | D53: 3541280 | E53: 0 | F53: 0 | H53: 0 | I53: 3541280 | J53: 4862557 | K53: 4361953 | L53: 9224510 | M53: 0.383899 | O53: 18 | P53: 7200 | Q53: 0 | S53: 3541280 | U53: 250120 | V53: 0 | X53: 2043134 | Y53: 1939134
A54: 39 | B54: 7300 | C54: DRUGS CHARGED TO PATIENTS | D54: 20434159 | E54: 0 | F54: 0 | H54: 0 | I54: 20434159 | J54: 17650550 | K54: 29903523 | L54: 47554073 | M54: 0.429704 | O54: 19 | P54: 7300 | Q54: 0 | S54: 20434159 | U54: 1290241 | V54: 514455 | X54: 6221588 | Y54: 9730881
A55: 40 | B55: 7400 | C55: RENAL DIALYSIS | D55: 544142 | E55: 0 | F55: 0 | H55: 0 | I55: 544142 | J55: 577510 | K55: 84710 | L55: 662220 | M55: 0.821694 | O55: 20 | P55: 7400 | Q55: 0 | S55: 544142 | U55: 43650 | V55: 0 | X55: 320269 | Y55: 48829
A56: 41 | B56: 7600 | C56: CARDIOVASCULAR MEDICINE | D56: 2464064 | E56: 0 | F56: 0 | H56: 0 | I56: 2464064 | J56: 4577555 | K56: 9044632 | L56: 13622187 | M56: 0.180886 | O56: 21 | P56: 7600 | Q56: 0 | S56: 2464064 | U56: 191767 | V56: 85678 | X56: 1951217 | Y56: 2531541
A57: 42 | B57: 9000 | C57: CLINIC | D57: 139948 | E57: 0 | F57: 0 | H57: 0 | I57: 139948 | J57: 0 | K57: 106951 | L57: 106951 | M57: 1.308524 | O57: 22 | P57: 9000 | Q57: 0 | S57: 139948 | U57: 0 | V57: 0 | X57: 0 | Y57: 0
A58: 43 | B58: 9001 | C58: NUTRITION | D58: 15227 | E58: 0 | F58: 0 | H58: 0 | I58: 15227 | J58: 0 | K58: 26424 | L58: 26424 | M58: 0.576256 | O58: 23 | P58: 9001 | Q58: 0 | S58: 15227 | U58: 0 | V58: 0 | X58: 0 | Y58: 3724
A59: 44 | B59: 9002 | C59: WOUND CARE CENTER | D59: 1246701 | E59: 0 | F59: 0 | H59: 0 | I59: 1246701 | J59: 54288 | K59: 3280621 | L59: 3334909 | M59: 0.373834 | O59: 24 | P59: 9002 | Q59: 0 | S59: 1246701 | U59: 0 | V59: 0 | X59: 3174 | Y59: 782142
A60: 45 | B60: 9100 | C60: EMERGENCY | D60: 9047465 | E60: 0 | F60: 0 | H60: 0 | I60: 9047465 | J60: 9422922 | K60: 57889882 | L60: 67312804 | M60: 0.134409 | O60: 25 | P60: 9100 | Q60: 0 | S60: 9047465 | U60: 739550 | V60: 3155766 | X60: 3680289 | Y60: 7934388
A61: 46 | D61: 0 | E61: 0 | F61: 0 | H61: 0 | I61: 0 | J61: 0 | K61: 0 | L61: 0 | M61: 0 | O61: 26 | Q61: 0 | S61: 0 | U61: 0 | V61: 0 | X61: 0 | Y61: 0
A62: 47 | D62: 0 | E62: 0 | F62: 0 | H62: 0 | I62: 0 | J62: 0 | K62: 0 | L62: 0 | M62: 0 | O62: 27 | Q62: 0 | S62: 0 | U62: 0 | V62: 0 | X62: 0 | Y62: 0
A63: 48 | D63: 0 | E63: 0 | F63: 0 | H63: 0 | I63: 0 | J63: 0 | K63: 0 | L63: 0 | M63: 0 | O63: 28 | Q63: 0 | S63: 0 | U63: 0 | V63: 0 | X63: 0 | Y63: 0
A64: 49 | D64: 0 | E64: 0 | F64: 0 | H64: 0 | I64: 0 | J64: 0 | K64: 0 | L64: 0 | M64: 0 | O64: 29 | Q64: 0 | S64: 0 | U64: 0 | V64: 0 | X64: 0 | Y64: 0
A65: 50 | D65: 0 | E65: 0 | F65: 0 | H65: 0 | I65: 0 | J65: 0 | K65: 0 | L65: 0 | M65: 0 | O65: 30 | Q65: 0 | S65: 0 | U65: 0 | V65: 0 | X65: 0 | Y65: 0
A66: 51 | D66: 0 | E66: 0 | F66: 0 | H66: 0 | I66: 0 | J66: 0 | K66: 0 | L66: 0 | M66: 0 | O66: 31 | Q66: 0 | S66: 0 | U66: 0 | V66: 0 | X66: 0 | Y66: 0
A67: 52 | D67: 0 | E67: =IF($S67>=$D67,$Q67,0) -> 0 | F67: 0 | H67: 0 | I67: 0 | J67: 0 | K67: 0 | L67: 0 | M67: 0 | O67: 32 | Q67: 0 | S67: 0 | U67: 0 | V67: 0 | X67: 0 | Y67: 0
A68: 53 | D68: 0 | E68: 0 | F68: 0 | H68: =IF(OR(FRAAddBackGross=0,FRAAddBack<>0,FRA_Basis<>"Cost"),0,FRAAddBackGross*(D68+ABS(E68)+F68)/(SUM($D$144,ABS($E$144),$F$144)-$G$11)) -> 0 | I68: 0 | J68: 0 | K68: 0 | L68: 0 | M68: 0 | O68: 33 | Q68: 0 | S68: 0 | U68: 0 | V68: 0 | X68: 0 | Y68: 0
A69: 54 | D69: 0 | E69: 0 | F69: 0 | H69: 0 | I69: 0 | J69: 0 | K69: 0 | L69: =SUM(J69:K69) -> 0 | M69: =IF(SUM(J69:K69)<>0,ROUND(I69/SUM(J69:K69),6),0) -> 0 | O69: 34 | Q69: 0 | S69: 0 | U69: 0 | V69: 0 | X69: 0 | Y69: 0
A70: 55 | D70: 0 | E70: 0 | F70: 0 | H70: 0 | I70: 0 | J70: 0 | K70: 0 | L70: 0 | M70: 0 | O70: 35 | Q70: 0 | S70: 0 | U70: 0 | V70: 0 | X70: 0 | Y70: 0
A71: 56 | D71: 0 | E71: 0 | F71: 0 | H71: 0 | I71: 0 | J71: 0 | K71: 0 | L71: 0 | M71: 0 | O71: 36 | Q71: 0 | S71: 0 | U71: 0 | V71: 0 | X71: 0 | Y71: 0
A72: 57 | D72: 0 | E72: 0 | F72: 0 | H72: 0 | I72: 0 | J72: 0 | K72: 0 | L72: 0 | M72: 0 | O72: 37 | Q72: 0 | S72: 0 | U72: 0 | V72: 0 | X72: 0 | Y72: 0
A73: 58 | D73: 0 | E73: 0 | F73: 0 | H73: 0 | I73: 0 | J73: 0 | K73: 0 | L73: 0 | M73: 0 | O73: 38 | Q73: 0 | S73: 0 | U73: 0 | V73: 0 | X73: 0 | Y73: 0
A74: 59 | D74: 0 | E74: 0 | F74: 0 | H74: 0 | I74: 0 | J74: 0 | K74: 0 | L74: 0 | M74: 0 | O74: 39 | Q74: 0 | S74: 0 | U74: 0 | V74: 0 | X74: 0 | Y74: 0
A75: 60 | D75: 0 | E75: 0 | F75: 0 | H75: 0 | I75: 0 | J75: 0 | K75: 0 | L75: 0 | M75: 0 | O75: 40 | Q75: 0 | S75: 0 | U75: 0 | V75: 0 | X75: 0 | Y75: 0
A76: 61 | D76: 0 | E76: 0 | F76: 0 | H76: 0 | I76: 0 | J76: 0 | K76: 0 | L76: 0 | M76: 0 | O76: 41 | Q76: 0 | S76: 0 | U76: 0 | V76: 0 | X76: 0 | Y76: 0
A77: 62 | D77: 0 | E77: 0 | F77: 0 | H77: 0 | I77: 0 | J77: 0 | K77: 0 | L77: 0 | M77: 0 | O77: 42 | Q77: 0 | S77: 0 | U77: 0 | V77: 0 | X77: 0 | Y77: 0
A78: 63 | D78: 0 | E78: 0 | F78: 0 | H78: 0 | I78: 0 | J78: 0 | K78: 0 | L78: 0 | M78: 0 | O78: 43 | Q78: 0 | S78: 0 | U78: 0 | V78: 0 | X78: 0 | Y78: 0
A79: 64 | D79: 0 | E79: 0 | F79: 0 | H79: 0 | I79: 0 | J79: 0 | K79: 0 | L79: 0 | M79: 0 | O79: 44 | Q79: 0 | S79: 0 | U79: 0 | V79: 0 | X79: 0 | Y79: 0
A80: 65 | D80: 0 | E80: 0 | F80: 0 | H80: 0 | I80: 0 | J80: 0 | K80: 0 | L80: 0 | M80: 0 | O80: 45 | Q80: 0 | S80: 0 | U80: 0 | V80: 0 | X80: 0 | Y80: 0
A81: 66 | D81: 0 | E81: 0 | F81: 0 | H81: 0 | I81: 0 | J81: 0 | K81: 0 | L81: 0 | M81: 0 | O81: 46 | Q81: 0 | S81: 0 | U81: 0 | V81: 0 | X81: 0 | Y81: 0
A82: 67 | D82: 0 | E82: 0 | F82: 0 | H82: 0 | I82: 0 | J82: 0 | K82: 0 | L82: 0 | M82: 0 | O82: 47 | Q82: 0 | S82: 0 | U82: 0 | V82: 0 | X82: 0 | Y82: 0
A83: 68 | D83: 0 | E83: 0 | F83: 0 | H83: 0 | I83: 0 | J83: 0 | K83: 0 | L83: 0 | M83: 0 | O83: 48 | Q83: 0 | S83: 0 | U83: 0 | V83: 0 | X83: 0 | Y83: 0
A84: 69 | D84: 0 | E84: 0 | F84: 0 | H84: 0 | I84: 0 | J84: 0 | K84: 0 | L84: 0 | M84: 0 | O84: 49 | Q84: 0 | S84: 0 | U84: 0 | V84: 0 | X84: 0 | Y84: 0
A85: 70 | D85: 0 | E85: 0 | F85: 0 | H85: 0 | I85: 0 | J85: 0 | K85: 0 | L85: 0 | M85: 0 | O85: 50 | Q85: 0 | S85: 0 | U85: 0 | V85: 0 | X85: 0 | Y85: 0
A86: 71 | D86: 0 | E86: 0 | F86: 0 | H86: 0 | I86: 0 | J86: 0 | K86: 0 | L86: 0 | M86: 0 | O86: 51 | Q86: 0 | S86: 0 | U86: 0 | V86: 0 | X86: 0 | Y86: 0
A87: 72 | D87: 0 | E87: 0 | F87: 0 | H87: 0 | I87: 0 | J87: 0 | K87: 0 | L87: 0 | M87: 0 | O87: 52 | Q87: 0 | S87: 0 | U87: 0 | V87: 0 | X87: 0 | Y87: 0
A88: 73 | D88: 0 | E88: 0 | F88: 0 | H88: 0 | I88: 0 | J88: 0 | K88: 0 | L88: 0 | M88: 0 | O88: 53 | Q88: 0 | S88: 0 | U88: 0 | V88: 0 | X88: 0 | Y88: 0
A89: 74 | D89: 0 | E89: 0 | F89: 0 | H89: 0 | I89: 0 | J89: 0 | K89: 0 | L89: 0 | M89: 0 | O89: 54 | Q89: 0 | S89: 0 | U89: 0 | V89: 0 | X89: 0 | Y89: 0
A90: 75 | D90: 0 | E90: 0 | F90: 0 | H90: 0 | I90: 0 | J90: 0 | K90: 0 | L90: 0 | M90: 0 | O90: 55 | Q90: 0 | S90: 0 | U90: 0 | V90: 0 | X90: 0 | Y90: 0
A91: 76 | B91: =IF(ISNA(P91),"",P91) ->  | D91: 0 | E91: 0 | F91: 0 | H91: 0 | I91: =D91+ABS(E91)+F91+H91 -> 0 | J91: 0 | K91: 0 | L91: =SUM(J91:K91) -> 0 | M91: =IF(SUM(J91:K91)<>0,ROUND(I91/SUM(J91:K91),6),0) -> 0 | O91: 56 | Q91: 0 | S91: 0 | U91: 0 | V91: 0 | X91: 0 | Y91: 0
A92: 77 | D92: 0 | E92: 0 | F92: 0 | H92: 0 | I92: 0 | J92: 0 | K92: 0 | L92: =SUM(J92:K92) -> 0 | M92: =IF(SUM(J92:K92)<>0,ROUND(I92/SUM(J92:K92),6),0) -> 0 | O92: 57 | Q92: 0 | S92: 0 | U92: 0 | V92: 0 | X92: 0 | Y92: 0
A93: 78 | D93: 0 | E93: 0 | F93: 0 | H93: 0 | I93: 0 | J93: 0 | K93: 0 | L93: =SUM(J93:K93) -> 0 | M93: =IF(SUM(J93:K93)<>0,ROUND(I93/SUM(J93:K93),6),0) -> 0 | O93: 58 | Q93: 0 | S93: 0 | U93: 0 | V93: 0 | X93: 0 | Y93: 0
A94: 79 | D94: 0 | E94: 0 | F94: 0 | H94: 0 | I94: 0 | J94: 0 | K94: 0 | L94: =SUM(J94:K94) -> 0 | M94: =IF(SUM(J94:K94)<>0,ROUND(I94/SUM(J94:K94),6),0) -> 0 | O94: 59 | Q94: 0 | S94: 0 | U94: 0 | V94: 0 | X94: 0 | Y94: 0
A95: 80 | D95: 0 | E95: 0 | F95: 0 | H95: 0 | I95: 0 | J95: 0 | K95: 0 | L95: 0 | M95: 0 | O95: 60 | Q95: 0 | S95: 0 | U95: 0 | V95: 0 | X95: 0 | Y95: 0
A96: 81 | D96: 0 | E96: 0 | F96: 0 | H96: 0 | I96: 0 | J96: 0 | K96: 0 | L96: 0 | M96: 0 | O96: 61 | Q96: 0 | S96: 0 | U96: 0 | V96: 0 | X96: 0 | Y96: 0
A97: 82 | D97: 0 | E97: 0 | F97: 0 | H97: 0 | I97: 0 | J97: 0 | K97: 0 | L97: 0 | M97: 0 | O97: 62 | Q97: 0 | S97: 0 | U97: 0 | V97: 0 | X97: 0 | Y97: 0
A98: 83 | D98: 0 | E98: 0 | F98: 0 | H98: 0 | I98: 0 | J98: 0 | K98: 0 | L98: 0 | M98: 0 | O98: 63 | Q98: 0 | S98: 0 | U98: 0 | V98: 0 | X98: 0 | Y98: 0
A99: 84 | D99: 0 | E99: 0 | F99: 0 | H99: 0 | I99: 0 | J99: 0 | K99: 0 | L99: 0 | M99: 0 | O99: 64 | Q99: 0 | S99: 0 | U99: 0 | V99: 0 | X99: 0 | Y99: 0
A100: 85 | D100: 0 | E100: 0 | F100: 0 | H100: =IF(OR(FRAAddBackGross=0,FRAAddBack<>0,FRA_Basis<>"Cost"),0,FRAAddBackGross*(D100+ABS(E100)+F100)/(SUM($D$144,ABS($E$144),$F$144)-$G$11)) -> 0 | I100: 0 | J100: 0 | K100: 0 | L100: 0 | M100: 0 | O100: 65 | Q100: 0 | S100: 0 | U100: 0 | V100: 0 | X100: 0 | Y100: 0
A101: 86 | D101: 0 | E101: 0 | F101: 0 | H101: 0 | I101: 0 | J101: 0 | K101: 0 | L101: 0 | M101: 0 | O101: 66 | Q101: 0 | S101: 0 | U101: 0 | V101: 0 | X101: 0 | Y101: 0
A102: 87 | D102: 0 | E102: 0 | F102: 0 | H102: 0 | I102: 0 | J102: 0 | K102: 0 | L102: 0 | M102: 0 | O102: 67 | Q102: 0 | S102: 0 | U102: 0 | V102: 0 | X102: 0 | Y102: 0
A103: 88 | D103: 0 | E103: 0 | F103: 0 | H103: 0 | I103: 0 | J103: 0 | K103: 0 | L103: 0 | M103: 0 | O103: 68 | Q103: 0 | S103: 0 | U103: 0 | V103: 0 | X103: 0 | Y103: 0
A104: 89 | D104: 0 | E104: 0 | F104: 0 | H104: 0 | I104: 0 | J104: 0 | K104: 0 | L104: 0 | M104: 0 | O104: 69 | Q104: 0 | S104: 0 | U104: 0 | V104: 0 | X104: 0 | Y104: 0
A105: 90 | D105: 0 | E105: 0 | F105: 0 | H105: 0 | I105: 0 | J105: 0 | K105: 0 | L105: 0 | M105: 0 | O105: 70 | Q105: 0 | S105: 0 | U105: 0 | V105: 0 | X105: 0 | Y105: 0
A106: 91 | D106: 0 | E106: 0 | F106: 0 | H106: 0 | I106: 0 | J106: 0 | K106: 0 | L106: 0 | M106: 0 | O106: 71 | Q106: 0 | S106: 0 | U106: 0 | V106: 0 | X106: 0 | Y106: 0
A107: 92 | D107: 0 | E107: 0 | F107: 0 | H107: 0 | I107: 0 | J107: 0 | K107: 0 | L107: 0 | M107: 0 | O107: 72 | Q107: 0 | S107: 0 | U107: 0 | V107: 0 | X107: 0 | Y107: 0
A108: 93 | D108: 0 | E108: 0 | F108: 0 | H108: 0 | I108: 0 | J108: 0 | K108: 0 | L108: 0 | M108: 0 | O108: 73 | Q108: 0 | S108: 0 | U108: 0 | V108: 0 | X108: 0 | Y108: 0
A109: 94 | D109: 0 | E109: 0 | F109: 0 | H109: 0 | I109: 0 | J109: 0 | K109: 0 | L109: 0 | M109: 0 | O109: 74 | Q109: 0 | S109: 0 | U109: 0 | V109: 0 | X109: 0 | Y109: 0
A110: 95 | D110: 0 | E110: 0 | F110: 0 | H110: 0 | I110: 0 | J110: 0 | K110: 0 | L110: 0 | M110: 0 | O110: 75 | Q110: 0 | S110: 0 | U110: 0 | V110: 0 | X110: 0 | Y110: 0
A111: 96 | D111: 0 | E111: 0 | F111: 0 | H111: 0 | I111: 0 | J111: 0 | K111: 0 | L111: 0 | M111: 0 | O111: 76 | Q111: 0 | S111: 0 | U111: 0 | V111: 0 | X111: 0 | Y111: 0
A112: 97 | D112: 0 | E112: 0 | F112: 0 | H112: 0 | I112: 0 | J112: 0 | K112: 0 | L112: 0 | M112: 0 | O112: 77 | Q112: 0 | S112: 0 | U112: 0 | V112: 0 | X112: 0 | Y112: 0
A113: 98 | D113: 0 | E113: 0 | F113: 0 | H113: 0 | I113: 0 | J113: 0 | K113: 0 | L113: 0 | M113: 0 | O113: 78 | Q113: 0 | S113: 0 | U113: 0 | V113: 0 | X113: 0 | Y113: 0
A114: 99 | D114: 0 | E114: 0 | F114: 0 | H114: 0 | I114: 0 | J114: 0 | K114: 0 | L114: 0 | M114: 0 | O114: 79 | Q114: 0 | S114: 0 | U114: 0 | V114: 0 | X114: 0 | Y114: 0
A115: 100 | D115: 0 | E115: 0 | F115: 0 | H115: 0 | I115: 0 | J115: 0 | K115: 0 | L115: 0 | M115: 0 | O115: 80 | Q115: 0 | S115: 0 | U115: 0 | V115: 0 | X115: 0 | Y115: 0
A116: 101 | D116: 0 | E116: 0 | F116: 0 | H116: 0 | I116: 0 | J116: 0 | K116: 0 | L116: =SUM(J116:K116) -> 0 | M116: =IF(SUM(J116:K116)<>0,ROUND(I116/SUM(J116:K116),6),0) -> 0 | O116: 81 | Q116: 0 | S116: 0 | U116: 0 | V116: 0 | X116: 0 | Y116: 0
A117: 102 | D117: 0 | E117: 0 | F117: 0 | H117: 0 | I117: 0 | J117: 0 | K117: 0 | L117: =SUM(J117:K117) -> 0 | M117: =IF(SUM(J117:K117)<>0,ROUND(I117/SUM(J117:K117),6),0) -> 0 | O117: 82 | Q117: 0 | S117: 0 | U117: 0 | V117: 0 | X117: 0 | Y117: 0
A118: 103 | D118: 0 | E118: 0 | F118: 0 | H118: 0 | I118: 0 | J118: 0 | K118: 0 | L118: =SUM(J118:K118) -> 0 | M118: =IF(SUM(J118:K118)<>0,ROUND(I118/SUM(J118:K118),6),0) -> 0 | O118: 83 | Q118: 0 | S118: 0 | U118: 0 | V118: 0 | X118: 0 | Y118: 0
A119: 104 | D119: 0 | E119: 0 | F119: 0 | H119: 0 | I119: 0 | J119: 0 | K119: 0 | L119: =SUM(J119:K119) -> 0 | M119: =IF(SUM(J119:K119)<>0,ROUND(I119/SUM(J119:K119),6),0) -> 0 | O119: 84 | Q119: 0 | S119: 0 | U119: 0 | V119: 0 | X119: 0 | Y119: 0
A120: 105 | D120: 0 | E120: 0 | F120: 0 | H120: 0 | I120: 0 | J120: 0 | K120: 0 | L120: 0 | M120: 0 | O120: 85 | Q120: 0 | S120: 0 | U120: 0 | V120: 0 | X120: 0 | Y120: 0
A121: 106 | D121: 0 | E121: 0 | F121: 0 | H121: 0 | I121: 0 | J121: 0 | K121: 0 | L121: 0 | M121: 0 | O121: 86 | Q121: 0 | S121: 0 | U121: 0 | V121: 0 | X121: 0 | Y121: 0
A122: 107 | D122: 0 | E122: 0 | F122: 0 | H122: 0 | I122: 0 | J122: 0 | K122: 0 | L122: 0 | M122: 0 | O122: 87 | Q122: 0 | S122: 0 | U122: 0 | V122: 0 | X122: 0 | Y122: 0
A123: 108 | D123: 0 | E123: 0 | F123: 0 | H123: 0 | I123: 0 | J123: 0 | K123: 0 | L123: 0 | M123: 0 | O123: 88 | Q123: 0 | S123: 0 | U123: 0 | V123: 0 | X123: 0 | Y123: 0
A124: 109 | D124: 0 | E124: 0 | F124: 0 | H124: 0 | I124: 0 | J124: 0 | K124: 0 | L124: 0 | M124: 0 | O124: 89 | Q124: 0 | S124: 0 | U124: 0 | V124: 0 | X124: 0 | Y124: 0
A125: 110 | D125: 0 | E125: 0 | F125: 0 | H125: 0 | I125: 0 | J125: 0 | K125: 0 | L125: 0 | M125: 0 | O125: 90 | Q125: 0 | S125: 0 | U125: 0 | V125: 0 | X125: 0 | Y125: 0
A126: 111 | B126: =IF(ISNA(P126),"",P126) ->  | D126: 0 | E126: 0 | F126: 0 | H126: 0 | I126: =D126+ABS(E126)+F126+H126 -> 0 | J126: 0 | K126: 0 | L126: 0 | M126: 0 | O126: 91 | Q126: 0 | S126: 0 | U126: 0 | V126: 0 | X126: 0 | Y126: 0
A127: 112 | D127: 0 | E127: 0 | F127: 0 | H127: 0 | I127: 0 | J127: 0 | K127: 0 | L127: 0 | M127: 0 | O127: 92 | Q127: 0 | S127: 0 | U127: 0 | V127: 0 | X127: 0 | Y127: 0
A128: 113 | D128: 0 | E128: 0 | F128: 0 | H128: 0 | I128: 0 | J128: 0 | K128: 0 | L128: 0 | M128: 0 | O128: 93 | Q128: 0 | S128: 0 | U128: 0 | V128: 0 | X128: 0 | Y128: 0
A129: 114 | D129: 0 | E129: 0 | F129: 0 | H129: 0 | I129: 0 | J129: 0 | K129: 0 | L129: =SUM(J129:K129) -> 0 | M129: =IF(SUM(J129:K129)<>0,ROUND(I129/SUM(J129:K129),6),0) -> 0 | O129: 94 | Q129: 0 | S129: 0 | U129: 0 | V129: 0 | X129: 0 | Y129: 0
A130: 115 | D130: 0 | E130: 0 | F130: 0 | H130: 0 | I130: 0 | J130: 0 | K130: 0 | L130: 0 | M130: 0 | O130: 95 | Q130: 0 | S130: 0 | U130: 0 | V130: 0 | X130: 0 | Y130: 0
A131: 116 | D131: 0 | E131: 0 | F131: 0 | H131: 0 | I131: 0 | J131: 0 | K131: 0 | L131: 0 | M131: 0 | O131: 96 | Q131: 0 | S131: 0 | U131: 0 | V131: 0 | X131: 0 | Y131: 0
A132: 117 | D132: 0 | E132: 0 | F132: 0 | H132: =IF(OR(FRAAddBackGross=0,FRAAddBack<>0,FRA_Basis<>"Cost"),0,FRAAddBackGross*(D132+ABS(E132)+F132)/(SUM($D$144,ABS($E$144),$F$144)-$G$11)) -> 0 | I132: 0 | J132: 0 | K132: 0 | L132: 0 | M132: 0 | O132: 97 | Q132: 0 | S132: 0 | U132: 0 | V132: 0 | X132: 0 | Y132: 0
A133: 118 | D133: 0 | E133: 0 | F133: 0 | H133: 0 | I133: 0 | J133: 0 | K133: 0 | L133: 0 | M133: 0 | O133: 98 | Q133: 0 | S133: 0 | U133: 0 | V133: 0 | X133: 0 | Y133: 0
A134: 119 | D134: 0 | E134: 0 | F134: 0 | H134: 0 | I134: 0 | J134: 0 | K134: 0 | L134: 0 | M134: 0 | O134: 99 | Q134: 0 | S134: 0 | U134: 0 | V134: 0 | X134: 0 | Y134: 0
A135: 120 | D135: 0 | E135: 0 | F135: 0 | H135: 0 | I135: 0 | J135: 0 | K135: 0 | L135: 0 | M135: 0 | O135: 100 | Q135: 0 | S135: 0 | U135: 0 | V135: 0 | X135: 0 | Y135: 0
A136: 121 | D136: 0 | E136: 0 | F136: 0 | H136: 0 | I136: 0 | J136: 0 | K136: 0 | L136: 0 | M136: 0 | O136: 101 | Q136: 0 | S136: 0 | U136: 0 | V136: 0 | X136: 0 | Y136: 0
A137: 122 | D137: 0 | E137: 0 | F137: 0 | H137: 0 | I137: 0 | J137: 0 | K137: 0 | L137: 0 | M137: 0 | O137: 102 | Q137: 0 | S137: 0 | U137: 0 | V137: 0 | X137: 0 | Y137: 0
A138: 123 | D138: 0 | E138: 0 | F138: 0 | H138: 0 | I138: 0 | J138: 0 | K138: 0 | L138: 0 | M138: 0 | O138: 103 | Q138: 0 | S138: 0 | U138: 0 | V138: 0 | X138: 0 | Y138: 0
A139: 124 | D139: 0 | E139: 0 | F139: 0 | H139: 0 | I139: 0 | J139: 0 | K139: 0 | L139: 0 | M139: 0 | O139: 104 | Q139: 0 | S139: 0 | U139: 0 | V139: 0 | X139: 0 | Y139: 0
A140: 125 | D140: 0 | E140: 0 | F140: 0 | H140: 0 | I140: 0 | J140: 0 | K140: 0 | L140: 0 | M140: 0 | O140: 105 | Q140: 0 | S140: 0 | U140: 0 | V140: 0 | X140: 0 | Y140: 0
A141: 126 | C141: Total Ancillary | D141: =SUM(D36:D140) -> 94187764 | E141: =SUM(E36:E140) -> 0 | F141: =SUM(F36:F140) -> 0 | H141: =SUM(H36:H140) -> 0 | I141: =SUM(I36:I140) -> 94187764 | J141: =SUM(J36:J140) +J32 -> 141699911 | K141: =SUM(K36:K140) +K32 -> 310642599 | L141: =SUM(L36:L140) +L32 -> 452342510 | U141: =SUM(U36:U140) +U32 -> 8880258 | V141: =SUM(V36:V140) +V32 -> 9417199 | X141: =SUM(X36:X140) +X32 -> 49100046 | Y141: =SUM(Y36:Y140) +Y32 -> 73228985
A142: 127 | C142: Weighted Average | M142: =IF(SUM($J$141:$K$141)>0, SUMPRODUCT($M$32:$M$140,$L$32:$L$140)/$L$141,0) -> 0.2144034224
A144: 128 | C144: Sub Totals | D144: =D141+D28 -> 122365747 | E144: =E141+E28 -> 0 | F144: =F141+F28 -> 0 | H144: =H141+H28 -> 0 | I144: =I141+I28 -> 122365747 | J144: =J141+K28 -> 185529262 | K144: =K141 -> 310642599 | L144: =+L141+K28 -> 496171861 | U144: =U141+V28 -> 11535883 | V144: =V141 -> 9417199 | X144: =X141+Y28 -> 62903226 | Y144: =Y141 -> 73228985
A145: 129 | C145: NF, SNF, and Swing Bed Cost for Medicaid (Sum of applicable Cost Report Worksheet D-3, Title 19, Column 3, Line 200 and Worksheet D, Part V, Title 19, Column 5-7, Line 200) | I145: 0
A146: 130 | C146: NF, SNF, and Swing Bed Cost for Medicare (Sum of applicable Cost Report Worksheet D-3, Title 18, Column 3, Line 200 and Worksheet D, Part V, Title 18, Column 5-7, Line 200) | I146: 873498
A147: 131 | C147: NF, SNF, and Swing Bed Cost for Other Payors (Hospital must calculate. Submit support for calculation of cost.)
A148: 131.01 | C148: Other Cost Adjustments (support must be submitted) | J148: Make sure the sign (+/-) is entered correctly!
A149: 132 | C149: Grand Total | I149: =I144-ABS(NF_SNF_SWB_Mcaid)-ABS(NF_SNF_SWB_Mcare)-ABS(NF_SNF_SWB_Other)+Other -> 121492249
A150: 133 | C150: =IF(H144>0,"Total Intern/Resident & Provider Tax Add-In Cost as a Percent of Other Allowable Cost","Total Intern/Resident Cost as a Percent of Other Allowable Cost") -> Total Intern/Resident Cost as a Percent of Other Allowable Cost | I150: =IF(($I$144-E$144-$H$144)<>0, ($E$144+$H$144)/($I$144-$E$144-$H$144),0) -> 0
A153: * Note A - Final cost-to-charge ratios should include teaching cost. Only enter Intern & Resident costs if it was removed in Column 25 of Worksheet B, Pt. I of the cost report you are using.

Sheet Sec. H In-State
B1: H. In-State Medicaid and All Uninsured Inpatient and Outpatient Hospital Data:
B3: =CONCATENATE("Cost Report Year (" & TEXT(FYB_1,"MM/DD/YYYY") & "-" & TEXT(FYE_1,"MM/DD/YYYY") &")") -> Cost Report Year (07/01/2016-06/30/2017) | D3: =ProvName -> WELLSTAR WEST GEORGIA HOSPITAL | P3: =IF(AND($P$5="In-State Medicare FFS Cross-Overs (with Medicaid Secondary)",'Sec. I Out-of-State'!$P$5="Out-of-State Medicare FFS Cross-Overs (with Medicaid Secondary)",$P$172<>"",($P$28+'Sec. I Out-of-State'!$P$28)>$P$172),"ERROR! Reported cross-over days exceed total Medicare days on the cost report!","") -> 
H5: ='Survey Set-Up'!$D$5 -> In-State Medicaid FFS Primary | L5: ='Survey Set-Up'!$D$6 -> In-State Medicaid Managed Care Primary | P5: ='Survey Set-Up'!$D$7 -> In-State Medicare FFS Cross-Overs (with Medicaid Secondary) | T5: ='Survey Set-Up'!$D$8 -> In-State Other Medicaid Eligibles (Not Included Elsewhere) | X5: =IF(State="Indiana","Healthy Indiana Plan (HIP)",IF(State="California DPH","Medi-Medi Shortfalls (Included in FFS Claiming)","")) ->  | AB5: =IF(State="Indiana","Validated Paid Claims – Not Duplicates",IF(State="California DPH","Medicaid Psych","")) ->  | AF5: =IF(State="Indiana","In-State FFS Medicaid-Eligible Not on Medicaid Paid Claims Data Exhibit A needed",IF(State="California DPH","Low Income Health Program (LIHP) and Medicaid Coverage Expansion (MCE)","")) ->  | AJ5: =IF(State="California DPH","Health Care Coverage Initiative (HCCI)",IF(State="Indiana","In-State Managed Care Medicaid-Eligible Not on Medicaid Paid Claims Data Exhibit B needed","")) ->  | AN5: =IF(State="California DPH","State-Only Programs","State/Local-Only Indigent Care Program") -> State/Local-Only Indigent Care Program | AR5: =IF(State="California DPH","Uninsured Including Indigent County Programs",'Survey Set-Up'!$D$9) -> Uninsured | AV5: Total In-State Medicaid | AY5: % Survey to Cost Report Totals
B6: Line # | C6: Cost Center Description | D6: Medicaid Per Diem Cost for Routine Cost Centers | F6: Medicaid Cost to Charge Ratio for Ancillary Cost Centers | H6: Inpatient | J6: Outpatient | L6: Inpatient | N6: Outpatient | P6: Inpatient | R6: Outpatient | T6: Inpatient | V6: Outpatient | X6: Inpatient | Z6: Outpatient | AB6: Inpatient | AD6: Outpatient | AF6: Inpatient | AH6: Outpatient | AJ6: Inpatient | AL6: Outpatient | AN6: Inpatient | AP6: Outpatient | AR6: Inpatient (See Exhibit A) | AT6: Outpatient (See Exhibit A) | AV6: Inpatient | AX6: Outpatient
D8: From Section G | F8: From Section G | H8: From PS&R Summary (Note A) | J8: From PS&R Summary (Note A) | L8: From PS&R Summary (Note A) | N8: From PS&R Summary (Note A) | P8: From PS&R Summary (Note A) | R8: From PS&R Summary (Note A) | T8: From PS&R Summary (Note A) | V8: From PS&R Summary (Note A) | X8: =IF(State="California DPH","From PS&R Summary (Note A) or Hospital's Own Internal Analysis",IF(State="Indiana","From Indiana Paid Claims Summary","")) ->  | Z8: From Indiana Claims Summary | AB8: =IF(State="California DPH","From PS&R Summary (Note A) or Hospital's Own Internal Analysis",IF(State="Indiana","From Possible Duplicate Claims Report","")) ->  | AF8: =IF(OR(State="Indiana",State="California DPH"), "From Hospital's Own Internal Analysis","") ->  | AN8: From PS&R Summary (Note A) | AP8: From PS&R Summary (Note A) | AR8: From Hospital's Own Internal Analysis | AT8: From Hospital's Own Internal Analysis
B10: Routine Cost Centers (from Section G): | H10: Days | L10: Days | P10: Days | T10: Days | X10: Days | AB10: Days | AF10: Days | AJ10: Days | AN10: Days | AR10: Days | AV10: Days
A11: 1 | B11: ='Sec. G CR Data'!B11 -> 03000 | C11: ='Sec. G CR Data'!C11 -> ADULTS & PEDIATRICS | D11: ='Sec. G CR Data'!M11 -> 790.06 | H11: 2016 | L11: 1665 | P11: 2065 | T11: 1765 | AR11: 1968 | AV11: =IF(State="California DPH",$T11+$P11+$L11+$H11+$X11+$AB11+$AF11,$T11+$P11+$L11+$H11+$X11+$AB11+$AF11+$AJ11) -> 7511 | AY11: =IFERROR(IF(State="California DPH",SUM(AJ11,AN11,AR11,AV11,'Sec. I Out-of-State'!X11)/'Sec. G CR Data'!J11,SUM(AN11,AR11,AV11,'Sec. I Out-of-State'!X11)/('Sec. G CR Data'!J11-CR_Obs_Days_Routine)),"") -> 0.4254810883 | AZ11: =IF($AR11+$AV11+$AN11+'Sec. I Out-of-State'!$X11>('Sec. G CR Data'!$J11-CR_Obs_Days_Routine),"ERROR: Days exceed total!","") -> 
A12: 2 | B12: ='Sec. G CR Data'!B12 -> 03100 | C12: ='Sec. G CR Data'!C12 -> INTENSIVE CARE UNIT | D12: ='Sec. G CR Data'!M12 -> 2532.34 | H12: 313 | L12: 65 | P12: 317 | T12: 160 | AR12: 250 | AV12: 855 | AY12: =IFERROR(IF(State="California DPH",SUM(AJ12,AN12,AR12,AV12,'Sec. I Out-of-State'!X12)/'Sec. G CR Data'!J12,SUM(AN12,AR12,AV12,'Sec. I Out-of-State'!X12)/'Sec. G CR Data'!J12),"") -> 0.5299906279 | AZ12: =IF($AR12+$AV12+$AN12+'Sec. I Out-of-State'!$X12>'Sec. G CR Data'!$J12,"ERROR: Days exceed total!","") -> 
A13: 3 | B13: ='Sec. G CR Data'!B13 -> 03200 | C13: ='Sec. G CR Data'!C13 -> CORONARY CARE UNIT | D13: ='Sec. G CR Data'!M13 -> 0 | AV13: 0 | AY13: =IFERROR(IF(State="California DPH",SUM(AJ13,AN13,AR13,AV13,'Sec. I Out-of-State'!X13)/'Sec. G CR Data'!J13,SUM(AN13,AR13,AV13,'Sec. I Out-of-State'!X13)/'Sec. G CR Data'!J13),"") ->  | AZ13: =IF($AR13+$AV13+$AN13+'Sec. I Out-of-State'!$X13>'Sec. G CR Data'!$J13,"ERROR: Days exceed total!","") -> 
A14: 4 | B14: ='Sec. G CR Data'!B14 -> 03300 | C14: ='Sec. G CR Data'!C14 -> BURN INTENSIVE CARE UNIT | D14: ='Sec. G CR Data'!M14 -> 0 | AV14: 0 | AY14: =IFERROR(IF(State="California DPH",SUM(AJ14,AN14,AR14,AV14,'Sec. I Out-of-State'!X14)/'Sec. G CR Data'!J14,SUM(AN14,AR14,AV14,'Sec. I Out-of-State'!X14)/'Sec. G CR Data'!J14),"") ->  | AZ14: =IF($AR14+$AV14+$AN14+'Sec. I Out-of-State'!$X14>'Sec. G CR Data'!$J14,"ERROR: Days exceed total!","") -> 
A15: 5 | B15: ='Sec. G CR Data'!B15 -> 03400 | C15: ='Sec. G CR Data'!C15 -> SURGICAL INTENSIVE CARE UNIT | D15: ='Sec. G CR Data'!M15 -> 0 | AV15: 0 | AY15: =IFERROR(IF(State="California DPH",SUM(AJ15,AN15,AR15,AV15,'Sec. I Out-of-State'!X15)/'Sec. G CR Data'!J15,SUM(AN15,AR15,AV15,'Sec. I Out-of-State'!X15)/'Sec. G CR Data'!J15),"") ->  | AZ15: =IF($AR15+$AV15+$AN15+'Sec. I Out-of-State'!$X15>'Sec. G CR Data'!$J15,"ERROR: Days exceed total!","") -> 
A16: 6 | B16: ='Sec. G CR Data'!B16 -> 03500 | C16: ='Sec. G CR Data'!C16 -> OTHER SPECIAL CARE UNIT | D16: ='Sec. G CR Data'!M16 -> 0 | AV16: 0 | AY16: =IFERROR(IF(State="California DPH",SUM(AJ16,AN16,AR16,AV16,'Sec. I Out-of-State'!X16)/'Sec. G CR Data'!J16,SUM(AN16,AR16,AV16,'Sec. I Out-of-State'!X16)/'Sec. G CR Data'!J16),"") ->  | AZ16: =IF($AR16+$AV16+$AN16+'Sec. I Out-of-State'!$X16>'Sec. G CR Data'!$J16,"ERROR: Days exceed total!","") -> 
A17: 7 | B17: ='Sec. G CR Data'!B17 -> 04000 | C17: ='Sec. G CR Data'!C17 -> SUBPROVIDER I | D17: ='Sec. G CR Data'!M17 -> 0 | AV17: 0 | AY17: =IFERROR(IF(State="California DPH",SUM(AJ17,AN17,AR17,AV17,'Sec. I Out-of-State'!X17)/'Sec. G CR Data'!J17,SUM(AN17,AR17,AV17,'Sec. I Out-of-State'!X17)/('Sec. G CR Data'!J17-CR_Obs_Days_Sub_1)),"") ->  | AZ17: =IF($AR17+$AV17+$AN17+'Sec. I Out-of-State'!$X17>'Sec. G CR Data'!$J17,"ERROR: Days exceed total!","") -> 
A18: 8 | B18: ='Sec. G CR Data'!B18 -> 04100 | C18: ='Sec. G CR Data'!C18 -> SUBPROVIDER II | D18: ='Sec. G CR Data'!M18 -> 0 | AV18: 0 | AY18: =IFERROR(IF(State="California DPH",SUM(AJ18,AN18,AR18,AV18,'Sec. I Out-of-State'!X18)/'Sec. G CR Data'!J18,SUM(AN18,AR18,AV18,'Sec. I Out-of-State'!X18)/('Sec. G CR Data'!J18-CR_Obs_Days_Sub_2)),"") ->  | AZ18: =IF($AR18+$AV18+$AN18+'Sec. I Out-of-State'!$X18>'Sec. G CR Data'!$J18,"ERROR: Days exceed total!","") -> 
A19: 9 | B19: ='Sec. G CR Data'!B19 -> 04200 | C19: ='Sec. G CR Data'!C19 -> OTHER SUBPROVIDER | D19: ='Sec. G CR Data'!M19 -> 0 | AV19: 0 | AY19: =IFERROR(IF(State="California DPH",SUM(AJ19,AN19,AR19,AV19,'Sec. I Out-of-State'!X19)/'Sec. G CR Data'!J19,SUM(AN19,AR19,AV19,'Sec. I Out-of-State'!X19)/'Sec. G CR Data'!J19),"") ->  | AZ19: =IF($AR19+$AV19+$AN19+'Sec. I Out-of-State'!$X19>'Sec. G CR Data'!$J19,"ERROR: Days exceed total!","") -> 
A20: 10 | B20: =IF('Sec. G CR Data'!B20<>"",'Sec. G CR Data'!B20,"") -> 04300 | C20: =IF('Sec. G CR Data'!C20<>"",'Sec. G CR Data'!C20,"") -> NURSERY | D20: ='Sec. G CR Data'!M20 -> 901.95 | H20: 131 | L20: 1390 | T20: 256 | AR20: 32 | AV20: 1777 | AY20: =IFERROR(IF(State="California DPH",SUM(AJ20,AN20,AR20,AV20,'Sec. I Out-of-State'!X20)/'Sec. G CR Data'!J20,SUM(AN20,AR20,AV20,'Sec. I Out-of-State'!X20)/'Sec. G CR Data'!J20),"") -> 0.7765006386 | AZ20: =IF($AR20+$AV20+$AN20+'Sec. I Out-of-State'!$X20>'Sec. G CR Data'!$J20,"ERROR: Days exceed total!","") -> 
A21: 11 | B21: =IF('Sec. G CR Data'!B21<>"",'Sec. G CR Data'!B21,"") ->  | C21: =IF('Sec. G CR Data'!C21<>"",'Sec. G CR Data'!C21,"") ->  | D21: ='Sec. G CR Data'!M21 -> 0 | AV21: 0 | AY21: =IFERROR(IF(State="California DPH",SUM(AJ21,AN21,AR21,AV21,'Sec. I Out-of-State'!X21)/'Sec. G CR Data'!J21,SUM(AN21,AR21,AV21,'Sec. I Out-of-State'!X21)/'Sec. G CR Data'!J21),"") ->  | AZ21: =IF($AR21+$AV21+$AN21+'Sec. I Out-of-State'!$X21>'Sec. G CR Data'!$J21,"ERROR: Days exceed total!","") -> 
A22: 12 | B22: =IF('Sec. G CR Data'!B22<>"",'Sec. G CR Data'!B22,"") ->  | C22: =IF('Sec. G CR Data'!C22<>"",'Sec. G CR Data'!C22,"") ->  | D22: ='Sec. G CR Data'!M22 -> 0 | AV22: 0 | AY22: =IFERROR(IF(State="California DPH",SUM(AJ22,AN22,AR22,AV22,'Sec. I Out-of-State'!X22)/'Sec. G CR Data'!J22,SUM(AN22,AR22,AV22,'Sec. I Out-of-State'!X22)/'Sec. G CR Data'!J22),"") ->  | AZ22: =IF($AR22+$AV22+$AN22+'Sec. I Out-of-State'!$X22>'Sec. G CR Data'!$J22,"ERROR: Days exceed total!","") -> 
A23: 13 | B23: =IF('Sec. G CR Data'!B23<>"",'Sec. G CR Data'!B23,"") ->  | C23: =IF('Sec. G CR Data'!C23<>"",'Sec. G CR Data'!C23,"") ->  | D23: ='Sec. G CR Data'!M23 -> 0 | AV23: 0 | AY23: =IFERROR(IF(State="California DPH",SUM(AJ23,AN23,AR23,AV23,'Sec. I Out-of-State'!X23)/'Sec. G CR Data'!J23,SUM(AN23,AR23,AV23,'Sec. I Out-of-State'!X23)/'Sec. G CR Data'!J23),"") ->  | AZ23: =IF($AR23+$AV23+$AN23+'Sec. I Out-of-State'!$X23>'Sec. G CR Data'!$J23,"ERROR: Days exceed total!","") -> 
A24: 14 | B24: =IF('Sec. G CR Data'!B24<>"",'Sec. G CR Data'!B24,"") ->  | C24: =IF('Sec. G CR Data'!C24<>"",'Sec. G CR Data'!C24,"") ->  | D24: ='Sec. G CR Data'!M24 -> 0 | AV24: 0 | AY24: =IFERROR(IF(State="California DPH",SUM(AJ24,AN24,AR24,AV24,'Sec. I Out-of-State'!X24)/'Sec. G CR Data'!J24,SUM(AN24,AR24,AV24,'Sec. I Out-of-State'!X24)/'Sec. G CR Data'!J24),"") ->  | AZ24: =IF($AR24+$AV24+$AN24+'Sec. I Out-of-State'!$X24>'Sec. G CR Data'!$J24,"ERROR: Days exceed total!","") -> 
A25: 15 | B25: =IF('Sec. G CR Data'!B25<>"",'Sec. G CR Data'!B25,"") ->  | C25: =IF('Sec. G CR Data'!C25<>"",'Sec. G CR Data'!C25,"") ->  | D25: ='Sec. G CR Data'!M25 -> 0 | AV25: 0 | AY25: =IFERROR(IF(State="California DPH",SUM(AJ25,AN25,AR25,AV25,'Sec. I Out-of-State'!X25)/'Sec. G CR Data'!J25,SUM(AN25,AR25,AV25,'Sec. I Out-of-State'!X25)/'Sec. G CR Data'!J25),"") ->  | AZ25: =IF($AR25+$AV25+$AN25+'Sec. I Out-of-State'!$X25>'Sec. G CR Data'!$J25,"ERROR: Days exceed total!","") -> 
A26: 16 | B26: =IF('Sec. G CR Data'!B26<>"",'Sec. G CR Data'!B26,"") ->  | C26: =IF('Sec. G CR Data'!C26<>"",'Sec. G CR Data'!C26,"") ->  | D26: ='Sec. G CR Data'!M26 -> 0 | AV26: 0 | AY26: =IFERROR(IF(State="California DPH",SUM(AJ26,AN26,AR26,AV26,'Sec. I Out-of-State'!X26)/'Sec. G CR Data'!J26,SUM(AN26,AR26,AV26,'Sec. I Out-of-State'!X26)/'Sec. G CR Data'!J26),"") ->  | AZ26: =IF($AR26+$AV26+$AN26+'Sec. I Out-of-State'!$X26>'Sec. G CR Data'!$J26,"ERROR: Days exceed total!","") -> 
A27: 17 | B27: =IF('Sec. G CR Data'!B27<>"",'Sec. G CR Data'!B27,"") ->  | C27: =IF('Sec. G CR Data'!C27<>"",'Sec. G CR Data'!C27,"") ->  | D27: ='Sec. G CR Data'!M27 -> 0 | AV27: 0 | AY27: =IFERROR(IF(State="California DPH",SUM(AJ27,AN27,AR27,AV27,'Sec. I Out-of-State'!X27)/'Sec. G CR Data'!J27,SUM(AN27,AR27,AV27,'Sec. I Out-of-State'!X27)/'Sec. G CR Data'!J27),"") ->  | AZ27: =IF($AR27+$AV27+$AN27+'Sec. I Out-of-State'!$X27>'Sec. G CR Data'!$J27,"ERROR: Days exceed total!","") -> 
A28: 18 | F28: Total Days | H28: =SUM(H$11:H$27) -> 2460 | L28: =SUM(L$11:L$27) -> 3120 | P28: =SUM(P$11:P$27) -> 2382 | T28: =SUM(T$11:T$27) -> 2181 | X28: =SUM(X$11:X$27) -> 0 | AB28: =SUM(AB$11:AB$27) -> 0 | AF28: =SUM(AF$11:AF$27) -> 0 | AJ28: =SUM(AJ$11:AJ$27) -> 0 | AN28: =SUM(AN$11:AN$27) -> 0 | AR28: =SUM(AR$11:AR$27) -> 2250 | AV28: =SUM(AV$11:AV$27) -> 10143 | AY28: =IFERROR(IF(State="California DPH",SUM(AJ28,AN28,AR28,AV28,'Sec. I Out-of-State'!X28)/'Sec. G CR Data'!J28,SUM(AN28,AR28,AV28,'Sec. I Out-of-State'!X28)/'Sec. G CR Data'!J28),"") -> 0.4105201293 | AZ28: =IF($AR28+$AV28+$AN28+'Sec. I Out-of-State'!$X28>'Sec. G CR Data'!$J28,"ERROR: Days exceed total!","") -> 
A30: 19 | B30: Total Days per PS&R or Exhibit Detail | H30: =+H28 -> 2460 | L30: =+L28 -> 3120 | P30: =+P28 -> 2382 | T30: =+T28 -> 2181 | AR30: =+AR28 -> 2250
A31: 20 | B31: Unreconciled Days (Explain Variance) | H31: =H$28-H$30 -> 0 | L31: =L$28-L$30 -> 0 | P31: =P$28-P$30 -> 0 | T31: =T$28-T$30 -> 0 | X31: =X$28-X$30 -> 0 | AB31: =AB$28-AB$30 -> 0 | AF31: =AF$28-AF$30 -> 0 | AJ31: =AJ$28-AJ$30 -> 0 | AN31: =AN$28-AN$30 -> 0 | AR31: =AR$28-AR$30 -> 0
H33: Routine Charges | L33: Routine Charges | P33: Routine Charges | T33: Routine Charges | X33: Routine Charges | AB33: Routine Charges | AF33: Routine Charges | AJ33: Routine Charges | AN33: Routine Charges | AR33: Routine Charges | AV33: Routine Charges
A34: 21 | C34: Routine Charges | H34: 3374794 | L34: 2759570 | P34: 3501140 | T34: 2801175 | AR34: 3227285 | AV34: =IF(State="California DPH",$T34+$P34+$L34+$H34+$X34+$AB34+$AF34,$T34+$P34+$L34+$H34+$X34+$AB34+$AF34+$AJ34) -> 12436679 | AY34: =IFERROR(IF(State="California DPH",SUM(AJ34,AN34,AR34,AV34,,'Sec. I Out-of-State'!X34)/'Sec. G CR Data'!K28,SUM(AN34,AR34,AV34,,'Sec. I Out-of-State'!X34)/'Sec. G CR Data'!K28),"") -> 0.3631171495
A35: 21.01 | C35: Calculated Routine Charge Per Diem | H35: =IF(H$28>0, H$34/H$28,0) -> 1371.86748 | L35: =IF(L$28>0, L$34/L$28,0) -> 884.4775641 | P35: =IF(P$28>0, P$34/P$28,0) -> 1469.832074 | T35: =IF(T$28>0, T$34/T$28,0) -> 1284.353508 | X35: =IF(X$28>0, X$34/X$28,0) -> 0 | AB35: =IF(AB$28>0, AB$34/AB$28,0) -> 0 | AF35: =IF(AF$28>0, AF$34/AF$28,0) -> 0 | AJ35: =IF(AJ$28>0, AJ$34/AJ$28,0) -> 0 | AN35: =IF(AN$28>0, AN$34/AN$28,0) -> 0 | AR35: =IF(AR$28>0, AR$34/AR$28,0) -> 1434.348889 | AV35: =IF(AV$28>0, AV$34/AV$28,0) -> 1226.134181
B37: Ancillary Cost Centers (from W/S C) (from Section G): | H37: Ancillary Charges | J37: Ancillary Charges | L37: Ancillary Charges | N37: Ancillary Charges | P37: Ancillary Charges | R37: Ancillary Charges | T37: Ancillary Charges | V37: Ancillary Charges | X37: Ancillary Charges | Z37: Ancillary Charges | AB37: Ancillary Charges | AD37: Ancillary Charges | AF37: Ancillary Charges | AH37: Ancillary Charges | AJ37: Ancillary Charges | AL37: Ancillary Charges | AN37: Ancillary Charges | AP37: Ancillary Charges | AR37: Ancillary Charges | AT37: Ancillary Charges | AV37: Ancillary Charges | AX37: Ancillary Charges
A38: 22 | B38: ='Sec. G CR Data'!B32 -> 09200 | C38: ='Sec. G CR Data'!C32 -> Observation (Non-Distinct) | F38: ='Sec. G CR Data'!M32 -> 0.496105 | H38: 11028.8 | J38: 437605.05 | L38: 2059.1 | N38: 257645.25 | P38: 110183.4 | R38: 768365.95 | T38: 88347.9 | V38: 504225.25 | AR38: 5163.7 | AT38: 521106.65 | AV38: =IF(State="California DPH",$T38+$P38+$L38+$H38+$X38+$AB38+$AF38,$T38+$P38+$L38+$H38+$X38+$AB38+$AF38+$AJ38) -> 211619.2 | AX38: =IF(State="California DPH",$V38+$R38+$N38+$J38+$Z38+$AD38+$AH38,$V38+$R38+$N38+$J38+$Z38+$AD38+$AH38+$AL38) -> 1967841.5 | AY38: =IFERROR(IF(State="California DPH",SUM(AJ38,AL38,AN38,AP38,AR38,AT38,AV38,AX38,'Sec. I Out-of-State'!X38,'Sec. I Out-of-State'!Z38)/'Sec. G CR Data'!L32,SUM(AN38,AP38,AR38,AT38,AV38,AX38,'Sec. I Out-of-State'!X38,'Sec. I Out-of-State'!Z38)/'Sec. G CR Data'!L32),"") -> 0.4900351795 | AZ38: =IF($AR38+$AV38+$AT38+$AX38+$AN38+$AP38+'Sec. I Out-of-State'!$X38+'Sec. I Out-of-State'!$Z38>'Sec. G CR Data'!$L32,"ERROR: Charges exceed total!","") -> 
A39: 23 | B39: =IF('Sec. G CR Data'!B36<>"",'Sec. G CR Data'!B36,"") -> 5000 | C39: =IF('Sec. G CR Data'!C36<>"",'Sec. G CR Data'!C36,"") -> OPERATING ROOM | F39: ='Sec. G CR Data'!M36 -> 0.150801 | H39: 1581358.5 | J39: 1836958.15 | L39: 2258148.1 | N39: 6243900.9 | P39: 1789587.75 | R39: 1881606.45 | T39: 1304675.2 | V39: 2033507.05 | AR39: 1594263.15 | AT39: 2053151.1 | AV39: 6933769.55 | AX39: 11995972.55 | AY39: =IFERROR(IF(State="California DPH",SUM(AJ39,AL39,AN39,AP39,AR39,AT39,AV39,AX39,'Sec. I Out-of-State'!X39,'Sec. I Out-of-State'!Z39)/'Sec. G CR Data'!L36,SUM(AN39,AP39,AR39,AT39,AV39,AX39,'Sec. I Out-of-State'!X39,'Sec. I Out-of-State'!Z39)/'Sec. G CR Data'!L36),"") -> 0.3677635622 | AZ39: =IF($AR39+$AV39+$AT39+$AX39+$AN39+$AP39+'Sec. I Out-of-State'!$X39+'Sec. I Out-of-State'!$Z39>'Sec. G CR Data'!$L36,"ERROR: Charges exceed total!","") -> 
A40: 24 | B40: =IF('Sec. G CR Data'!B37<>"",'Sec. G CR Data'!B37,"") -> 5100 | C40: =IF('Sec. G CR Data'!C37<>"",'Sec. G CR Data'!C37,"") -> RECOVERY ROOM | F40: ='Sec. G CR Data'!M37 -> 0.32352 | H40: 118178.75 | J40: 213053.85 | L40: 232587.55 | N40: 527993.85 | P40: 112101.1 | R40: 205023.5 | T40: 98641.3 | V40: 209686.7 | AR40: 140473.5 | AT40: 214393.4 | AV40: 561508.7 | AX40: 1155757.9 | AY40: =IFERROR(IF(State="California DPH",SUM(AJ40,AL40,AN40,AP40,AR40,AT40,AV40,AX40,'Sec. I Out-of-State'!X40,'Sec. I Out-of-State'!Z40)/'Sec. G CR Data'!L37,SUM(AN40,AP40,AR40,AT40,AV40,AX40,'Sec. I Out-of-State'!X40,'Sec. I Out-of-State'!Z40)/'Sec. G CR Data'!L37),"") -> 0.46511876 | AZ40: =IF($AR40+$AV40+$AT40+$AX40+$AN40+$AP40+'Sec. I Out-of-State'!$X40+'Sec. I Out-of-State'!$Z40>'Sec. G CR Data'!$L37,"ERROR: Charges exceed total!","") -> 
A41: 25 | B41: =IF('Sec. G CR Data'!B38<>"",'Sec. G CR Data'!B38,"") -> 5200 | C41: =IF('Sec. G CR Data'!C38<>"",'Sec. G CR Data'!C38,"") -> DELIVERY ROOM & LABOR ROOM | F41: ='Sec. G CR Data'!M38 -> 0.41357 | H41: 253537.5 | J41: 36698.65 | L41: 2525042.85 | N41: 446199.35 | P41: 0 | R41: 375.2 | T41: 646608.7 | V41: 164457.4 | AR41: 48950.05 | AT41: 32091.05 | AV41: 3425189.05 | AX41: 647730.6 | AY41: =IFERROR(IF(State="California DPH",SUM(AJ41,AL41,AN41,AP41,AR41,AT41,AV41,AX41,'Sec. I Out-of-State'!X41,'Sec. I Out-of-State'!Z41)/'Sec. G CR Data'!L38,SUM(AN41,AP41,AR41,AT41,AV41,AX41,'Sec. I Out-of-State'!X41,'Sec. I Out-of-State'!Z41)/'Sec. G CR Data'!L38),"") -> 0.5373131988 | AZ41: =IF($AR41+$AV41+$AT41+$AX41+$AN41+$AP41+'Sec. I Out-of-State'!$X41+'Sec. I Out-of-State'!$Z41>'Sec. G CR Data'!$L38,"ERROR: Charges exceed total!","") -> 
A42: 26 | B42: =IF('Sec. G CR Data'!B39<>"",'Sec. G CR Data'!B39,"") -> 5300 | C42: =IF('Sec. G CR Data'!C39<>"",'Sec. G CR Data'!C39,"") -> ANESTHESIOLOGY | F42: ='Sec. G CR Data'!M39 -> 0.016298 | H42: 385843.95 | J42: 485072.5 | L42: 873581.55 | N42: 1528884.7 | P42: 349421.75 | R42: 435910.65 | T42: 346983.45 | V42: 466169.35 | AR42: 388496.15 | AT42: 497645.2 | AV42: 1955830.7 | AX42: 2916037.2 | AY42: =IFERROR(IF(State="California DPH",SUM(AJ42,AL42,AN42,AP42,AR42,AT42,AV42,AX42,'Sec. I Out-of-State'!X42,'Sec. I Out-of-State'!Z42)/'Sec. G CR Data'!L39,SUM(AN42,AP42,AR42,AT42,AV42,AX42,'Sec. I Out-of-State'!X42,'Sec. I Out-of-State'!Z42)/'Sec. G CR Data'!L39),"") -> 0.3216315255 | AZ42: =IF($AR42+$AV42+$AT42+$AX42+$AN42+$AP42+'Sec. I Out-of-State'!$X42+'Sec. I Out-of-State'!$Z42>'Sec. G CR Data'!$L39,"ERROR: Charges exceed total!","") -> 
A43: 27 | B43: =IF('Sec. G CR Data'!B40<>"",'Sec. G CR Data'!B40,"") -> 5400 | C43: =IF('Sec. G CR Data'!C40<>"",'Sec. G CR Data'!C40,"") -> RADIOLOGY-DIAGNOSTIC | F43: ='Sec. G CR Data'!M40 -> 0.263336 | H43: 351632.77 | J43: 1038939.38 | L43: 184812.9001 | N43: 1668680.973 | P43: 435620.1576 | R43: 1020149.64 | T43: 325065.9517 | V43: 1114531.073 | AR43: 396611.5719 | AT43: 2514313.953 | AV43: 1297131.779 | AX43: 4842301.066 | AY43: =IFERROR(IF(State="California DPH",SUM(AJ43,AL43,AN43,AP43,AR43,AT43,AV43,AX43,'Sec. I Out-of-State'!X43,'Sec. I Out-of-State'!Z43)/'Sec. G CR Data'!L40,SUM(AN43,AP43,AR43,AT43,AV43,AX43,'Sec. I Out-of-State'!X43,'Sec. I Out-of-State'!Z43)/'Sec. G CR Data'!L40),"") -> 0.4477134977 | AZ43: =IF($AR43+$AV43+$AT43+$AX43+$AN43+$AP43+'Sec. I Out-of-State'!$X43+'Sec. I Out-of-State'!$Z43>'Sec. G CR Data'!$L40,"ERROR: Charges exceed total!","") -> 
A44: 28 | B44: =IF('Sec. G CR Data'!B41<>"",'Sec. G CR Data'!B41,"") -> 5500 | C44: =IF('Sec. G CR Data'!C41<>"",'Sec. G CR Data'!C41,"") -> RADIOLOGY-THERAPEUTIC | F44: ='Sec. G CR Data'!M41 -> 0.161964 | H44: 32759.65 | J44: 421227.35 | L44: 15443.6 | N44: 117910.4 | P44: 8663.7 | R44: 1056998.4 | T44: 34387.25 | V44: 1185881.9 | AR44: 4477.4 | AT44: 512255.85 | AV44: 91254.2 | AX44: 2782018.05 | AY44: =IFERROR(IF(State="California DPH",SUM(AJ44,AL44,AN44,AP44,AR44,AT44,AV44,AX44,'Sec. I Out-of-State'!X44,'Sec. I Out-of-State'!Z44)/'Sec. G CR Data'!L41,SUM(AN44,AP44,AR44,AT44,AV44,AX44,'Sec. I Out-of-State'!X44,'Sec. I Out-of-State'!Z44)/'Sec. G CR Data'!L41),"") -> 0.2159301846 | AZ44: =IF($AR44+$AV44+$AT44+$AX44+$AN44+$AP44+'Sec. I Out-of-State'!$X44+'Sec. I Out-of-State'!$Z44>'Sec. G CR Data'!$L41,"ERROR: Charges exceed total!","") -> 
A45: 29 | B45: =IF('Sec. G CR Data'!B42<>"",'Sec. G CR Data'!B42,"") -> 5601 | C45: =IF('Sec. G CR Data'!C42<>"",'Sec. G CR Data'!C42,"") -> NUCLEAR MEDICINE | F45: ='Sec. G CR Data'!M42 -> 0.200358 | H45: 80669.15 | J45: 164249.45 | L45: 17892.15 | N45: 83321.95 | P45: 129783.85 | R45: 274042.1 | T45: 77691.55 | V45: 306586.45 | AR45: 145707.85 | AT45: 423578.2 | AV45: 306036.7 | AX45: 828199.95 | AY45: =IFERROR(IF(State="California DPH",SUM(AJ45,AL45,AN45,AP45,AR45,AT45,AV45,AX45,'Sec. I Out-of-State'!X45,'Sec. I Out-of-State'!Z45)/'Sec. G CR Data'!L42,SUM(AN45,AP45,AR45,AT45,AV45,AX45,'Sec. I Out-of-State'!X45,'Sec. I Out-of-State'!Z45)/'Sec. G CR Data'!L42),"") -> 0.249346854 | AZ45: =IF($AR45+$AV45+$AT45+$AX45+$AN45+$AP45+'Sec. I Out-of-State'!$X45+'Sec. I Out-of-State'!$Z45>'Sec. G CR Data'!$L42,"ERROR: Charges exceed total!","") -> 
A46: 30 | B46: =IF('Sec. G CR Data'!B43<>"",'Sec. G CR Data'!B43,"") -> 5700 | C46: =IF('Sec. G CR Data'!C43<>"",'Sec. G CR Data'!C43,"") -> CT SCAN | F46: ='Sec. G CR Data'!M43 -> 0.052963 | H46: 676098.7 | J46: 977780.2 | L46: 158034.5 | N46: 1154249.7 | P46: 773764.7 | R46: 1446721.1 | T46: 460941 | V46: 1101566 | AR46: 1032050.1 | AT46: 3861844.75 | AV46: 2068838.9 | AX46: 4680317 | AY46: =IFERROR(IF(State="California DPH",SUM(AJ46,AL46,AN46,AP46,AR46,AT46,AV46,AX46,'Sec. I Out-of-State'!X46,'Sec. I Out-of-State'!Z46)/'Sec. G CR Data'!L43,SUM(AN46,AP46,AR46,AT46,AV46,AX46,'Sec. I Out-of-State'!X46,'Sec. I Out-of-State'!Z46)/'Sec. G CR Data'!L43),"") -> 0.3806512929 | AZ46: =IF($AR46+$AV46+$AT46+$AX46+$AN46+$AP46+'Sec. I Out-of-State'!$X46+'Sec. I Out-of-State'!$Z46>'Sec. G CR Data'!$L43,"ERROR: Charges exceed total!","") -> 
A47: 31 | B47: =IF('Sec. G CR Data'!B44<>"",'Sec. G CR Data'!B44,"") -> 5800 | C47: =IF('Sec. G CR Data'!C44<>"",'Sec. G CR Data'!C44,"") -> MRI | F47: ='Sec. G CR Data'!M44 -> 0.178146 | H47: 77100 | J47: 98295 | L47: 14840 | N47: 62530 | P47: 91900 | R47: 164160 | T47: 66110 | V47: 134265 | AR47: 124520 | AT47: 115656.5 | AV47: 249950 | AX47: 459250 | AY47: =IFERROR(IF(State="California DPH",SUM(AJ47,AL47,AN47,AP47,AR47,AT47,AV47,AX47,'Sec. I Out-of-State'!X47,'Sec. I Out-of-State'!Z47)/'Sec. G CR Data'!L44,SUM(AN47,AP47,AR47,AT47,AV47,AX47,'Sec. I Out-of-State'!X47,'Sec. I Out-of-State'!Z47)/'Sec. G CR Data'!L44),"") -> 0.2061961902 | AZ47: =IF($AR47+$AV47+$AT47+$AX47+$AN47+$AP47+'Sec. I Out-of-State'!$X47+'Sec. I Out-of-State'!$Z47>'Sec. G CR Data'!$L44,"ERROR: Charges exceed total!","") -> 
A48: 32 | B48: =IF('Sec. G CR Data'!B45<>"",'Sec. G CR Data'!B45,"") -> 5900 | C48: =IF('Sec. G CR Data'!C45<>"",'Sec. G CR Data'!C45,"") -> CARDIAC CATHETERIZATION | F48: ='Sec. G CR Data'!M45 -> 0.09924 | H48: 338602.15 | J48: 450640.77 | L48: 80382.32669 | N48: 191781.938 | P48: 429088.2351 | R48: 688478.8053 | T48: 422638.3948 | V48: 581173.9732 | AR48: 672250.9498 | AT48: 756383.5633 | AV48: 1270711.107 | AX48: 1912075.486 | AY48: =IFERROR(IF(State="California DPH",SUM(AJ48,AL48,AN48,AP48,AR48,AT48,AV48,AX48,'Sec. I Out-of-State'!X48,'Sec. I Out-of-State'!Z48)/'Sec. G CR Data'!L45,SUM(AN48,AP48,AR48,AT48,AV48,AX48,'Sec. I Out-of-State'!X48,'Sec. I Out-of-State'!Z48)/'Sec. G CR Data'!L45),"") -> 0.1935473595 | AZ48: =IF($AR48+$AV48+$AT48+$AX48+$AN48+$AP48+'Sec. I Out-of-State'!$X48+'Sec. I Out-of-State'!$Z48>'Sec. G CR Data'!$L45,"ERROR: Charges exceed total!","") -> 
A49: 33 | B49: =IF('Sec. G CR Data'!B46<>"",'Sec. G CR Data'!B46,"") -> 6000 | C49: =IF('Sec. G CR Data'!C46<>"",'Sec. G CR Data'!C46,"") -> LABORATORY | F49: ='Sec. G CR Data'!M46 -> 0.153979 | H49: 2155004.65 | J49: 2651862.71 | L49: 1654330.59 | N49: 4185956.82 | P49: 2479722.32 | R49: 2292980.47 | T49: 1725261.01 | V49: 1971124.34 | AR49: 2288821.21 | AT49: 5529879.78 | AV49: 8014318.57 | AX49: 11101924.34 | AY49: =IFERROR(IF(State="California DPH",SUM(AJ49,AL49,AN49,AP49,AR49,AT49,AV49,AX49,'Sec. I Out-of-State'!X49,'Sec. I Out-of-State'!Z49)/'Sec. G CR Data'!L46,SUM(AN49,AP49,AR49,AT49,AV49,AX49,'Sec. I Out-of-State'!X49,'Sec. I Out-of-State'!Z49)/'Sec. G CR Data'!L46),"") -> 0.4660866915 | AZ49: =IF($AR49+$AV49+$AT49+$AX49+$AN49+$AP49+'Sec. I Out-of-State'!$X49+'Sec. I Out-of-State'!$Z49>'Sec. G CR Data'!$L46,"ERROR: Charges exceed total!","") -> 
A50: 34 | B50: =IF('Sec. G CR Data'!B47<>"",'Sec. G CR Data'!B47,"") -> 6500 | C50: =IF('Sec. G CR Data'!C47<>"",'Sec. G CR Data'!C47,"") -> RESPIRATORY THERAPY | F50: ='Sec. G CR Data'!M47 -> 0.252205 | H50: 542754.05 | J50: 137115.84 | L50: 174086.2697 | N50: 157923.45 | P50: 620649.578 | R50: 80152.85 | T50: 507680.2741 | V50: 108792.2 | AR50: 423348.2111 | AT50: 179152.85 | AV50: 1845170.172 | AX50: 483984.34 | AY50: =IFERROR(IF(State="California DPH",SUM(AJ50,AL50,AN50,AP50,AR50,AT50,AV50,AX50,'Sec. I Out-of-State'!X50,'Sec. I Out-of-State'!Z50)/'Sec. G CR Data'!L47,SUM(AN50,AP50,AR50,AT50,AV50,AX50,'Sec. I Out-of-State'!X50,'Sec. I Out-of-State'!Z50)/'Sec. G CR Data'!L47),"") -> 0.2604189872 | AZ50: =IF($AR50+$AV50+$AT50+$AX50+$AN50+$AP50+'Sec. I Out-of-State'!$X50+'Sec. I Out-of-State'!$Z50>'Sec. G CR Data'!$L47,"ERROR: Charges exceed total!","") -> 
A51: 35 | B51: =IF('Sec. G CR Data'!B48<>"",'Sec. G CR Data'!B48,"") -> 6600 | C51: =IF('Sec. G CR Data'!C48<>"",'Sec. G CR Data'!C48,"") -> PHYSICAL THERAPY | F51: ='Sec. G CR Data'!M48 -> 0.36539 | H51: 107950.5 | J51: 17298.8 | L51: 95208.73 | N51: 98296 | P51: 145411.8 | R51: 161536.69 | T51: 129481.26 | V51: 264532.67 | AR51: 78700.9 | AT51: 123896.62 | AV51: 478052.29 | AX51: 541664.16 | AY51: =IFERROR(IF(State="California DPH",SUM(AJ51,AL51,AN51,AP51,AR51,AT51,AV51,AX51,'Sec. I Out-of-State'!X51,'Sec. I Out-of-State'!Z51)/'Sec. G CR Data'!L48,SUM(AN51,AP51,AR51,AT51,AV51,AX51,'Sec. I Out-of-State'!X51,'Sec. I Out-of-State'!Z51)/'Sec. G CR Data'!L48),"") -> 0.131744767 | AZ51: =IF($AR51+$AV51+$AT51+$AX51+$AN51+$AP51+'Sec. I Out-of-State'!$X51+'Sec. I Out-of-State'!$Z51>'Sec. G CR Data'!$L48,"ERROR: Charges exceed total!","") -> 
A52: 36 | B52: =IF('Sec. G CR Data'!B49<>"",'Sec. G CR Data'!B49,"") -> 6800 | C52: =IF('Sec. G CR Data'!C49<>"",'Sec. G CR Data'!C49,"") -> SPEECH PATHOLOGY | F52: ='Sec. G CR Data'!M49 -> 0.452146 | H52: 7623.1 | J52: 1046.4 | L52: 0 | N52: 47876.45 | P52: 0 | R52: 2958.2 | T52: 0 | V52: 13483.9 | AR52: 0 | AT52: 189135.56 | AV52: 7623.1 | AX52: 65364.95 | AY52: =IFERROR(IF(State="California DPH",SUM(AJ52,AL52,AN52,AP52,AR52,AT52,AV52,AX52,'Sec. I Out-of-State'!X52,'Sec. I Out-of-State'!Z52)/'Sec. G CR Data'!L49,SUM(AN52,AP52,AR52,AT52,AV52,AX52,'Sec. I Out-of-State'!X52,'Sec. I Out-of-State'!Z52)/'Sec. G CR Data'!L49),"") -> 0.5300425786 | AZ52: =IF($AR52+$AV52+$AT52+$AX52+$AN52+$AP52+'Sec. I Out-of-State'!$X52+'Sec. I Out-of-State'!$Z52>'Sec. G CR Data'!$L49,"ERROR: Charges exceed total!","") -> 
A53: 37 | B53: =IF('Sec. G CR Data'!B50<>"",'Sec. G CR Data'!B50,"") -> 6900 | C53: =IF('Sec. G CR Data'!C50<>"",'Sec. G CR Data'!C50,"") -> ELECTROCARDIOLOGY | F53: ='Sec. G CR Data'!M50 -> 0.048252 | H53: 204978.25 | J53: 286309.45 | L53: 64630.3 | N53: 298162.55 | P53: 329505.1 | R53: 438569.9 | T53: 250122.85 | V53: 330368.1 | AR53: 317334.65 | AT53: 923778.1 | AV53: 849236.5 | AX53: 1353410 | AY53: =IFERROR(IF(State="California DPH",SUM(AJ53,AL53,AN53,AP53,AR53,AT53,AV53,AX53,'Sec. I Out-of-State'!X53,'Sec. I Out-of-State'!Z53)/'Sec. G CR Data'!L50,SUM(AN53,AP53,AR53,AT53,AV53,AX53,'Sec. I Out-of-State'!X53,'Sec. I Out-of-State'!Z53)/'Sec. G CR Data'!L50),"") -> 0.4343233498 | AZ53: =IF($AR53+$AV53+$AT53+$AX53+$AN53+$AP53+'Sec. I Out-of-State'!$X53+'Sec. I Out-of-State'!$Z53>'Sec. G CR Data'!$L50,"ERROR: Charges exceed total!","") -> 
A54: 38 | B54: =IF('Sec. G CR Data'!B51<>"",'Sec. G CR Data'!B51,"") -> 7000 | C54: =IF('Sec. G CR Data'!C51<>"",'Sec. G CR Data'!C51,"") -> ELECTROENCEPHALOGRAPHY | F54: ='Sec. G CR Data'!M51 -> 1.572732 | H54: 8509.55 | J54: 1614.7 | L54: 855.8 | N54: 11738.95 | P54: 5306 | R54: 3326.3 | T54: 4989.45 | V54: 1663.15 | AR54: 5748.35 | AT54: 2518.95 | AV54: 19660.8 | AX54: 18343.1 | AY54: =IFERROR(IF(State="California DPH",SUM(AJ54,AL54,AN54,AP54,AR54,AT54,AV54,AX54,'Sec. I Out-of-State'!X54,'Sec. I Out-of-State'!Z54)/'Sec. G CR Data'!L51,SUM(AN54,AP54,AR54,AT54,AV54,AX54,'Sec. I Out-of-State'!X54,'Sec. I Out-of-State'!Z54)/'Sec. G CR Data'!L51),"") -> 0.3474309398 | AZ54: =IF($AR54+$AV54+$AT54+$AX54+$AN54+$AP54+'Sec. I Out-of-State'!$X54+'Sec. I Out-of-State'!$Z54>'Sec. G CR Data'!$L51,"ERROR: Charges exceed total!","") -> 
A55: 39 | B55: =IF('Sec. G CR Data'!B52<>"",'Sec. G CR Data'!B52,"") -> 7100 | C55: =IF('Sec. G CR Data'!C52<>"",'Sec. G CR Data'!C52,"") -> MEDICAL SUPPLIES CHARGED TO PATIENT | F55: ='Sec. G CR Data'!M52 -> 0.588098 | H55: 578643.74 | J55: 420851.92 | L55: 516455 | N55: 525799.01 | P55: 747702.72 | R55: 559202.86 | T55: 568444.03 | V55: 518437.42 | AR55: 556363.53 | AT55: 593194.36 | AV55: 2411245.49 | AX55: 2024291.21 | AY55: =IFERROR(IF(State="California DPH",SUM(AJ55,AL55,AN55,AP55,AR55,AT55,AV55,AX55,'Sec. I Out-of-State'!X55,'Sec. I Out-of-State'!Z55)/'Sec. G CR Data'!L52,SUM(AN55,AP55,AR55,AT55,AV55,AX55,'Sec. I Out-of-State'!X55,'Sec. I Out-of-State'!Z55)/'Sec. G CR Data'!L52),"") -> 0.2831812956 | AZ55: =IF($AR55+$AV55+$AT55+$AX55+$AN55+$AP55+'Sec. I Out-of-State'!$X55+'Sec. I Out-of-State'!$Z55>'Sec. G CR Data'!$L52,"ERROR: Charges exceed total!","") -> 
A56: 40 | B56: =IF('Sec. G CR Data'!B53<>"",'Sec. G CR Data'!B53,"") -> 7200 | C56: =IF('Sec. G CR Data'!C53<>"",'Sec. G CR Data'!C53,"") -> IMPL. DEV. CHARGED TO PATIENTS | F56: ='Sec. G CR Data'!M53 -> 0.383899 | H56: 281674.75 | J56: 0 | L56: 84313.1 | N56: 29561.17 | P56: 403570.68 | R56: 307940.14 | T56: 197449.05 | V56: 194792.22 | AR56: 233491.81 | AT56: 162685.88 | AV56: 967007.58 | AX56: 532293.53 | AY56: =IFERROR(IF(State="California DPH",SUM(AJ56,AL56,AN56,AP56,AR56,AT56,AV56,AX56,'Sec. I Out-of-State'!X56,'Sec. I Out-of-State'!Z56)/'Sec. G CR Data'!L53,SUM(AN56,AP56,AR56,AT56,AV56,AX56,'Sec. I Out-of-State'!X56,'Sec. I Out-of-State'!Z56)/'Sec. G CR Data'!L53),"") -> 0.2105313626 | AZ56: =IF($AR56+$AV56+$AT56+$AX56+$AN56+$AP56+'Sec. I Out-of-State'!$X56+'Sec. I Out-of-State'!$Z56>'Sec. G CR Data'!$L53,"ERROR: Charges exceed total!","") -> 
A57: 41 | B57: =IF('Sec. G CR Data'!B54<>"",'Sec. G CR Data'!B54,"") -> 7300 | C57: =IF('Sec. G CR Data'!C54<>"",'Sec. G CR Data'!C54,"") -> DRUGS CHARGED TO PATIENTS | F57: ='Sec. G CR Data'!M54 -> 0.429704 | H57: 1559776.82 | J57: 1612453.75 | L57: 1266172.6 | N57: 1279830.5 | P57: 1676742.41 | R57: 1203615.88 | T57: 1237510.65 | V57: 2155949.33 | AR57: 1410270.06 | AT57: 1814720.19 | AV57: 5740202.48 | AX57: 6251849.46 | AY57: =IFERROR(IF(State="California DPH",SUM(AJ57,AL57,AN57,AP57,AR57,AT57,AV57,AX57,'Sec. I Out-of-State'!X57,'Sec. I Out-of-State'!Z57)/'Sec. G CR Data'!L54,SUM(AN57,AP57,AR57,AT57,AV57,AX57,'Sec. I Out-of-State'!X57,'Sec. I Out-of-State'!Z57)/'Sec. G CR Data'!L54),"") -> 0.3275363677 | AZ57: =IF($AR57+$AV57+$AT57+$AX57+$AN57+$AP57+'Sec. I Out-of-State'!$X57+'Sec. I Out-of-State'!$Z57>'Sec. G CR Data'!$L54,"ERROR: Charges exceed total!","") -> 
A58: 42 | B58: =IF('Sec. G CR Data'!B55<>"",'Sec. G CR Data'!B55,"") -> 7400 | C58: =IF('Sec. G CR Data'!C55<>"",'Sec. G CR Data'!C55,"") -> RENAL DIALYSIS | F58: ='Sec. G CR Data'!M55 -> 0.821694 | H58: 75819.6 | J58: 0 | L58: 2256.3 | N58: 748.5 | P58: 164924.7 | R58: 35547 | T58: 70427.1 | V58: 6683.7 | AR58: 9606.9 | AT58: 0 | AV58: 313427.7 | AX58: 42979.2 | AY58: =IFERROR(IF(State="California DPH",SUM(AJ58,AL58,AN58,AP58,AR58,AT58,AV58,AX58,'Sec. I Out-of-State'!X58,'Sec. I Out-of-State'!Z58)/'Sec. G CR Data'!L55,SUM(AN58,AP58,AR58,AT58,AV58,AX58,'Sec. I Out-of-State'!X58,'Sec. I Out-of-State'!Z58)/'Sec. G CR Data'!L55),"") -> 0.554978708 | AZ58: =IF($AR58+$AV58+$AT58+$AX58+$AN58+$AP58+'Sec. I Out-of-State'!$X58+'Sec. I Out-of-State'!$Z58>'Sec. G CR Data'!$L55,"ERROR: Charges exceed total!","") -> 
A59: 43 | B59: =IF('Sec. G CR Data'!B56<>"",'Sec. G CR Data'!B56,"") -> 7600 | C59: =IF('Sec. G CR Data'!C56<>"",'Sec. G CR Data'!C56,"") -> CARDIOVASCULAR MEDICINE | F59: ='Sec. G CR Data'!M56 -> 0.180886 | H59: 223313.13 | J59: 272448.97 | L59: 72069.95365 | N59: 161440.0395 | P59: 356365.3301 | R59: 349473.8042 | T59: 342106.9802 | V59: 308928.9535 | AR59: 528541.4184 | AT59: 311908.0837 | AV59: 993855.3939 | AX59: 1092291.767 | AY59: =IFERROR(IF(State="California DPH",SUM(AJ59,AL59,AN59,AP59,AR59,AT59,AV59,AX59,'Sec. I Out-of-State'!X59,'Sec. I Out-of-State'!Z59)/'Sec. G CR Data'!L56,SUM(AN59,AP59,AR59,AT59,AV59,AX59,'Sec. I Out-of-State'!X59,'Sec. I Out-of-State'!Z59)/'Sec. G CR Data'!L56),"") -> 0.21949562 | AZ59: =IF($AR59+$AV59+$AT59+$AX59+$AN59+$AP59+'Sec. I Out-of-State'!$X59+'Sec. I Out-of-State'!$Z59>'Sec. G CR Data'!$L56,"ERROR: Charges exceed total!","") -> 
A60: 44 | B60: =IF('Sec. G CR Data'!B57<>"",'Sec. G CR Data'!B57,"") -> 9000 | C60: =IF('Sec. G CR Data'!C57<>"",'Sec. G CR Data'!C57,"") -> CLINIC | F60: ='Sec. G CR Data'!M57 -> 1.308524 | H60: 0 | J60: 0 | L60: 0 | N60: 0 | P60: 0 | R60: 0 | T60: 0 | V60: 0 | AR60: 0 | AT60: 0 | AV60: 0 | AX60: 0 | AY60: =IFERROR(IF(State="California DPH",SUM(AJ60,AL60,AN60,AP60,AR60,AT60,AV60,AX60,'Sec. I Out-of-State'!X60,'Sec. I Out-of-State'!Z60)/'Sec. G CR Data'!L57,SUM(AN60,AP60,AR60,AT60,AV60,AX60,'Sec. I Out-of-State'!X60,'Sec. I Out-of-State'!Z60)/'Sec. G CR Data'!L57),"") -> 0 | AZ60: =IF($AR60+$AV60+$AT60+$AX60+$AN60+$AP60+'Sec. I Out-of-State'!$X60+'Sec. I Out-of-State'!$Z60>'Sec. G CR Data'!$L57,"ERROR: Charges exceed total!","") -> 
A61: 45 | B61: =IF('Sec. G CR Data'!B58<>"",'Sec. G CR Data'!B58,"") -> 9001 | C61: =IF('Sec. G CR Data'!C58<>"",'Sec. G CR Data'!C58,"") -> NUTRITION | F61: ='Sec. G CR Data'!M58 -> 0.576256 | H61: 0 | J61: 329.56 | L61: 0 | N61: 0 | P61: 0 | R61: 0 | T61: 0 | V61: 0 | AR61: 0 | AT61: 0 | AV61: 0 | AX61: 329.56 | AY61: =IFERROR(IF(State="California DPH",SUM(AJ61,AL61,AN61,AP61,AR61,AT61,AV61,AX61,'Sec. I Out-of-State'!X61,'Sec. I Out-of-State'!Z61)/'Sec. G CR Data'!L58,SUM(AN61,AP61,AR61,AT61,AV61,AX61,'Sec. I Out-of-State'!X61,'Sec. I Out-of-State'!Z61)/'Sec. G CR Data'!L58),"") -> 0.01247199516 | AZ61: =IF($AR61+$AV61+$AT61+$AX61+$AN61+$AP61+'Sec. I Out-of-State'!$X61+'Sec. I Out-of-State'!$Z61>'Sec. G CR Data'!$L58,"ERROR: Charges exceed total!","") -> 
A62: 46 | B62: =IF('Sec. G CR Data'!B59<>"",'Sec. G CR Data'!B59,"") -> 9002 | C62: =IF('Sec. G CR Data'!C59<>"",'Sec. G CR Data'!C59,"") -> WOUND CARE CENTER | F62: ='Sec. G CR Data'!M59 -> 0.373834 | H62: 11378.65 | J62: 6771.8 | L62: 3768.25 | N62: 47350.2 | P62: 14695.05 | R62: 157924.35 | T62: 9061.9 | V62: 143806.25 | AR62: 19108.7 | AT62: 35264.75 | AV62: 38903.85 | AX62: 355852.6 | AY62: =IFERROR(IF(State="California DPH",SUM(AJ62,AL62,AN62,AP62,AR62,AT62,AV62,AX62,'Sec. I Out-of-State'!X62,'Sec. I Out-of-State'!Z62)/'Sec. G CR Data'!L59,SUM(AN62,AP62,AR62,AT62,AV62,AX62,'Sec. I Out-of-State'!X62,'Sec. I Out-of-State'!Z62)/'Sec. G CR Data'!L59),"") -> 0.1352076174 | AZ62: =IF($AR62+$AV62+$AT62+$AX62+$AN62+$AP62+'Sec. I Out-of-State'!$X62+'Sec. I Out-of-State'!$Z62>'Sec. G CR Data'!$L59,"ERROR: Charges exceed total!","") -> 
A63: 47 | B63: =IF('Sec. G CR Data'!B60<>"",'Sec. G CR Data'!B60,"") -> 9100 | C63: =IF('Sec. G CR Data'!C60<>"",'Sec. G CR Data'!C60,"") -> EMERGENCY | F63: ='Sec. G CR Data'!M60 -> 0.134409 | H63: 875364.85 | J63: 4222916.79 | L63: 207610.4 | N63: 8752384.4 | P63: 1018883.25 | R63: 2883958.35 | T63: 652918.2 | V63: 2904214.2 | AR63: 1138738.7 | AT63: 15346602.9 | AV63: 2754776.7 | AX63: 18763473.74 | AY63: =IFERROR(IF(State="California DPH",SUM(AJ63,AL63,AN63,AP63,AR63,AT63,AV63,AX63,'Sec. I Out-of-State'!X63,'Sec. I Out-of-State'!Z63)/'Sec. G CR Data'!L60,SUM(AN63,AP63,AR63,AT63,AV63,AX63,'Sec. I Out-of-State'!X63,'Sec. I Out-of-State'!Z63)/'Sec. G CR Data'!L60),"") -> 0.5742764726 | AZ63: =IF($AR63+$AV63+$AT63+$AX63+$AN63+$AP63+'Sec. I Out-of-State'!$X63+'Sec. I Out-of-State'!$Z63>'Sec. G CR Data'!$L60,"ERROR: Charges exceed total!","") -> 
A64: 48 | B64: =IF('Sec. G CR Data'!B61<>"",'Sec. G CR Data'!B61,"") ->  | C64: =IF('Sec. G CR Data'!C61<>"",'Sec. G CR Data'!C61,"") ->  | F64: ='Sec. G CR Data'!M61 -> 0 | AV64: 0 | AX64: 0 | AY64: =IFERROR(IF(State="California DPH",SUM(AJ64,AL64,AN64,AP64,AR64,AT64,AV64,AX64,'Sec. I Out-of-State'!X64,'Sec. I Out-of-State'!Z64)/'Sec. G CR Data'!L61,SUM(AN64,AP64,AR64,AT64,AV64,AX64,'Sec. I Out-of-State'!X64,'Sec. I Out-of-State'!Z64)/'Sec. G CR Data'!L61),"") ->  | AZ64: =IF($AR64+$AV64+$AT64+$AX64+$AN64+$AP64+'Sec. I Out-of-State'!$X64+'Sec. I Out-of-State'!$Z64>'Sec. G CR Data'!$L61,"ERROR: Charges exceed total!","") -> 
A65: 49 | B65: =IF('Sec. G CR Data'!B62<>"",'Sec. G CR Data'!B62,"") ->  | C65: =IF('Sec. G CR Data'!C62<>"",'Sec. G CR Data'!C62,"") ->  | F65: ='Sec. G CR Data'!M62 -> 0 | AV65: 0 | AX65: 0 | AY65: =IFERROR(IF(State="California DPH",SUM(AJ65,AL65,AN65,AP65,AR65,AT65,AV65,AX65,'Sec. I Out-of-State'!X65,'Sec. I Out-of-State'!Z65)/'Sec. G CR Data'!L62,SUM(AN65,AP65,AR65,AT65,AV65,AX65,'Sec. I Out-of-State'!X65,'Sec. I Out-of-State'!Z65)/'Sec. G CR Data'!L62),"") ->  | AZ65: =IF($AR65+$AV65+$AT65+$AX65+$AN65+$AP65+'Sec. I Out-of-State'!$X65+'Sec. I Out-of-State'!$Z65>'Sec. G CR Data'!$L62,"ERROR: Charges exceed total!","") -> 
A66: 50 | B66: =IF('Sec. G CR Data'!B63<>"",'Sec. G CR Data'!B63,"") ->  | C66: =IF('Sec. G CR Data'!C63<>"",'Sec. G CR Data'!C63,"") ->  | F66: ='Sec. G CR Data'!M63 -> 0 | AV66: 0 | AX66: 0 | AY66: =IFERROR(IF(State="California DPH",SUM(AJ66,AL66,AN66,AP66,AR66,AT66,AV66,AX66,'Sec. I Out-of-State'!X66,'Sec. I Out-of-State'!Z66)/'Sec. G CR Data'!L63,SUM(AN66,AP66,AR66,AT66,AV66,AX66,'Sec. I Out-of-State'!X66,'Sec. I Out-of-State'!Z66)/'Sec. G CR Data'!L63),"") ->  | AZ66: =IF($AR66+$AV66+$AT66+$AX66+$AN66+$AP66+'Sec. I Out-of-State'!$X66+'Sec. I Out-of-State'!$Z66>'Sec. G CR Data'!$L63,"ERROR: Charges exceed total!","") -> 
A67: 51 | B67: =IF('Sec. G CR Data'!B64<>"",'Sec. G CR Data'!B64,"") ->  | C67: =IF('Sec. G CR Data'!C64<>"",'Sec. G CR Data'!C64,"") ->  | F67: ='Sec. G CR Data'!M64 -> 0 | AV67: 0 | AX67: 0 | AY67: =IFERROR(IF(State="California DPH",SUM(AJ67,AL67,AN67,AP67,AR67,AT67,AV67,AX67,'Sec. I Out-of-State'!X67,'Sec. I Out-of-State'!Z67)/'Sec. G CR Data'!L64,SUM(AN67,AP67,AR67,AT67,AV67,AX67,'Sec. I Out-of-State'!X67,'Sec. I Out-of-State'!Z67)/'Sec. G CR Data'!L64),"") ->  | AZ67: =IF($AR67+$AV67+$AT67+$AX67+$AN67+$AP67+'Sec. I Out-of-State'!$X67+'Sec. I Out-of-State'!$Z67>'Sec. G CR Data'!$L64,"ERROR: Charges exceed total!","") -> 
A68: 52 | B68: =IF('Sec. G CR Data'!B65<>"",'Sec. G CR Data'!B65,"") ->  | C68: =IF('Sec. G CR Data'!C65<>"",'Sec. G CR Data'!C65,"") ->  | F68: ='Sec. G CR Data'!M65 -> 0 | AV68: 0 | AX68: 0 | AY68: =IFERROR(IF(State="California DPH",SUM(AJ68,AL68,AN68,AP68,AR68,AT68,AV68,AX68,'Sec. I Out-of-State'!X68,'Sec. I Out-of-State'!Z68)/'Sec. G CR Data'!L65,SUM(AN68,AP68,AR68,AT68,AV68,AX68,'Sec. I Out-of-State'!X68,'Sec. I Out-of-State'!Z68)/'Sec. G CR Data'!L65),"") ->  | AZ68: =IF($AR68+$AV68+$AT68+$AX68+$AN68+$AP68+'Sec. I Out-of-State'!$X68+'Sec. I Out-of-State'!$Z68>'Sec. G CR Data'!$L65,"ERROR: Charges exceed total!","") -> 
A69: 53 | B69: =IF('Sec. G CR Data'!B66<>"",'Sec. G CR Data'!B66,"") ->  | C69: =IF('Sec. G CR Data'!C66<>"",'Sec. G CR Data'!C66,"") ->  | F69: ='Sec. G CR Data'!M66 -> 0 | AV69: 0 | AX69: 0 | AY69: =IFERROR(IF(State="California DPH",SUM(AJ69,AL69,AN69,AP69,AR69,AT69,AV69,AX69,'Sec. I Out-of-State'!X69,'Sec. I Out-of-State'!Z69)/'Sec. G CR Data'!L66,SUM(AN69,AP69,AR69,AT69,AV69,AX69,'Sec. I Out-of-State'!X69,'Sec. I Out-of-State'!Z69)/'Sec. G CR Data'!L66),"") ->  | AZ69: =IF($AR69+$AV69+$AT69+$AX69+$AN69+$AP69+'Sec. I Out-of-State'!$X69+'Sec. I Out-of-State'!$Z69>'Sec. G CR Data'!$L66,"ERROR: Charges exceed total!","") -> 
A70: 54 | B70: =IF('Sec. G CR Data'!B67<>"",'Sec. G CR Data'!B67,"") ->  | C70: =IF('Sec. G CR Data'!C67<>"",'Sec. G CR Data'!C67,"") ->  | F70: ='Sec. G CR Data'!M67 -> 0 | AV70: =IF(State="California DPH",$T70+$P70+$L70+$H70+$X70+$AB70+$AF70,$T70+$P70+$L70+$H70+$X70+$AB70+$AF70+$AJ70) -> 0 | AX70: =IF(State="California DPH",$V70+$R70+$N70+$J70+$Z70+$AD70+$AH70,$V70+$R70+$N70+$J70+$Z70+$AD70+$AH70+$AL70) -> 0 | AY70: =IFERROR(IF(State="California DPH",SUM(AJ70,AL70,AN70,AP70,AR70,AT70,AV70,AX70,'Sec. I Out-of-State'!X70,'Sec. I Out-of-State'!Z70)/'Sec. G CR Data'!L67,SUM(AN70,AP70,AR70,AT70,AV70,AX70,'Sec. I Out-of-State'!X70,'Sec. I Out-of-State'!Z70)/'Sec. G CR Data'!L67),"") ->  | AZ70: =IF($AR70+$AV70+$AT70+$AX70+$AN70+$AP70+'Sec. I Out-of-State'!$X70+'Sec. I Out-of-State'!$Z70>'Sec. G CR Data'!$L67,"ERROR: Charges exceed total!","") -> 
A71: 55 | B71: =IF('Sec. G CR Data'!B68<>"",'Sec. G CR Data'!B68,"") ->  | C71: =IF('Sec. G CR Data'!C68<>"",'Sec. G CR Data'!C68,"") ->  | F71: ='Sec. G CR Data'!M68 -> 0 | AV71: 0 | AX71: 0 | AY71: =IFERROR(IF(State="California DPH",SUM(AJ71,AL71,AN71,AP71,AR71,AT71,AV71,AX71,'Sec. I Out-of-State'!X71,'Sec. I Out-of-State'!Z71)/'Sec. G CR Data'!L68,SUM(AN71,AP71,AR71,AT71,AV71,AX71,'Sec. I Out-of-State'!X71,'Sec. I Out-of-State'!Z71)/'Sec. G CR Data'!L68),"") ->  | AZ71: =IF($AR71+$AV71+$AT71+$AX71+$AN71+$AP71+'Sec. I Out-of-State'!$X71+'Sec. I Out-of-State'!$Z71>'Sec. G CR Data'!$L68,"ERROR: Charges exceed total!","") -> 
A72: 56 | B72: =IF('Sec. G CR Data'!B69<>"",'Sec. G CR Data'!B69,"") ->  | C72: =IF('Sec. G CR Data'!C69<>"",'Sec. G CR Data'!C69,"") ->  | F72: ='Sec. G CR Data'!M69 -> 0 | AV72: 0 | AX72: 0 | AY72: =IFERROR(IF(State="California DPH",SUM(AJ72,AL72,AN72,AP72,AR72,AT72,AV72,AX72,'Sec. I Out-of-State'!X72,'Sec. I Out-of-State'!Z72)/'Sec. G CR Data'!L69,SUM(AN72,AP72,AR72,AT72,AV72,AX72,'Sec. I Out-of-State'!X72,'Sec. I Out-of-State'!Z72)/'Sec. G CR Data'!L69),"") ->  | AZ72: =IF($AR72+$AV72+$AT72+$AX72+$AN72+$AP72+'Sec. I Out-of-State'!$X72+'Sec. I Out-of-State'!$Z72>'Sec. G CR Data'!$L69,"ERROR: Charges exceed total!","") -> 
A73: 57 | B73: =IF('Sec. G CR Data'!B70<>"",'Sec. G CR Data'!B70,"") ->  | C73: =IF('Sec. G CR Data'!C70<>"",'Sec. G CR Data'!C70,"") ->  | F73: ='Sec. G CR Data'!M70 -> 0 | AV73: 0 | AX73: 0 | AY73: =IFERROR(IF(State="California DPH",SUM(AJ73,AL73,AN73,AP73,AR73,AT73,AV73,AX73,'Sec. I Out-of-State'!X73,'Sec. I Out-of-State'!Z73)/'Sec. G CR Data'!L70,SUM(AN73,AP73,AR73,AT73,AV73,AX73,'Sec. I Out-of-State'!X73,'Sec. I Out-of-State'!Z73)/'Sec. G CR Data'!L70),"") ->  | AZ73: =IF($AR73+$AV73+$AT73+$AX73+$AN73+$AP73+'Sec. I Out-of-State'!$X73+'Sec. I Out-of-State'!$Z73>'Sec. G CR Data'!$L70,"ERROR: Charges exceed total!","") -> 
A74: 58 | B74: =IF('Sec. G CR Data'!B71<>"",'Sec. G CR Data'!B71,"") ->  | C74: =IF('Sec. G CR Data'!C71<>"",'Sec. G CR Data'!C71,"") ->  | F74: ='Sec. G CR Data'!M71 -> 0 | AV74: 0 | AX74: 0 | AY74: =IFERROR(IF(State="California DPH",SUM(AJ74,AL74,AN74,AP74,AR74,AT74,AV74,AX74,'Sec. I Out-of-State'!X74,'Sec. I Out-of-State'!Z74)/'Sec. G CR Data'!L71,SUM(AN74,AP74,AR74,AT74,AV74,AX74,'Sec. I Out-of-State'!X74,'Sec. I Out-of-State'!Z74)/'Sec. G CR Data'!L71),"") ->  | AZ74: =IF($AR74+$AV74+$AT74+$AX74+$AN74+$AP74+'Sec. I Out-of-State'!$X74+'Sec. I Out-of-State'!$Z74>'Sec. G CR Data'!$L71,"ERROR: Charges exceed total!","") -> 
A75: 59 | B75: =IF('Sec. G CR Data'!B72<>"",'Sec. G CR Data'!B72,"") ->  | C75: =IF('Sec. G CR Data'!C72<>"",'Sec. G CR Data'!C72,"") ->  | F75: ='Sec. G CR Data'!M72 -> 0 | AV75: 0 | AX75: 0 | AY75: =IFERROR(IF(State="California DPH",SUM(AJ75,AL75,AN75,AP75,AR75,AT75,AV75,AX75,'Sec. I Out-of-State'!X75,'Sec. I Out-of-State'!Z75)/'Sec. G CR Data'!L72,SUM(AN75,AP75,AR75,AT75,AV75,AX75,'Sec. I Out-of-State'!X75,'Sec. I Out-of-State'!Z75)/'Sec. G CR Data'!L72),"") ->  | AZ75: =IF($AR75+$AV75+$AT75+$AX75+$AN75+$AP75+'Sec. I Out-of-State'!$X75+'Sec. I Out-of-State'!$Z75>'Sec. G CR Data'!$L72,"ERROR: Charges exceed total!","") -> 
A76: 60 | B76: =IF('Sec. G CR Data'!B73<>"",'Sec. G CR Data'!B73,"") ->  | C76: =IF('Sec. G CR Data'!C73<>"",'Sec. G CR Data'!C73,"") ->  | F76: ='Sec. G CR Data'!M73 -> 0 | AV76: 0 | AX76: 0 | AY76: =IFERROR(IF(State="California DPH",SUM(AJ76,AL76,AN76,AP76,AR76,AT76,AV76,AX76,'Sec. I Out-of-State'!X76,'Sec. I Out-of-State'!Z76)/'Sec. G CR Data'!L73,SUM(AN76,AP76,AR76,AT76,AV76,AX76,'Sec. I Out-of-State'!X76,'Sec. I Out-of-State'!Z76)/'Sec. G CR Data'!L73),"") ->  | AZ76: =IF($AR76+$AV76+$AT76+$AX76+$AN76+$AP76+'Sec. I Out-of-State'!$X76+'Sec. I Out-of-State'!$Z76>'Sec. G CR Data'!$L73,"ERROR: Charges exceed total!","") -> 
A77: 61 | B77: =IF('Sec. G CR Data'!B74<>"",'Sec. G CR Data'!B74,"") ->  | C77: =IF('Sec. G CR Data'!C74<>"",'Sec. G CR Data'!C74,"") ->  | F77: ='Sec. G CR Data'!M74 -> 0 | AV77: 0 | AX77: 0 | AY77: =IFERROR(IF(State="California DPH",SUM(AJ77,AL77,AN77,AP77,AR77,AT77,AV77,AX77,'Sec. I Out-of-State'!X77,'Sec. I Out-of-State'!Z77)/'Sec. G CR Data'!L74,SUM(AN77,AP77,AR77,AT77,AV77,AX77,'Sec. I Out-of-State'!X77,'Sec. I Out-of-State'!Z77)/'Sec. G CR Data'!L74),"") ->  | AZ77: =IF($AR77+$AV77+$AT77+$AX77+$AN77+$AP77+'Sec. I Out-of-State'!$X77+'Sec. I Out-of-State'!$Z77>'Sec. G CR Data'!$L74,"ERROR: Charges exceed total!","") -> 
A78: 62 | B78: =IF('Sec. G CR Data'!B75<>"",'Sec. G CR Data'!B75,"") ->  | C78: =IF('Sec. G CR Data'!C75<>"",'Sec. G CR Data'!C75,"") ->  | F78: ='Sec. G CR Data'!M75 -> 0 | AV78: 0 | AX78: 0 | AY78: =IFERROR(IF(State="California DPH",SUM(AJ78,AL78,AN78,AP78,AR78,AT78,AV78,AX78,'Sec. I Out-of-State'!X78,'Sec. I Out-of-State'!Z78)/'Sec. G CR Data'!L75,SUM(AN78,AP78,AR78,AT78,AV78,AX78,'Sec. I Out-of-State'!X78,'Sec. I Out-of-State'!Z78)/'Sec. G CR Data'!L75),"") ->  | AZ78: =IF($AR78+$AV78+$AT78+$AX78+$AN78+$AP78+'Sec. I Out-of-State'!$X78+'Sec. I Out-of-State'!$Z78>'Sec. G CR Data'!$L75,"ERROR: Charges exceed total!","") -> 
A79: 63 | B79: =IF('Sec. G CR Data'!B76<>"",'Sec. G CR Data'!B76,"") ->  | C79: =IF('Sec. G CR Data'!C76<>"",'Sec. G CR Data'!C76,"") ->  | F79: ='Sec. G CR Data'!M76 -> 0 | AV79: 0 | AX79: 0 | AY79: =IFERROR(IF(State="California DPH",SUM(AJ79,AL79,AN79,AP79,AR79,AT79,AV79,AX79,'Sec. I Out-of-State'!X79,'Sec. I Out-of-State'!Z79)/'Sec. G CR Data'!L76,SUM(AN79,AP79,AR79,AT79,AV79,AX79,'Sec. I Out-of-State'!X79,'Sec. I Out-of-State'!Z79)/'Sec. G CR Data'!L76),"") ->  | AZ79: =IF($AR79+$AV79+$AT79+$AX79+$AN79+$AP79+'Sec. I Out-of-State'!$X79+'Sec. I Out-of-State'!$Z79>'Sec. G CR Data'!$L76,"ERROR: Charges exceed total!","") -> 
A80: 64 | B80: =IF('Sec. G CR Data'!B77<>"",'Sec. G CR Data'!B77,"") ->  | C80: =IF('Sec. G CR Data'!C77<>"",'Sec. G CR Data'!C77,"") ->  | F80: ='Sec. G CR Data'!M77 -> 0 | AV80: 0 | AX80: 0 | AY80: =IFERROR(IF(State="California DPH",SUM(AJ80,AL80,AN80,AP80,AR80,AT80,AV80,AX80,'Sec. I Out-of-State'!X80,'Sec. I Out-of-State'!Z80)/'Sec. G CR Data'!L77,SUM(AN80,AP80,AR80,AT80,AV80,AX80,'Sec. I Out-of-State'!X80,'Sec. I Out-of-State'!Z80)/'Sec. G CR Data'!L77),"") ->  | AZ80: =IF($AR80+$AV80+$AT80+$AX80+$AN80+$AP80+'Sec. I Out-of-State'!$X80+'Sec. I Out-of-State'!$Z80>'Sec. G CR Data'!$L77,"ERROR: Charges exceed total!","") -> 
A81: 65 | B81: =IF('Sec. G CR Data'!B78<>"",'Sec. G CR Data'!B78,"") ->  | C81: =IF('Sec. G CR Data'!C78<>"",'Sec. G CR Data'!C78,"") ->  | F81: ='Sec. G CR Data'!M78 -> 0 | AV81: 0 | AX81: 0 | AY81: =IFERROR(IF(State="California DPH",SUM(AJ81,AL81,AN81,AP81,AR81,AT81,AV81,AX81,'Sec. I Out-of-State'!X81,'Sec. I Out-of-State'!Z81)/'Sec. G CR Data'!L78,SUM(AN81,AP81,AR81,AT81,AV81,AX81,'Sec. I Out-of-State'!X81,'Sec. I Out-of-State'!Z81)/'Sec. G CR Data'!L78),"") ->  | AZ81: =IF($AR81+$AV81+$AT81+$AX81+$AN81+$AP81+'Sec. I Out-of-State'!$X81+'Sec. I Out-of-State'!$Z81>'Sec. G CR Data'!$L78,"ERROR: Charges exceed total!","") -> 
A82: 66 | B82: =IF('Sec. G CR Data'!B79<>"",'Sec. G CR Data'!B79,"") ->  | C82: =IF('Sec. G CR Data'!C79<>"",'Sec. G CR Data'!C79,"") ->  | F82: ='Sec. G CR Data'!M79 -> 0 | AV82: 0 | AX82: 0 | AY82: =IFERROR(IF(State="California DPH",SUM(AJ82,AL82,AN82,AP82,AR82,AT82,AV82,AX82,'Sec. I Out-of-State'!X82,'Sec. I Out-of-State'!Z82)/'Sec. G CR Data'!L79,SUM(AN82,AP82,AR82,AT82,AV82,AX82,'Sec. I Out-of-State'!X82,'Sec. I Out-of-State'!Z82)/'Sec. G CR Data'!L79),"") ->  | AZ82: =IF($AR82+$AV82+$AT82+$AX82+$AN82+$AP82+'Sec. I Out-of-State'!$X82+'Sec. I Out-of-State'!$Z82>'Sec. G CR Data'!$L79,"ERROR: Charges exceed total!","") -> 
A83: 67 | B83: =IF('Sec. G CR Data'!B80<>"",'Sec. G CR Data'!B80,"") ->  | C83: =IF('Sec. G CR Data'!C80<>"",'Sec. G CR Data'!C80,"") ->  | F83: ='Sec. G CR Data'!M80 -> 0 | AV83: 0 | AX83: 0 | AY83: =IFERROR(IF(State="California DPH",SUM(AJ83,AL83,AN83,AP83,AR83,AT83,AV83,AX83,'Sec. I Out-of-State'!X83,'Sec. I Out-of-State'!Z83)/'Sec. G CR Data'!L80,SUM(AN83,AP83,AR83,AT83,AV83,AX83,'Sec. I Out-of-State'!X83,'Sec. I Out-of-State'!Z83)/'Sec. G CR Data'!L80),"") ->  | AZ83: =IF($AR83+$AV83+$AT83+$AX83+$AN83+$AP83+'Sec. I Out-of-State'!$X83+'Sec. I Out-of-State'!$Z83>'Sec. G CR Data'!$L80,"ERROR: Charges exceed total!","") -> 
A84: 68 | B84: =IF('Sec. G CR Data'!B81<>"",'Sec. G CR Data'!B81,"") ->  | C84: =IF('Sec. G CR Data'!C81<>"",'Sec. G CR Data'!C81,"") ->  | F84: ='Sec. G CR Data'!M81 -> 0 | AV84: 0 | AX84: 0 | AY84: =IFERROR(IF(State="California DPH",SUM(AJ84,AL84,AN84,AP84,AR84,AT84,AV84,AX84,'Sec. I Out-of-State'!X84,'Sec. I Out-of-State'!Z84)/'Sec. G CR Data'!L81,SUM(AN84,AP84,AR84,AT84,AV84,AX84,'Sec. I Out-of-State'!X84,'Sec. I Out-of-State'!Z84)/'Sec. G CR Data'!L81),"") ->  | AZ84: =IF($AR84+$AV84+$AT84+$AX84+$AN84+$AP84+'Sec. I Out-of-State'!$X84+'Sec. I Out-of-State'!$Z84>'Sec. G CR Data'!$L81,"ERROR: Charges exceed total!","") -> 
A85: 69 | B85: =IF('Sec. G CR Data'!B82<>"",'Sec. G CR Data'!B82,"") ->  | C85: =IF('Sec. G CR Data'!C82<>"",'Sec. G CR Data'!C82,"") ->  | F85: ='Sec. G CR Data'!M82 -> 0 | AV85: 0 | AX85: 0 | AY85: =IFERROR(IF(State="California DPH",SUM(AJ85,AL85,AN85,AP85,AR85,AT85,AV85,AX85,'Sec. I Out-of-State'!X85,'Sec. I Out-of-State'!Z85)/'Sec. G CR Data'!L82,SUM(AN85,AP85,AR85,AT85,AV85,AX85,'Sec. I Out-of-State'!X85,'Sec. I Out-of-State'!Z85)/'Sec. G CR Data'!L82),"") ->  | AZ85: =IF($AR85+$AV85+$AT85+$AX85+$AN85+$AP85+'Sec. I Out-of-State'!$X85+'Sec. I Out-of-State'!$Z85>'Sec. G CR Data'!$L82,"ERROR: Charges exceed total!","") -> 
A86: 70 | B86: =IF('Sec. G CR Data'!B83<>"",'Sec. G CR Data'!B83,"") ->  | C86: =IF('Sec. G CR Data'!C83<>"",'Sec. G CR Data'!C83,"") ->  | F86: ='Sec. G CR Data'!M83 -> 0 | AV86: 0 | AX86: 0 | AY86: =IFERROR(IF(State="California DPH",SUM(AJ86,AL86,AN86,AP86,AR86,AT86,AV86,AX86,'Sec. I Out-of-State'!X86,'Sec. I Out-of-State'!Z86)/'Sec. G CR Data'!L83,SUM(AN86,AP86,AR86,AT86,AV86,AX86,'Sec. I Out-of-State'!X86,'Sec. I Out-of-State'!Z86)/'Sec. G CR Data'!L83),"") ->  | AZ86: =IF($AR86+$AV86+$AT86+$AX86+$AN86+$AP86+'Sec. I Out-of-State'!$X86+'Sec. I Out-of-State'!$Z86>'Sec. G CR Data'!$L83,"ERROR: Charges exceed total!","") -> 
A87: 71 | B87: =IF('Sec. G CR Data'!B84<>"",'Sec. G CR Data'!B84,"") ->  | C87: =IF('Sec. G CR Data'!C84<>"",'Sec. G CR Data'!C84,"") ->  | F87: ='Sec. G CR Data'!M84 -> 0 | AV87: 0 | AX87: 0 | AY87: =IFERROR(IF(State="California DPH",SUM(AJ87,AL87,AN87,AP87,AR87,AT87,AV87,AX87,'Sec. I Out-of-State'!X87,'Sec. I Out-of-State'!Z87)/'Sec. G CR Data'!L84,SUM(AN87,AP87,AR87,AT87,AV87,AX87,'Sec. I Out-of-State'!X87,'Sec. I Out-of-State'!Z87)/'Sec. G CR Data'!L84),"") ->  | AZ87: =IF($AR87+$AV87+$AT87+$AX87+$AN87+$AP87+'Sec. I Out-of-State'!$X87+'Sec. I Out-of-State'!$Z87>'Sec. G CR Data'!$L84,"ERROR: Charges exceed total!","") -> 
A88: 72 | B88: =IF('Sec. G CR Data'!B85<>"",'Sec. G CR Data'!B85,"") ->  | C88: =IF('Sec. G CR Data'!C85<>"",'Sec. G CR Data'!C85,"") ->  | F88: ='Sec. G CR Data'!M85 -> 0 | AV88: 0 | AX88: 0 | AY88: =IFERROR(IF(State="California DPH",SUM(AJ88,AL88,AN88,AP88,AR88,AT88,AV88,AX88,'Sec. I Out-of-State'!X88,'Sec. I Out-of-State'!Z88)/'Sec. G CR Data'!L85,SUM(AN88,AP88,AR88,AT88,AV88,AX88,'Sec. I Out-of-State'!X88,'Sec. I Out-of-State'!Z88)/'Sec. G CR Data'!L85),"") ->  | AZ88: =IF($AR88+$AV88+$AT88+$AX88+$AN88+$AP88+'Sec. I Out-of-State'!$X88+'Sec. I Out-of-State'!$Z88>'Sec. G CR Data'!$L85,"ERROR: Charges exceed total!","") -> 
A89: 73 | B89: =IF('Sec. G CR Data'!B86<>"",'Sec. G CR Data'!B86,"") ->  | C89: =IF('Sec. G CR Data'!C86<>"",'Sec. G CR Data'!C86,"") ->  | F89: ='Sec. G CR Data'!M86 -> 0 | AV89: 0 | AX89: 0 | AY89: =IFERROR(IF(State="California DPH",SUM(AJ89,AL89,AN89,AP89,AR89,AT89,AV89,AX89,'Sec. I Out-of-State'!X89,'Sec. I Out-of-State'!Z89)/'Sec. G CR Data'!L86,SUM(AN89,AP89,AR89,AT89,AV89,AX89,'Sec. I Out-of-State'!X89,'Sec. I Out-of-State'!Z89)/'Sec. G CR Data'!L86),"") ->  | AZ89: =IF($AR89+$AV89+$AT89+$AX89+$AN89+$AP89+'Sec. I Out-of-State'!$X89+'Sec. I Out-of-State'!$Z89>'Sec. G CR Data'!$L86,"ERROR: Charges exceed total!","") -> 
A90: 74 | B90: =IF('Sec. G CR Data'!B87<>"",'Sec. G CR Data'!B87,"") ->  | C90: =IF('Sec. G CR Data'!C87<>"",'Sec. G CR Data'!C87,"") ->  | F90: ='Sec. G CR Data'!M87 -> 0 | AV90: 0 | AX90: 0 | AY90: =IFERROR(IF(State="California DPH",SUM(AJ90,AL90,AN90,AP90,AR90,AT90,AV90,AX90,'Sec. I Out-of-State'!X90,'Sec. I Out-of-State'!Z90)/'Sec. G CR Data'!L87,SUM(AN90,AP90,AR90,AT90,AV90,AX90,'Sec. I Out-of-State'!X90,'Sec. I Out-of-State'!Z90)/'Sec. G CR Data'!L87),"") ->  | AZ90: =IF($AR90+$AV90+$AT90+$AX90+$AN90+$AP90+'Sec. I Out-of-State'!$X90+'Sec. I Out-of-State'!$Z90>'Sec. G CR Data'!$L87,"ERROR: Charges exceed total!","") -> 
A91: 75 | B91: =IF('Sec. G CR Data'!B88<>"",'Sec. G CR Data'!B88,"") ->  | C91: =IF('Sec. G CR Data'!C88<>"",'Sec. G CR Data'!C88,"") ->  | F91: ='Sec. G CR Data'!M88 -> 0 | AV91: 0 | AX91: 0 | AY91: =IFERROR(IF(State="California DPH",SUM(AJ91,AL91,AN91,AP91,AR91,AT91,AV91,AX91,'Sec. I Out-of-State'!X91,'Sec. I Out-of-State'!Z91)/'Sec. G CR Data'!L88,SUM(AN91,AP91,AR91,AT91,AV91,AX91,'Sec. I Out-of-State'!X91,'Sec. I Out-of-State'!Z91)/'Sec. G CR Data'!L88),"") ->  | AZ91: =IF($AR91+$AV91+$AT91+$AX91+$AN91+$AP91+'Sec. I Out-of-State'!$X91+'Sec. I Out-of-State'!$Z91>'Sec. G CR Data'!$L88,"ERROR: Charges exceed total!","") -> 
A92: 76 | B92: =IF('Sec. G CR Data'!B89<>"",'Sec. G CR Data'!B89,"") ->  | C92: =IF('Sec. G CR Data'!C89<>"",'Sec. G CR Data'!C89,"") ->  | F92: ='Sec. G CR Data'!M89 -> 0 | AV92: 0 | AX92: 0 | AY92: =IFERROR(IF(State="California DPH",SUM(AJ92,AL92,AN92,AP92,AR92,AT92,AV92,AX92,'Sec. I Out-of-State'!X92,'Sec. I Out-of-State'!Z92)/'Sec. G CR Data'!L89,SUM(AN92,AP92,AR92,AT92,AV92,AX92,'Sec. I Out-of-State'!X92,'Sec. I Out-of-State'!Z92)/'Sec. G CR Data'!L89),"") ->  | AZ92: =IF($AR92+$AV92+$AT92+$AX92+$AN92+$AP92+'Sec. I Out-of-State'!$X92+'Sec. I Out-of-State'!$Z92>'Sec. G CR Data'!$L89,"ERROR: Charges exceed total!","") -> 
A93: 77 | B93: =IF('Sec. G CR Data'!B90<>"",'Sec. G CR Data'!B90,"") ->  | C93: =IF('Sec. G CR Data'!C90<>"",'Sec. G CR Data'!C90,"") ->  | F93: ='Sec. G CR Data'!M90 -> 0 | AV93: 0 | AX93: 0 | AY93: =IFERROR(IF(State="California DPH",SUM(AJ93,AL93,AN93,AP93,AR93,AT93,AV93,AX93,'Sec. I Out-of-State'!X93,'Sec. I Out-of-State'!Z93)/'Sec. G CR Data'!L90,SUM(AN93,AP93,AR93,AT93,AV93,AX93,'Sec. I Out-of-State'!X93,'Sec. I Out-of-State'!Z93)/'Sec. G CR Data'!L90),"") ->  | AZ93: =IF($AR93+$AV93+$AT93+$AX93+$AN93+$AP93+'Sec. I Out-of-State'!$X93+'Sec. I Out-of-State'!$Z93>'Sec. G CR Data'!$L90,"ERROR: Charges exceed total!","") -> 
A94: 78 | B94: =IF('Sec. G CR Data'!B91<>"",'Sec. G CR Data'!B91,"") ->  | C94: =IF('Sec. G CR Data'!C91<>"",'Sec. G CR Data'!C91,"") ->  | F94: ='Sec. G CR Data'!M91 -> 0 | AV94: 0 | AX94: 0 | AY94: =IFERROR(IF(State="California DPH",SUM(AJ94,AL94,AN94,AP94,AR94,AT94,AV94,AX94,'Sec. I Out-of-State'!X94,'Sec. I Out-of-State'!Z94)/'Sec. G CR Data'!L91,SUM(AN94,AP94,AR94,AT94,AV94,AX94,'Sec. I Out-of-State'!X94,'Sec. I Out-of-State'!Z94)/'Sec. G CR Data'!L91),"") ->  | AZ94: =IF($AR94+$AV94+$AT94+$AX94+$AN94+$AP94+'Sec. I Out-of-State'!$X94+'Sec. I Out-of-State'!$Z94>'Sec. G CR Data'!$L91,"ERROR: Charges exceed total!","") -> 
A95: 79 | B95: =IF('Sec. G CR Data'!B92<>"",'Sec. G CR Data'!B92,"") ->  | C95: =IF('Sec. G CR Data'!C92<>"",'Sec. G CR Data'!C92,"") ->  | F95: ='Sec. G CR Data'!M92 -> 0 | AV95: 0 | AX95: 0 | AY95: =IFERROR(IF(State="California DPH",SUM(AJ95,AL95,AN95,AP95,AR95,AT95,AV95,AX95,'Sec. I Out-of-State'!X95,'Sec. I Out-of-State'!Z95)/'Sec. G CR Data'!L92,SUM(AN95,AP95,AR95,AT95,AV95,AX95,'Sec. I Out-of-State'!X95,'Sec. I Out-of-State'!Z95)/'Sec. G CR Data'!L92),"") ->  | AZ95: =IF($AR95+$AV95+$AT95+$AX95+$AN95+$AP95+'Sec. I Out-of-State'!$X95+'Sec. I Out-of-State'!$Z95>'Sec. G CR Data'!$L92,"ERROR: Charges exceed total!","") -> 
A96: 80 | B96: =IF('Sec. G CR Data'!B93<>"",'Sec. G CR Data'!B93,"") ->  | C96: =IF('Sec. G CR Data'!C93<>"",'Sec. G CR Data'!C93,"") ->  | F96: ='Sec. G CR Data'!M93 -> 0 | AV96: 0 | AX96: 0 | AY96: =IFERROR(IF(State="California DPH",SUM(AJ96,AL96,AN96,AP96,AR96,AT96,AV96,AX96,'Sec. I Out-of-State'!X96,'Sec. I Out-of-State'!Z96)/'Sec. G CR Data'!L93,SUM(AN96,AP96,AR96,AT96,AV96,AX96,'Sec. I Out-of-State'!X96,'Sec. I Out-of-State'!Z96)/'Sec. G CR Data'!L93),"") ->  | AZ96: =IF($AR96+$AV96+$AT96+$AX96+$AN96+$AP96+'Sec. I Out-of-State'!$X96+'Sec. I Out-of-State'!$Z96>'Sec. G CR Data'!$L93,"ERROR: Charges exceed total!","") -> 
A97: 81 | B97: =IF('Sec. G CR Data'!B94<>"",'Sec. G CR Data'!B94,"") ->  | C97: =IF('Sec. G CR Data'!C94<>"",'Sec. G CR Data'!C94,"") ->  | F97: ='Sec. G CR Data'!M94 -> 0 | AV97: 0 | AX97: 0 | AY97: =IFERROR(IF(State="California DPH",SUM(AJ97,AL97,AN97,AP97,AR97,AT97,AV97,AX97,'Sec. I Out-of-State'!X97,'Sec. I Out-of-State'!Z97)/'Sec. G CR Data'!L94,SUM(AN97,AP97,AR97,AT97,AV97,AX97,'Sec. I Out-of-State'!X97,'Sec. I Out-of-State'!Z97)/'Sec. G CR Data'!L94),"") ->  | AZ97: =IF($AR97+$AV97+$AT97+$AX97+$AN97+$AP97+'Sec. I Out-of-State'!$X97+'Sec. I Out-of-State'!$Z97>'Sec. G CR Data'!$L94,"ERROR: Charges exceed total!","") -> 
A98: 82 | B98: =IF('Sec. G CR Data'!B95<>"",'Sec. G CR Data'!B95,"") ->  | C98: =IF('Sec. G CR Data'!C95<>"",'Sec. G CR Data'!C95,"") ->  | F98: ='Sec. G CR Data'!M95 -> 0 | AV98: 0 | AX98: 0 | AY98: =IFERROR(IF(State="California DPH",SUM(AJ98,AL98,AN98,AP98,AR98,AT98,AV98,AX98,'Sec. I Out-of-State'!X98,'Sec. I Out-of-State'!Z98)/'Sec. G CR Data'!L95,SUM(AN98,AP98,AR98,AT98,AV98,AX98,'Sec. I Out-of-State'!X98,'Sec. I Out-of-State'!Z98)/'Sec. G CR Data'!L95),"") ->  | AZ98: =IF($AR98+$AV98+$AT98+$AX98+$AN98+$AP98+'Sec. I Out-of-State'!$X98+'Sec. I Out-of-State'!$Z98>'Sec. G CR Data'!$L95,"ERROR: Charges exceed total!","") -> 
A99: 83 | B99: =IF('Sec. G CR Data'!B96<>"",'Sec. G CR Data'!B96,"") ->  | C99: =IF('Sec. G CR Data'!C96<>"",'Sec. G CR Data'!C96,"") ->  | F99: ='Sec. G CR Data'!M96 -> 0 | AV99: 0 | AX99: 0 | AY99: =IFERROR(IF(State="California DPH",SUM(AJ99,AL99,AN99,AP99,AR99,AT99,AV99,AX99,'Sec. I Out-of-State'!X99,'Sec. I Out-of-State'!Z99)/'Sec. G CR Data'!L96,SUM(AN99,AP99,AR99,AT99,AV99,AX99,'Sec. I Out-of-State'!X99,'Sec. I Out-of-State'!Z99)/'Sec. G CR Data'!L96),"") ->  | AZ99: =IF($AR99+$AV99+$AT99+$AX99+$AN99+$AP99+'Sec. I Out-of-State'!$X99+'Sec. I Out-of-State'!$Z99>'Sec. G CR Data'!$L96,"ERROR: Charges exceed total!","") -> 
A100: 84 | B100: =IF('Sec. G CR Data'!B97<>"",'Sec. G CR Data'!B97,"") ->  | C100: =IF('Sec. G CR Data'!C97<>"",'Sec. G CR Data'!C97,"") ->  | F100: ='Sec. G CR Data'!M97 -> 0 | AV100: 0 | AX100: 0 | AY100: =IFERROR(IF(State="California DPH",SUM(AJ100,AL100,AN100,AP100,AR100,AT100,AV100,AX100,'Sec. I Out-of-State'!X100,'Sec. I Out-of-State'!Z100)/'Sec. G CR Data'!L97,SUM(AN100,AP100,AR100,AT100,AV100,AX100,'Sec. I Out-of-State'!X100,'Sec. I Out-of-State'!Z100)/'Sec. G CR Data'!L97),"") ->  | AZ100: =IF($AR100+$AV100+$AT100+$AX100+$AN100+$AP100+'Sec. I Out-of-State'!$X100+'Sec. I Out-of-State'!$Z100>'Sec. G CR Data'!$L97,"ERROR: Charges exceed total!","") -> 
A101: 85 | B101: =IF('Sec. G CR Data'!B98<>"",'Sec. G CR Data'!B98,"") ->  | C101: =IF('Sec. G CR Data'!C98<>"",'Sec. G CR Data'!C98,"") ->  | F101: ='Sec. G CR Data'!M98 -> 0 | AV101: 0 | AX101: 0 | AY101: =IFERROR(IF(State="California DPH",SUM(AJ101,AL101,AN101,AP101,AR101,AT101,AV101,AX101,'Sec. I Out-of-State'!X101,'Sec. I Out-of-State'!Z101)/'Sec. G CR Data'!L98,SUM(AN101,AP101,AR101,AT101,AV101,AX101,'Sec. I Out-of-State'!X101,'Sec. I Out-of-State'!Z101)/'Sec. G CR Data'!L98),"") ->  | AZ101: =IF($AR101+$AV101+$AT101+$AX101+$AN101+$AP101+'Sec. I Out-of-State'!$X101+'Sec. I Out-of-State'!$Z101>'Sec. G CR Data'!$L98,"ERROR: Charges exceed total!","") -> 
A102: 86 | B102: =IF('Sec. G CR Data'!B99<>"",'Sec. G CR Data'!B99,"") ->  | C102: =IF('Sec. G CR Data'!C99<>"",'Sec. G CR Data'!C99,"") ->  | F102: ='Sec. G CR Data'!M99 -> 0 | AV102: =IF(State="California DPH",$T102+$P102+$L102+$H102+$X102+$AB102+$AF102,$T102+$P102+$L102+$H102+$X102+$AB102+$AF102+$AJ102) -> 0 | AX102: =IF(State="California DPH",$V102+$R102+$N102+$J102+$Z102+$AD102+$AH102,$V102+$R102+$N102+$J102+$Z102+$AD102+$AH102+$AL102) -> 0 | AY102: =IFERROR(IF(State="California DPH",SUM(AJ102,AL102,AN102,AP102,AR102,AT102,AV102,AX102,'Sec. I Out-of-State'!X102,'Sec. I Out-of-State'!Z102)/'Sec. G CR Data'!L99,SUM(AN102,AP102,AR102,AT102,AV102,AX102,'Sec. I Out-of-State'!X102,'Sec. I Out-of-State'!Z102)/'Sec. G CR Data'!L99),"") ->  | AZ102: =IF($AR102+$AV102+$AT102+$AX102+$AN102+$AP102+'Sec. I Out-of-State'!$X102+'Sec. I Out-of-State'!$Z102>'Sec. G CR Data'!$L99,"ERROR: Charges exceed total!","") -> 
A103: 87 | B103: =IF('Sec. G CR Data'!B100<>"",'Sec. G CR Data'!B100,"") ->  | C103: =IF('Sec. G CR Data'!C100<>"",'Sec. G CR Data'!C100,"") ->  | F103: ='Sec. G CR Data'!M100 -> 0 | AV103: 0 | AX103: 0 | AY103: =IFERROR(IF(State="California DPH",SUM(AJ103,AL103,AN103,AP103,AR103,AT103,AV103,AX103,'Sec. I Out-of-State'!X103,'Sec. I Out-of-State'!Z103)/'Sec. G CR Data'!L100,SUM(AN103,AP103,AR103,AT103,AV103,AX103,'Sec. I Out-of-State'!X103,'Sec. I Out-of-State'!Z103)/'Sec. G CR Data'!L100),"") ->  | AZ103: =IF($AR103+$AV103+$AT103+$AX103+$AN103+$AP103+'Sec. I Out-of-State'!$X103+'Sec. I Out-of-State'!$Z103>'Sec. G CR Data'!$L100,"ERROR: Charges exceed total!","") -> 
A104: 88 | B104: =IF('Sec. G CR Data'!B101<>"",'Sec. G CR Data'!B101,"") ->  | C104: =IF('Sec. G CR Data'!C101<>"",'Sec. G CR Data'!C101,"") ->  | F104: ='Sec. G CR Data'!M101 -> 0 | AV104: 0 | AX104: 0 | AY104: =IFERROR(IF(State="California DPH",SUM(AJ104,AL104,AN104,AP104,AR104,AT104,AV104,AX104,'Sec. I Out-of-State'!X104,'Sec. I Out-of-State'!Z104)/'Sec. G CR Data'!L101,SUM(AN104,AP104,AR104,AT104,AV104,AX104,'Sec. I Out-of-State'!X104,'Sec. I Out-of-State'!Z104)/'Sec. G CR Data'!L101),"") ->  | AZ104: =IF($AR104+$AV104+$AT104+$AX104+$AN104+$AP104+'Sec. I Out-of-State'!$X104+'Sec. I Out-of-State'!$Z104>'Sec. G CR Data'!$L101,"ERROR: Charges exceed total!","") -> 
A105: 89 | B105: =IF('Sec. G CR Data'!B102<>"",'Sec. G CR Data'!B102,"") ->  | C105: =IF('Sec. G CR Data'!C102<>"",'Sec. G CR Data'!C102,"") ->  | F105: ='Sec. G CR Data'!M102 -> 0 | AV105: 0 | AX105: 0 | AY105: =IFERROR(IF(State="California DPH",SUM(AJ105,AL105,AN105,AP105,AR105,AT105,AV105,AX105,'Sec. I Out-of-State'!X105,'Sec. I Out-of-State'!Z105)/'Sec. G CR Data'!L102,SUM(AN105,AP105,AR105,AT105,AV105,AX105,'Sec. I Out-of-State'!X105,'Sec. I Out-of-State'!Z105)/'Sec. G CR Data'!L102),"") ->  | AZ105: =IF($AR105+$AV105+$AT105+$AX105+$AN105+$AP105+'Sec. I Out-of-State'!$X105+'Sec. I Out-of-State'!$Z105>'Sec. G CR Data'!$L102,"ERROR: Charges exceed total!","") -> 
A106: 90 | B106: =IF('Sec. G CR Data'!B103<>"",'Sec. G CR Data'!B103,"") ->  | C106: =IF('Sec. G CR Data'!C103<>"",'Sec. G CR Data'!C103,"") ->  | F106: ='Sec. G CR Data'!M103 -> 0 | AV106: 0 | AX106: 0 | AY106: =IFERROR(IF(State="California DPH",SUM(AJ106,AL106,AN106,AP106,AR106,AT106,AV106,AX106,'Sec. I Out-of-State'!X106,'Sec. I Out-of-State'!Z106)/'Sec. G CR Data'!L103,SUM(AN106,AP106,AR106,AT106,AV106,AX106,'Sec. I Out-of-State'!X106,'Sec. I Out-of-State'!Z106)/'Sec. G CR Data'!L103),"") ->  | AZ106: =IF($AR106+$AV106+$AT106+$AX106+$AN106+$AP106+'Sec. I Out-of-State'!$X106+'Sec. I Out-of-State'!$Z106>'Sec. G CR Data'!$L103,"ERROR: Charges exceed total!","") -> 
A107: 91 | B107: =IF('Sec. G CR Data'!B104<>"",'Sec. G CR Data'!B104,"") ->  | C107: =IF('Sec. G CR Data'!C104<>"",'Sec. G CR Data'!C104,"") ->  | F107: ='Sec. G CR Data'!M104 -> 0 | AV107: 0 | AX107: 0 | AY107: =IFERROR(IF(State="California DPH",SUM(AJ107,AL107,AN107,AP107,AR107,AT107,AV107,AX107,'Sec. I Out-of-State'!X107,'Sec. I Out-of-State'!Z107)/'Sec. G CR Data'!L104,SUM(AN107,AP107,AR107,AT107,AV107,AX107,'Sec. I Out-of-State'!X107,'Sec. I Out-of-State'!Z107)/'Sec. G CR Data'!L104),"") ->  | AZ107: =IF($AR107+$AV107+$AT107+$AX107+$AN107+$AP107+'Sec. I Out-of-State'!$X107+'Sec. I Out-of-State'!$Z107>'Sec. G CR Data'!$L104,"ERROR: Charges exceed total!","") -> 
A108: 92 | B108: =IF('Sec. G CR Data'!B105<>"",'Sec. G CR Data'!B105,"") ->  | C108: =IF('Sec. G CR Data'!C105<>"",'Sec. G CR Data'!C105,"") ->  | F108: ='Sec. G CR Data'!M105 -> 0 | AV108: 0 | AX108: 0 | AY108: =IFERROR(IF(State="California DPH",SUM(AJ108,AL108,AN108,AP108,AR108,AT108,AV108,AX108,'Sec. I Out-of-State'!X108,'Sec. I Out-of-State'!Z108)/'Sec. G CR Data'!L105,SUM(AN108,AP108,AR108,AT108,AV108,AX108,'Sec. I Out-of-State'!X108,'Sec. I Out-of-State'!Z108)/'Sec. G CR Data'!L105),"") ->  | AZ108: =IF($AR108+$AV108+$AT108+$AX108+$AN108+$AP108+'Sec. I Out-of-State'!$X108+'Sec. I Out-of-State'!$Z108>'Sec. G CR Data'!$L105,"ERROR: Charges exceed total!","") -> 
A109: 93 | B109: =IF('Sec. G CR Data'!B106<>"",'Sec. G CR Data'!B106,"") ->  | C109: =IF('Sec. G CR Data'!C106<>"",'Sec. G CR Data'!C106,"") ->  | F109: ='Sec. G CR Data'!M106 -> 0 | AV109: 0 | AX109: 0 | AY109: =IFERROR(IF(State="California DPH",SUM(AJ109,AL109,AN109,AP109,AR109,AT109,AV109,AX109,'Sec. I Out-of-State'!X109,'Sec. I Out-of-State'!Z109)/'Sec. G CR Data'!L106,SUM(AN109,AP109,AR109,AT109,AV109,AX109,'Sec. I Out-of-State'!X109,'Sec. I Out-of-State'!Z109)/'Sec. G CR Data'!L106),"") ->  | AZ109: =IF($AR109+$AV109+$AT109+$AX109+$AN109+$AP109+'Sec. I Out-of-State'!$X109+'Sec. I Out-of-State'!$Z109>'Sec. G CR Data'!$L106,"ERROR: Charges exceed total!","") -> 
A110: 94 | B110: =IF('Sec. G CR Data'!B107<>"",'Sec. G CR Data'!B107,"") ->  | C110: =IF('Sec. G CR Data'!C107<>"",'Sec. G CR Data'!C107,"") ->  | F110: ='Sec. G CR Data'!M107 -> 0 | AV110: 0 | AX110: 0 | AY110: =IFERROR(IF(State="California DPH",SUM(AJ110,AL110,AN110,AP110,AR110,AT110,AV110,AX110,'Sec. I Out-of-State'!X110,'Sec. I Out-of-State'!Z110)/'Sec. G CR Data'!L107,SUM(AN110,AP110,AR110,AT110,AV110,AX110,'Sec. I Out-of-State'!X110,'Sec. I Out-of-State'!Z110)/'Sec. G CR Data'!L107),"") ->  | AZ110: =IF($AR110+$AV110+$AT110+$AX110+$AN110+$AP110+'Sec. I Out-of-State'!$X110+'Sec. I Out-of-State'!$Z110>'Sec. G CR Data'!$L107,"ERROR: Charges exceed total!","") -> 
A111: 95 | B111: =IF('Sec. G CR Data'!B108<>"",'Sec. G CR Data'!B108,"") ->  | C111: =IF('Sec. G CR Data'!C108<>"",'Sec. G CR Data'!C108,"") ->  | F111: ='Sec. G CR Data'!M108 -> 0 | AV111: 0 | AX111: 0 | AY111: =IFERROR(IF(State="California DPH",SUM(AJ111,AL111,AN111,AP111,AR111,AT111,AV111,AX111,'Sec. I Out-of-State'!X111,'Sec. I Out-of-State'!Z111)/'Sec. G CR Data'!L108,SUM(AN111,AP111,AR111,AT111,AV111,AX111,'Sec. I Out-of-State'!X111,'Sec. I Out-of-State'!Z111)/'Sec. G CR Data'!L108),"") ->  | AZ111: =IF($AR111+$AV111+$AT111+$AX111+$AN111+$AP111+'Sec. I Out-of-State'!$X111+'Sec. I Out-of-State'!$Z111>'Sec. G CR Data'!$L108,"ERROR: Charges exceed total!","") -> 
A112: 96 | B112: =IF('Sec. G CR Data'!B109<>"",'Sec. G CR Data'!B109,"") ->  | C112: =IF('Sec. G CR Data'!C109<>"",'Sec. G CR Data'!C109,"") ->  | F112: ='Sec. G CR Data'!M109 -> 0 | AV112: 0 | AX112: 0 | AY112: =IFERROR(IF(State="California DPH",SUM(AJ112,AL112,AN112,AP112,AR112,AT112,AV112,AX112,'Sec. I Out-of-State'!X112,'Sec. I Out-of-State'!Z112)/'Sec. G CR Data'!L109,SUM(AN112,AP112,AR112,AT112,AV112,AX112,'Sec. I Out-of-State'!X112,'Sec. I Out-of-State'!Z112)/'Sec. G CR Data'!L109),"") ->  | AZ112: =IF($AR112+$AV112+$AT112+$AX112+$AN112+$AP112+'Sec. I Out-of-State'!$X112+'Sec. I Out-of-State'!$Z112>'Sec. G CR Data'!$L109,"ERROR: Charges exceed total!","") -> 
A113: 97 | B113: =IF('Sec. G CR Data'!B110<>"",'Sec. G CR Data'!B110,"") ->  | C113: =IF('Sec. G CR Data'!C110<>"",'Sec. G CR Data'!C110,"") ->  | F113: ='Sec. G CR Data'!M110 -> 0 | AV113: 0 | AX113: 0 | AY113: =IFERROR(IF(State="California DPH",SUM(AJ113,AL113,AN113,AP113,AR113,AT113,AV113,AX113,'Sec. I Out-of-State'!X113,'Sec. I Out-of-State'!Z113)/'Sec. G CR Data'!L110,SUM(AN113,AP113,AR113,AT113,AV113,AX113,'Sec. I Out-of-State'!X113,'Sec. I Out-of-State'!Z113)/'Sec. G CR Data'!L110),"") ->  | AZ113: =IF($AR113+$AV113+$AT113+$AX113+$AN113+$AP113+'Sec. I Out-of-State'!$X113+'Sec. I Out-of-State'!$Z113>'Sec. G CR Data'!$L110,"ERROR: Charges exceed total!","") -> 
A114: 98 | B114: =IF('Sec. G CR Data'!B111<>"",'Sec. G CR Data'!B111,"") ->  | C114: =IF('Sec. G CR Data'!C111<>"",'Sec. G CR Data'!C111,"") ->  | F114: ='Sec. G CR Data'!M111 -> 0 | AV114: 0 | AX114: 0 | AY114: =IFERROR(IF(State="California DPH",SUM(AJ114,AL114,AN114,AP114,AR114,AT114,AV114,AX114,'Sec. I Out-of-State'!X114,'Sec. I Out-of-State'!Z114)/'Sec. G CR Data'!L111,SUM(AN114,AP114,AR114,AT114,AV114,AX114,'Sec. I Out-of-State'!X114,'Sec. I Out-of-State'!Z114)/'Sec. G CR Data'!L111),"") ->  | AZ114: =IF($AR114+$AV114+$AT114+$AX114+$AN114+$AP114+'Sec. I Out-of-State'!$X114+'Sec. I Out-of-State'!$Z114>'Sec. G CR Data'!$L111,"ERROR: Charges exceed total!","") -> 
A115: 99 | B115: =IF('Sec. G CR Data'!B112<>"",'Sec. G CR Data'!B112,"") ->  | C115: =IF('Sec. G CR Data'!C112<>"",'Sec. G CR Data'!C112,"") ->  | F115: ='Sec. G CR Data'!M112 -> 0 | AV115: 0 | AX115: 0 | AY115: =IFERROR(IF(State="California DPH",SUM(AJ115,AL115,AN115,AP115,AR115,AT115,AV115,AX115,'Sec. I Out-of-State'!X115,'Sec. I Out-of-State'!Z115)/'Sec. G CR Data'!L112,SUM(AN115,AP115,AR115,AT115,AV115,AX115,'Sec. I Out-of-State'!X115,'Sec. I Out-of-State'!Z115)/'Sec. G CR Data'!L112),"") ->  | AZ115: =IF($AR115+$AV115+$AT115+$AX115+$AN115+$AP115+'Sec. I Out-of-State'!$X115+'Sec. I Out-of-State'!$Z115>'Sec. G CR Data'!$L112,"ERROR: Charges exceed total!","") -> 
A116: 100 | B116: =IF('Sec. G CR Data'!B113<>"",'Sec. G CR Data'!B113,"") ->  | C116: =IF('Sec. G CR Data'!C113<>"",'Sec. G CR Data'!C113,"") ->  | F116: ='Sec. G CR Data'!M113 -> 0 | AV116: 0 | AX116: 0 | AY116: =IFERROR(IF(State="California DPH",SUM(AJ116,AL116,AN116,AP116,AR116,AT116,AV116,AX116,'Sec. I Out-of-State'!X116,'Sec. I Out-of-State'!Z116)/'Sec. G CR Data'!L113,SUM(AN116,AP116,AR116,AT116,AV116,AX116,'Sec. I Out-of-State'!X116,'Sec. I Out-of-State'!Z116)/'Sec. G CR Data'!L113),"") ->  | AZ116: =IF($AR116+$AV116+$AT116+$AX116+$AN116+$AP116+'Sec. I Out-of-State'!$X116+'Sec. I Out-of-State'!$Z116>'Sec. G CR Data'!$L113,"ERROR: Charges exceed total!","") -> 
A117: 101 | B117: =IF('Sec. G CR Data'!B114<>"",'Sec. G CR Data'!B114,"") ->  | C117: =IF('Sec. G CR Data'!C114<>"",'Sec. G CR Data'!C114,"") ->  | F117: ='Sec. G CR Data'!M114 -> 0 | AV117: 0 | AX117: 0 | AY117: =IFERROR(IF(State="California DPH",SUM(AJ117,AL117,AN117,AP117,AR117,AT117,AV117,AX117,'Sec. I Out-of-State'!X117,'Sec. I Out-of-State'!Z117)/'Sec. G CR Data'!L114,SUM(AN117,AP117,AR117,AT117,AV117,AX117,'Sec. I Out-of-State'!X117,'Sec. I Out-of-State'!Z117)/'Sec. G CR Data'!L114),"") ->  | AZ117: =IF($AR117+$AV117+$AT117+$AX117+$AN117+$AP117+'Sec. I Out-of-State'!$X117+'Sec. I Out-of-State'!$Z117>'Sec. G CR Data'!$L114,"ERROR: Charges exceed total!","") -> 
A118: 102 | B118: =IF('Sec. G CR Data'!B115<>"",'Sec. G CR Data'!B115,"") ->  | C118: =IF('Sec. G CR Data'!C115<>"",'Sec. G CR Data'!C115,"") ->  | F118: ='Sec. G CR Data'!M115 -> 0 | AV118: 0 | AX118: 0 | AY118: =IFERROR(IF(State="California DPH",SUM(AJ118,AL118,AN118,AP118,AR118,AT118,AV118,AX118,'Sec. I Out-of-State'!X118,'Sec. I Out-of-State'!Z118)/'Sec. G CR Data'!L115,SUM(AN118,AP118,AR118,AT118,AV118,AX118,'Sec. I Out-of-State'!X118,'Sec. I Out-of-State'!Z118)/'Sec. G CR Data'!L115),"") ->  | AZ118: =IF($AR118+$AV118+$AT118+$AX118+$AN118+$AP118+'Sec. I Out-of-State'!$X118+'Sec. I Out-of-State'!$Z118>'Sec. G CR Data'!$L115,"ERROR: Charges exceed total!","") -> 
A119: 103 | B119: =IF('Sec. G CR Data'!B116<>"",'Sec. G CR Data'!B116,"") ->  | C119: =IF('Sec. G CR Data'!C116<>"",'Sec. G CR Data'!C116,"") ->  | F119: ='Sec. G CR Data'!M116 -> 0 | AV119: 0 | AX119: 0 | AY119: =IFERROR(IF(State="California DPH",SUM(AJ119,AL119,AN119,AP119,AR119,AT119,AV119,AX119,'Sec. I Out-of-State'!X119,'Sec. I Out-of-State'!Z119)/'Sec. G CR Data'!L116,SUM(AN119,AP119,AR119,AT119,AV119,AX119,'Sec. I Out-of-State'!X119,'Sec. I Out-of-State'!Z119)/'Sec. G CR Data'!L116),"") ->  | AZ119: =IF($AR119+$AV119+$AT119+$AX119+$AN119+$AP119+'Sec. I Out-of-State'!$X119+'Sec. I Out-of-State'!$Z119>'Sec. G CR Data'!$L116,"ERROR: Charges exceed total!","") -> 
A120: 104 | B120: =IF('Sec. G CR Data'!B117<>"",'Sec. G CR Data'!B117,"") ->  | C120: =IF('Sec. G CR Data'!C117<>"",'Sec. G CR Data'!C117,"") ->  | F120: ='Sec. G CR Data'!M117 -> 0 | AV120: 0 | AX120: 0 | AY120: =IFERROR(IF(State="California DPH",SUM(AJ120,AL120,AN120,AP120,AR120,AT120,AV120,AX120,'Sec. I Out-of-State'!X120,'Sec. I Out-of-State'!Z120)/'Sec. G CR Data'!L117,SUM(AN120,AP120,AR120,AT120,AV120,AX120,'Sec. I Out-of-State'!X120,'Sec. I Out-of-State'!Z120)/'Sec. G CR Data'!L117),"") ->  | AZ120: =IF($AR120+$AV120+$AT120+$AX120+$AN120+$AP120+'Sec. I Out-of-State'!$X120+'Sec. I Out-of-State'!$Z120>'Sec. G CR Data'!$L117,"ERROR: Charges exceed total!","") -> 
A121: 105 | B121: =IF('Sec. G CR Data'!B118<>"",'Sec. G CR Data'!B118,"") ->  | C121: =IF('Sec. G CR Data'!C118<>"",'Sec. G CR Data'!C118,"") ->  | F121: ='Sec. G CR Data'!M118 -> 0 | AV121: 0 | AX121: 0 | AY121: =IFERROR(IF(State="California DPH",SUM(AJ121,AL121,AN121,AP121,AR121,AT121,AV121,AX121,'Sec. I Out-of-State'!X121,'Sec. I Out-of-State'!Z121)/'Sec. G CR Data'!L118,SUM(AN121,AP121,AR121,AT121,AV121,AX121,'Sec. I Out-of-State'!X121,'Sec. I Out-of-State'!Z121)/'Sec. G CR Data'!L118),"") ->  | AZ121: =IF($AR121+$AV121+$AT121+$AX121+$AN121+$AP121+'Sec. I Out-of-State'!$X121+'Sec. I Out-of-State'!$Z121>'Sec. G CR Data'!$L118,"ERROR: Charges exceed total!","") -> 
A122: 106 | B122: =IF('Sec. G CR Data'!B119<>"",'Sec. G CR Data'!B119,"") ->  | C122: =IF('Sec. G CR Data'!C119<>"",'Sec. G CR Data'!C119,"") ->  | F122: ='Sec. G CR Data'!M119 -> 0 | AV122: 0 | AX122: 0 | AY122: =IFERROR(IF(State="California DPH",SUM(AJ122,AL122,AN122,AP122,AR122,AT122,AV122,AX122,'Sec. I Out-of-State'!X122,'Sec. I Out-of-State'!Z122)/'Sec. G CR Data'!L119,SUM(AN122,AP122,AR122,AT122,AV122,AX122,'Sec. I Out-of-State'!X122,'Sec. I Out-of-State'!Z122)/'Sec. G CR Data'!L119),"") ->  | AZ122: =IF($AR122+$AV122+$AT122+$AX122+$AN122+$AP122+'Sec. I Out-of-State'!$X122+'Sec. I Out-of-State'!$Z122>'Sec. G CR Data'!$L119,"ERROR: Charges exceed total!","") -> 
A123: 107 | B123: =IF('Sec. G CR Data'!B120<>"",'Sec. G CR Data'!B120,"") ->  | C123: =IF('Sec. G CR Data'!C120<>"",'Sec. G CR Data'!C120,"") ->  | F123: ='Sec. G CR Data'!M120 -> 0 | AV123: 0 | AX123: 0 | AY123: =IFERROR(IF(State="California DPH",SUM(AJ123,AL123,AN123,AP123,AR123,AT123,AV123,AX123,'Sec. I Out-of-State'!X123,'Sec. I Out-of-State'!Z123)/'Sec. G CR Data'!L120,SUM(AN123,AP123,AR123,AT123,AV123,AX123,'Sec. I Out-of-State'!X123,'Sec. I Out-of-State'!Z123)/'Sec. G CR Data'!L120),"") ->  | AZ123: =IF($AR123+$AV123+$AT123+$AX123+$AN123+$AP123+'Sec. I Out-of-State'!$X123+'Sec. I Out-of-State'!$Z123>'Sec. G CR Data'!$L120,"ERROR: Charges exceed total!","") -> 
A124: 108 | B124: =IF('Sec. G CR Data'!B121<>"",'Sec. G CR Data'!B121,"") ->  | C124: =IF('Sec. G CR Data'!C121<>"",'Sec. G CR Data'!C121,"") ->  | F124: ='Sec. G CR Data'!M121 -> 0 | AV124: 0 | AX124: 0 | AY124: =IFERROR(IF(State="California DPH",SUM(AJ124,AL124,AN124,AP124,AR124,AT124,AV124,AX124,'Sec. I Out-of-State'!X124,'Sec. I Out-of-State'!Z124)/'Sec. G CR Data'!L121,SUM(AN124,AP124,AR124,AT124,AV124,AX124,'Sec. I Out-of-State'!X124,'Sec. I Out-of-State'!Z124)/'Sec. G CR Data'!L121),"") ->  | AZ124: =IF($AR124+$AV124+$AT124+$AX124+$AN124+$AP124+'Sec. I Out-of-State'!$X124+'Sec. I Out-of-State'!$Z124>'Sec. G CR Data'!$L121,"ERROR: Charges exceed total!","") -> 
A125: 109 | B125: =IF('Sec. G CR Data'!B122<>"",'Sec. G CR Data'!B122,"") ->  | C125: =IF('Sec. G CR Data'!C122<>"",'Sec. G CR Data'!C122,"") ->  | F125: ='Sec. G CR Data'!M122 -> 0 | AV125: 0 | AX125: 0 | AY125: =IFERROR(IF(State="California DPH",SUM(AJ125,AL125,AN125,AP125,AR125,AT125,AV125,AX125,'Sec. I Out-of-State'!X125,'Sec. I Out-of-State'!Z125)/'Sec. G CR Data'!L122,SUM(AN125,AP125,AR125,AT125,AV125,AX125,'Sec. I Out-of-State'!X125,'Sec. I Out-of-State'!Z125)/'Sec. G CR Data'!L122),"") ->  | AZ125: =IF($AR125+$AV125+$AT125+$AX125+$AN125+$AP125+'Sec. I Out-of-State'!$X125+'Sec. I Out-of-State'!$Z125>'Sec. G CR Data'!$L122,"ERROR: Charges exceed total!","") -> 
A126: 110 | B126: =IF('Sec. G CR Data'!B123<>"",'Sec. G CR Data'!B123,"") ->  | C126: =IF('Sec. G CR Data'!C123<>"",'Sec. G CR Data'!C123,"") ->  | F126: ='Sec. G CR Data'!M123 -> 0 | AV126: 0 | AX126: 0 | AY126: =IFERROR(IF(State="California DPH",SUM(AJ126,AL126,AN126,AP126,AR126,AT126,AV126,AX126,'Sec. I Out-of-State'!X126,'Sec. I Out-of-State'!Z126)/'Sec. G CR Data'!L123,SUM(AN126,AP126,AR126,AT126,AV126,AX126,'Sec. I Out-of-State'!X126,'Sec. I Out-of-State'!Z126)/'Sec. G CR Data'!L123),"") ->  | AZ126: =IF($AR126+$AV126+$AT126+$AX126+$AN126+$AP126+'Sec. I Out-of-State'!$X126+'Sec. I Out-of-State'!$Z126>'Sec. G CR Data'!$L123,"ERROR: Charges exceed total!","") -> 
A127: 111 | B127: =IF('Sec. G CR Data'!B124<>"",'Sec. G CR Data'!B124,"") ->  | C127: =IF('Sec. G CR Data'!C124<>"",'Sec. G CR Data'!C124,"") ->  | F127: ='Sec. G CR Data'!M124 -> 0 | AV127: 0 | AX127: 0 | AY127: =IFERROR(IF(State="California DPH",SUM(AJ127,AL127,AN127,AP127,AR127,AT127,AV127,AX127,'Sec. I Out-of-State'!X127,'Sec. I Out-of-State'!Z127)/'Sec. G CR Data'!L124,SUM(AN127,AP127,AR127,AT127,AV127,AX127,'Sec. I Out-of-State'!X127,'Sec. I Out-of-State'!Z127)/'Sec. G CR Data'!L124),"") ->  | AZ127: =IF($AR127+$AV127+$AT127+$AX127+$AN127+$AP127+'Sec. I Out-of-State'!$X127+'Sec. I Out-of-State'!$Z127>'Sec. G CR Data'!$L124,"ERROR: Charges exceed total!","") -> 
A128: 112 | B128: =IF('Sec. G CR Data'!B125<>"",'Sec. G CR Data'!B125,"") ->  | C128: =IF('Sec. G CR Data'!C125<>"",'Sec. G CR Data'!C125,"") ->  | F128: ='Sec. G CR Data'!M125 -> 0 | AV128: 0 | AX128: 0 | AY128: =IFERROR(IF(State="California DPH",SUM(AJ128,AL128,AN128,AP128,AR128,AT128,AV128,AX128,'Sec. I Out-of-State'!X128,'Sec. I Out-of-State'!Z128)/'Sec. G CR Data'!L125,SUM(AN128,AP128,AR128,AT128,AV128,AX128,'Sec. I Out-of-State'!X128,'Sec. I Out-of-State'!Z128)/'Sec. G CR Data'!L125),"") ->  | AZ128: =IF($AR128+$AV128+$AT128+$AX128+$AN128+$AP128+'Sec. I Out-of-State'!$X128+'Sec. I Out-of-State'!$Z128>'Sec. G CR Data'!$L125,"ERROR: Charges exceed total!","") -> 
A129: 113 | B129: =IF('Sec. G CR Data'!B126<>"",'Sec. G CR Data'!B126,"") ->  | C129: =IF('Sec. G CR Data'!C126<>"",'Sec. G CR Data'!C126,"") ->  | F129: ='Sec. G CR Data'!M126 -> 0 | AV129: 0 | AX129: 0 | AY129: =IFERROR(IF(State="California DPH",SUM(AJ129,AL129,AN129,AP129,AR129,AT129,AV129,AX129,'Sec. I Out-of-State'!X129,'Sec. I Out-of-State'!Z129)/'Sec. G CR Data'!L126,SUM(AN129,AP129,AR129,AT129,AV129,AX129,'Sec. I Out-of-State'!X129,'Sec. I Out-of-State'!Z129)/'Sec. G CR Data'!L126),"") ->  | AZ129: =IF($AR129+$AV129+$AT129+$AX129+$AN129+$AP129+'Sec. I Out-of-State'!$X129+'Sec. I Out-of-State'!$Z129>'Sec. G CR Data'!$L126,"ERROR: Charges exceed total!","") -> 
A130: 114 | B130: =IF('Sec. G CR Data'!B127<>"",'Sec. G CR Data'!B127,"") ->  | C130: =IF('Sec. G CR Data'!C127<>"",'Sec. G CR Data'!C127,"") ->  | F130: ='Sec. G CR Data'!M127 -> 0 | AV130: 0 | AX130: 0 | AY130: =IFERROR(IF(State="California DPH",SUM(AJ130,AL130,AN130,AP130,AR130,AT130,AV130,AX130,'Sec. I Out-of-State'!X130,'Sec. I Out-of-State'!Z130)/'Sec. G CR Data'!L127,SUM(AN130,AP130,AR130,AT130,AV130,AX130,'Sec. I Out-of-State'!X130,'Sec. I Out-of-State'!Z130)/'Sec. G CR Data'!L127),"") ->  | AZ130: =IF($AR130+$AV130+$AT130+$AX130+$AN130+$AP130+'Sec. I Out-of-State'!$X130+'Sec. I Out-of-State'!$Z130>'Sec. G CR Data'!$L127,"ERROR: Charges exceed total!","") -> 
A131: 115 | B131: =IF('Sec. G CR Data'!B128<>"",'Sec. G CR Data'!B128,"") ->  | C131: =IF('Sec. G CR Data'!C128<>"",'Sec. G CR Data'!C128,"") ->  | F131: ='Sec. G CR Data'!M128 -> 0 | AV131: 0 | AX131: 0 | AY131: =IFERROR(IF(State="California DPH",SUM(AJ131,AL131,AN131,AP131,AR131,AT131,AV131,AX131,'Sec. I Out-of-State'!X131,'Sec. I Out-of-State'!Z131)/'Sec. G CR Data'!L128,SUM(AN131,AP131,AR131,AT131,AV131,AX131,'Sec. I Out-of-State'!X131,'Sec. I Out-of-State'!Z131)/'Sec. G CR Data'!L128),"") ->  | AZ131: =IF($AR131+$AV131+$AT131+$AX131+$AN131+$AP131+'Sec. I Out-of-State'!$X131+'Sec. I Out-of-State'!$Z131>'Sec. G CR Data'!$L128,"ERROR: Charges exceed total!","") -> 
A132: 116 | B132: =IF('Sec. G CR Data'!B129<>"",'Sec. G CR Data'!B129,"") ->  | C132: =IF('Sec. G CR Data'!C129<>"",'Sec. G CR Data'!C129,"") ->  | F132: ='Sec. G CR Data'!M129 -> 0 | AV132: 0 | AX132: 0 | AY132: =IFERROR(IF(State="California DPH",SUM(AJ132,AL132,AN132,AP132,AR132,AT132,AV132,AX132,'Sec. I Out-of-State'!X132,'Sec. I Out-of-State'!Z132)/'Sec. G CR Data'!L129,SUM(AN132,AP132,AR132,AT132,AV132,AX132,'Sec. I Out-of-State'!X132,'Sec. I Out-of-State'!Z132)/'Sec. G CR Data'!L129),"") ->  | AZ132: =IF($AR132+$AV132+$AT132+$AX132+$AN132+$AP132+'Sec. I Out-of-State'!$X132+'Sec. I Out-of-State'!$Z132>'Sec. G CR Data'!$L129,"ERROR: Charges exceed total!","") -> 
A133: 117 | B133: =IF('Sec. G CR Data'!B130<>"",'Sec. G CR Data'!B130,"") ->  | C133: =IF('Sec. G CR Data'!C130<>"",'Sec. G CR Data'!C130,"") ->  | F133: ='Sec. G CR Data'!M130 -> 0 | AV133: 0 | AX133: 0 | AY133: =IFERROR(IF(State="California DPH",SUM(AJ133,AL133,AN133,AP133,AR133,AT133,AV133,AX133,'Sec. I Out-of-State'!X133,'Sec. I Out-of-State'!Z133)/'Sec. G CR Data'!L130,SUM(AN133,AP133,AR133,AT133,AV133,AX133,'Sec. I Out-of-State'!X133,'Sec. I Out-of-State'!Z133)/'Sec. G CR Data'!L130),"") ->  | AZ133: =IF($AR133+$AV133+$AT133+$AX133+$AN133+$AP133+'Sec. I Out-of-State'!$X133+'Sec. I Out-of-State'!$Z133>'Sec. G CR Data'!$L130,"ERROR: Charges exceed total!","") -> 
A134: 118 | B134: =IF('Sec. G CR Data'!B131<>"",'Sec. G CR Data'!B131,"") ->  | C134: =IF('Sec. G CR Data'!C131<>"",'Sec. G CR Data'!C131,"") ->  | F134: ='Sec. G CR Data'!M131 -> 0 | AV134: =IF(State="California DPH",$T134+$P134+$L134+$H134+$X134+$AB134+$AF134,$T134+$P134+$L134+$H134+$X134+$AB134+$AF134+$AJ134) -> 0 | AX134: =IF(State="California DPH",$V134+$R134+$N134+$J134+$Z134+$AD134+$AH134,$V134+$R134+$N134+$J134+$Z134+$AD134+$AH134+$AL134) -> 0 | AY134: =IFERROR(IF(State="California DPH",SUM(AJ134,AL134,AN134,AP134,AR134,AT134,AV134,AX134,'Sec. I Out-of-State'!X134,'Sec. I Out-of-State'!Z134)/'Sec. G CR Data'!L131,SUM(AN134,AP134,AR134,AT134,AV134,AX134,'Sec. I Out-of-State'!X134,'Sec. I Out-of-State'!Z134)/'Sec. G CR Data'!L131),"") ->  | AZ134: =IF($AR134+$AV134+$AT134+$AX134+$AN134+$AP134+'Sec. I Out-of-State'!$X134+'Sec. I Out-of-State'!$Z134>'Sec. G CR Data'!$L131,"ERROR: Charges exceed total!","") -> 
A135: 119 | B135: =IF('Sec. G CR Data'!B132<>"",'Sec. G CR Data'!B132,"") ->  | C135: =IF('Sec. G CR Data'!C132<>"",'Sec. G CR Data'!C132,"") ->  | F135: ='Sec. G CR Data'!M132 -> 0 | AV135: 0 | AX135: 0 | AY135: =IFERROR(IF(State="California DPH",SUM(AJ135,AL135,AN135,AP135,AR135,AT135,AV135,AX135,'Sec. I Out-of-State'!X135,'Sec. I Out-of-State'!Z135)/'Sec. G CR Data'!L132,SUM(AN135,AP135,AR135,AT135,AV135,AX135,'Sec. I Out-of-State'!X135,'Sec. I Out-of-State'!Z135)/'Sec. G CR Data'!L132),"") ->  | AZ135: =IF($AR135+$AV135+$AT135+$AX135+$AN135+$AP135+'Sec. I Out-of-State'!$X135+'Sec. I Out-of-State'!$Z135>'Sec. G CR Data'!$L132,"ERROR: Charges exceed total!","") -> 
A136: 120 | B136: =IF('Sec. G CR Data'!B133<>"",'Sec. G CR Data'!B133,"") ->  | C136: =IF('Sec. G CR Data'!C133<>"",'Sec. G CR Data'!C133,"") ->  | F136: ='Sec. G CR Data'!M133 -> 0 | AV136: 0 | AX136: 0 | AY136: =IFERROR(IF(State="California DPH",SUM(AJ136,AL136,AN136,AP136,AR136,AT136,AV136,AX136,'Sec. I Out-of-State'!X136,'Sec. I Out-of-State'!Z136)/'Sec. G CR Data'!L133,SUM(AN136,AP136,AR136,AT136,AV136,AX136,'Sec. I Out-of-State'!X136,'Sec. I Out-of-State'!Z136)/'Sec. G CR Data'!L133),"") ->  | AZ136: =IF($AR136+$AV136+$AT136+$AX136+$AN136+$AP136+'Sec. I Out-of-State'!$X136+'Sec. I Out-of-State'!$Z136>'Sec. G CR Data'!$L133,"ERROR: Charges exceed total!","") -> 
A137: 121 | B137: =IF('Sec. G CR Data'!B134<>"",'Sec. G CR Data'!B134,"") ->  | C137: =IF('Sec. G CR Data'!C134<>"",'Sec. G CR Data'!C134,"") ->  | F137: ='Sec. G CR Data'!M134 -> 0 | AV137: 0 | AX137: 0 | AY137: =IFERROR(IF(State="California DPH",SUM(AJ137,AL137,AN137,AP137,AR137,AT137,AV137,AX137,'Sec. I Out-of-State'!X137,'Sec. I Out-of-State'!Z137)/'Sec. G CR Data'!L134,SUM(AN137,AP137,AR137,AT137,AV137,AX137,'Sec. I Out-of-State'!X137,'Sec. I Out-of-State'!Z137)/'Sec. G CR Data'!L134),"") ->  | AZ137: =IF($AR137+$AV137+$AT137+$AX137+$AN137+$AP137+'Sec. I Out-of-State'!$X137+'Sec. I Out-of-State'!$Z137>'Sec. G CR Data'!$L134,"ERROR: Charges exceed total!","") -> 
A138: 122 | B138: =IF('Sec. G CR Data'!B135<>"",'Sec. G CR Data'!B135,"") ->  | C138: =IF('Sec. G CR Data'!C135<>"",'Sec. G CR Data'!C135,"") ->  | F138: ='Sec. G CR Data'!M135 -> 0 | AV138: 0 | AX138: 0 | AY138: =IFERROR(IF(State="California DPH",SUM(AJ138,AL138,AN138,AP138,AR138,AT138,AV138,AX138,'Sec. I Out-of-State'!X138,'Sec. I Out-of-State'!Z138)/'Sec. G CR Data'!L135,SUM(AN138,AP138,AR138,AT138,AV138,AX138,'Sec. I Out-of-State'!X138,'Sec. I Out-of-State'!Z138)/'Sec. G CR Data'!L135),"") ->  | AZ138: =IF($AR138+$AV138+$AT138+$AX138+$AN138+$AP138+'Sec. I Out-of-State'!$X138+'Sec. I Out-of-State'!$Z138>'Sec. G CR Data'!$L135,"ERROR: Charges exceed total!","") -> 
A139: 123 | B139: =IF('Sec. G CR Data'!B136<>"",'Sec. G CR Data'!B136,"") ->  | C139: =IF('Sec. G CR Data'!C136<>"",'Sec. G CR Data'!C136,"") ->  | F139: ='Sec. G CR Data'!M136 -> 0 | AV139: 0 | AX139: 0 | AY139: =IFERROR(IF(State="California DPH",SUM(AJ139,AL139,AN139,AP139,AR139,AT139,AV139,AX139,'Sec. I Out-of-State'!X139,'Sec. I Out-of-State'!Z139)/'Sec. G CR Data'!L136,SUM(AN139,AP139,AR139,AT139,AV139,AX139,'Sec. I Out-of-State'!X139,'Sec. I Out-of-State'!Z139)/'Sec. G CR Data'!L136),"") ->  | AZ139: =IF($AR139+$AV139+$AT139+$AX139+$AN139+$AP139+'Sec. I Out-of-State'!$X139+'Sec. I Out-of-State'!$Z139>'Sec. G CR Data'!$L136,"ERROR: Charges exceed total!","") -> 
A140: 124 | B140: =IF('Sec. G CR Data'!B137<>"",'Sec. G CR Data'!B137,"") ->  | C140: =IF('Sec. G CR Data'!C137<>"",'Sec. G CR Data'!C137,"") ->  | F140: ='Sec. G CR Data'!M137 -> 0 | AV140: 0 | AX140: 0 | AY140: =IFERROR(IF(State="California DPH",SUM(AJ140,AL140,AN140,AP140,AR140,AT140,AV140,AX140,'Sec. I Out-of-State'!X140,'Sec. I Out-of-State'!Z140)/'Sec. G CR Data'!L137,SUM(AN140,AP140,AR140,AT140,AV140,AX140,'Sec. I Out-of-State'!X140,'Sec. I Out-of-State'!Z140)/'Sec. G CR Data'!L137),"") ->  | AZ140: =IF($AR140+$AV140+$AT140+$AX140+$AN140+$AP140+'Sec. I Out-of-State'!$X140+'Sec. I Out-of-State'!$Z140>'Sec. G CR Data'!$L137,"ERROR: Charges exceed total!","") -> 
A141: 125 | B141: =IF('Sec. G CR Data'!B138<>"",'Sec. G CR Data'!B138,"") ->  | C141: =IF('Sec. G CR Data'!C138<>"",'Sec. G CR Data'!C138,"") ->  | F141: ='Sec. G CR Data'!M138 -> 0 | AV141: 0 | AX141: 0 | AY141: =IFERROR(IF(State="California DPH",SUM(AJ141,AL141,AN141,AP141,AR141,AT141,AV141,AX141,'Sec. I Out-of-State'!X141,'Sec. I Out-of-State'!Z141)/'Sec. G CR Data'!L138,SUM(AN141,AP141,AR141,AT141,AV141,AX141,'Sec. I Out-of-State'!X141,'Sec. I Out-of-State'!Z141)/'Sec. G CR Data'!L138),"") ->  | AZ141: =IF($AR141+$AV141+$AT141+$AX141+$AN141+$AP141+'Sec. I Out-of-State'!$X141+'Sec. I Out-of-State'!$Z141>'Sec. G CR Data'!$L138,"ERROR: Charges exceed total!","") -> 
A142: 126 | B142: =IF('Sec. G CR Data'!B139<>"",'Sec. G CR Data'!B139,"") ->  | C142: =IF('Sec. G CR Data'!C139<>"",'Sec. G CR Data'!C139,"") ->  | F142: ='Sec. G CR Data'!M139 -> 0 | AV142: 0 | AX142: 0 | AY142: =IFERROR(IF(State="California DPH",SUM(AJ142,AL142,AN142,AP142,AR142,AT142,AV142,AX142,'Sec. I Out-of-State'!X142,'Sec. I Out-of-State'!Z142)/'Sec. G CR Data'!L139,SUM(AN142,AP142,AR142,AT142,AV142,AX142,'Sec. I Out-of-State'!X142,'Sec. I Out-of-State'!Z142)/'Sec. G CR Data'!L139),"") ->  | AZ142: =IF($AR142+$AV142+$AT142+$AX142+$AN142+$AP142+'Sec. I Out-of-State'!$X142+'Sec. I Out-of-State'!$Z142>'Sec. G CR Data'!$L139,"ERROR: Charges exceed total!","") -> 
A143: 127 | B143: =IF('Sec. G CR Data'!B140<>"",'Sec. G CR Data'!B140,"") ->  | C143: =IF('Sec. G CR Data'!C140<>"",'Sec. G CR Data'!C140,"") ->  | F143: ='Sec. G CR Data'!M140 -> 0 | AV143: 0 | AX143: 0 | AY143: =IFERROR(IF(State="California DPH",SUM(AJ143,AL143,AN143,AP143,AR143,AT143,AV143,AX143,'Sec. I Out-of-State'!X143,'Sec. I Out-of-State'!Z143)/'Sec. G CR Data'!L140,SUM(AN143,AP143,AR143,AT143,AV143,AX143,'Sec. I Out-of-State'!X143,'Sec. I Out-of-State'!Z143)/'Sec. G CR Data'!L140),"") ->  | AZ143: =IF($AR143+$AV143+$AT143+$AX143+$AN143+$AP143+'Sec. I Out-of-State'!$X143+'Sec. I Out-of-State'!$Z143>'Sec. G CR Data'!$L140,"ERROR: Charges exceed total!","") -> 
H144: =SUM(FFS_IP_ANCILLARY) -> 10539601.56 | J144: =SUM(FFS_OP_ANCILLARY) -> 15791541.04 | L144: =SUM(MCO_IP_ANCILLARY) -> 10504581.92 | N144: =SUM(MCO_OP_ANCILLARY) -> 27880167.05 | P144: =SUM(FFS_XOVER_IP_ANCILLARY) -> 12193593.58 | R144: =SUM(FFS_XOVER_OP_ANCILLARY) -> 16419018.59 | T144: =SUM(MCO_XOVER_IP_ANCILLARY) -> 9567543.451 | V144: =SUM(MCO_XOVER_OP_ANCILLARY) -> 16724826.58 | X144: =SUM(HEALTHY_IP_ANCILLARY) -> 0 | Z144: =SUM(HEALTHY_OP_ANCILLARY) -> 0 | AB144: =SUM(VALIDATED_PAID_IP_ANCILLARY) -> 0 | AD144: =SUM(VALIDATED_PAID_OP_ANCILLARY) -> 0 | AF144: =SUM(FFS_MCAID_ELIGIBLE_IP_ANCILLARY) -> 0 | AH144: =SUM(FFS_MCAID_ELIGIBLE_OP_ANCILLARY) -> 0 | AJ144: =SUM(MCO_MCAID_ELIGIBLE_IP_ANCILLARY) -> 0 | AL144: =SUM(MCO_MCAID_ELIGIBLE_OP_ANCILLARY) -> 0 | AN144: =SUM(STATE_ONLY_IP_ANCILLARY) -> 0 | AP144: =SUM(STATE_ONLY_OP_ANCILLARY) -> 0 | AR144: =SUM(UNINSURED_IP_ANCILLARY) -> 11563038.86 | AT144: =SUM(UNINSURED_OP_ANCILLARY) -> 36715158.24
B145: Totals / Payments
A147: 128 | B147: Total Charges (includes organ acquisition from Section J) | H147: =SUM(H$34,H$38:H$143,'Sec. J & K Organ Acq'!L$19) -> 13914395.56 | J147: =SUM(J$38:J$143) -> 15791541.04 | L147: =SUM(L$34,L$38:L$143,'Sec. J & K Organ Acq'!P$19) -> 13264151.92 | N147: =SUM(N$38:N$143) -> 27880167.05 | P147: =SUM(P$34,P$38:P$143,'Sec. J & K Organ Acq'!T$19) -> 15694733.58 | R147: =SUM(R$38:R$143) -> 16419018.59 | T147: =SUM(T$34,T$38:T$143,'Sec. J & K Organ Acq'!X$19) -> 12368718.45 | V147: =SUM(V$38:V$143) -> 16724826.58 | X147: =SUM(X$34,X$38:X$143,'Sec. J & K Organ Acq'!AB19) -> 0 | Z147: =SUM(Z$38:Z$143) -> 0 | AB147: =SUM(AB$34,AB$38:AB$143,'Sec. J & K Organ Acq'!AF$19) -> 0 | AD147: =SUM(AD$38:AD$143) -> 0 | AF147: =SUM(AF$34,AF$38:AF$143,'Sec. J & K Organ Acq'!AJ$19) -> 0 | AH147: =SUM(AH$38:AH$143) -> 0 | AJ147: =SUM(AJ$34,AJ$38:AJ$143,'Sec. J & K Organ Acq'!AN$19) -> 0 | AL147: =SUM(AL$38:AL$143) -> 0 | AN147: =SUM(AN$34,AN$38:AN$143,'Sec. J & K Organ Acq'!AR$19) -> 0 | AP147: =SUM(AP$38:AP$143) -> 0 | AR147: =SUM(AR$34,AR$38:AR$143,'Sec. J & K Organ Acq'!AV$19) -> 14790323.86 | AT147: =SUM(AT$38:AT$143) -> 36715158.24 | AV147: =IF(State="California DPH",$T147+$P147+$L147+$H147+$X147+$AB147+$AF147,$T147+$P147+$L147+$H147+$X147+$AB147+$AF147+$AJ147) -> 55241999.51 | AX147: =IF(State="California DPH",$V147+$R147+$N147+$J147+$Z147+$AD147+$AH147,$V147+$R147+$N147+$J147+$Z147+$AD147+$AH147+$AL147) -> 76815553.26 | AY147: =IFERROR(IF(State="California DPH",SUM(AJ147,AL147,AN147,AP147,AR147,AT147,AV147,AX147,OOS_Mcaid_IP_Charges_1,OOS_Mcaid_OP_Charges_1)/'Sec. G CR Data'!L144,SUM(AN147,AP147,AR147,AT147,AV147,AX147,OOS_Mcaid_IP_Charges_1,OOS_Mcaid_OP_Charges_1)/'Sec. G CR Data'!L144),"") -> 0.3763646354
AR148: (Agrees to Exhibit A) | AT148: (Agrees to Exhibit A)
A149: 129 | B149: Total Charges per PS&R or Exhibit Detail | H149: =+H147 -> 13914395.56 | J149: =+J147 -> 15791541.04 | L149: =+L147 -> 13264151.92 | N149: =+N147 -> 27880167.05 | P149: =+P147 -> 15694733.58 | R149: =+R147 -> 16419018.59 | T149: =+T147 -> 12368718.45 | V149: =+V147 -> 16724826.58 | AR149: =+AR147 -> 14790323.86 | AT149: =+AT147 -> 36715158.24
A150: 130 | B150: Unreconciled Charges (Explain Variance) | H150: =H147-H149 -> 0 | J150: =J147-J149 -> 0 | L150: =L147-L149 -> 0 | N150: =N147-N149 -> 0 | P150: =P147-P149 -> 0 | R150: =R147-R149 -> 0 | T150: =T147-T149 -> 0 | V150: =V147-V149 -> 0 | X150: =X147-X149 -> 0 | Z150: =Z147-Z149 -> 0 | AB150: =AB147-AB149 -> 0 | AD150: =AD147-AD149 -> 0 | AF150: =AF147-AF149 -> 0 | AH150: =AH147-AH149 -> 0 | AJ150: =AJ147-AJ149 -> 0 | AL150: =AL147-AL149 -> 0 | AN150: =AN147-AN149 -> 0 | AP150: =AP147-AP149 -> 0 | AR150: =AR147-AR149 -> 0 | AT150: =AT147-AT149 -> 0
A152: 131 | B152: Total Calculated Cost (includes organ acquisition from Section J) | H152: =ROUND(SUMPRODUCT($D$11:$D$27,H$11:H$27)+SUMPRODUCT($F$38:$F$143,H$38:H$143)+'Sec. J & K Organ Acq'!N$21,0) -> 4972227 | J152: =ROUND(SUMPRODUCT($D$11:$D$27,J$11:J$27)+SUMPRODUCT($F$38:$F$143,J$38:J$143),0) -> 3100907 | L152: =ROUND(SUMPRODUCT($D$11:$D$27,L$11:L$27)+SUMPRODUCT($F$38:$F$143,L$38:L$143)+'Sec. J & K Organ Acq'!R$21,) -> 5545094 | N152: =ROUND(SUMPRODUCT($D$11:$D$27,N$11:N$27)+SUMPRODUCT($F$38:$F$143,N$38:N$143),0) -> 4885421 | P152: =ROUND(SUMPRODUCT($D$11:$D$27,P$11:P$27)+SUMPRODUCT($F$38:$F$143,P$38:P$143)+'Sec. J & K Organ Acq'!V$21,0) -> 5316086 | R152: =ROUND(SUMPRODUCT($D$11:$D$27,R$11:R$27)+SUMPRODUCT($F$38:$F$143,R$38:R$143),0) -> 3370877 | T152: =ROUND(SUMPRODUCT($D$11:$D$27,T$11:T$27)+SUMPRODUCT($F$38:$F$143,T$38:T$143)+'Sec. J & K Organ Acq'!Z$21,0) -> 4374644 | V152: =ROUND(SUMPRODUCT($D$11:$D$27,V$11:V$27)+SUMPRODUCT($F$38:$F$143,V$38:V$143),0) -> 3651022 | X152: =ROUND(SUMPRODUCT($D$11:$D$27,X$11:X$27)+SUMPRODUCT($F$38:$F$143,X$38:X$143)+'Sec. J & K Organ Acq'!$AD$21,0) -> 0 | Z152: =ROUND(SUMPRODUCT($D$11:$D$27,Z$11:Z$27)+SUMPRODUCT($F$38:$F$143,Z$38:Z$143),0) -> 0 | AB152: =ROUND(SUMPRODUCT($D$11:$D$27,AB$11:AB$27)+SUMPRODUCT($F$38:$F$143,AB$38:AB$143)+'Sec. J & K Organ Acq'!AH$21,0) -> 0 | AD152: =ROUND(SUMPRODUCT($D$11:$D$27,AD$11:AD$27)+SUMPRODUCT($F$38:$F$143,AD$38:AD$143),0) -> 0 | AF152: =ROUND(SUMPRODUCT($D$11:$D$27,AF$11:AF$27)+SUMPRODUCT($F$38:$F$143,AF$38:AF$143)+'Sec. J & K Organ Acq'!AL$21,0) -> 0 | AH152: =ROUND(SUMPRODUCT($D$11:$D$27,AH$11:AH$27)+SUMPRODUCT($F$38:$F$143,AH$38:AH$143),0) -> 0 | AJ152: =ROUND(SUMPRODUCT($D$11:$D$27,AJ$11:AJ$27)+SUMPRODUCT($F$38:$F$143,AJ$38:AJ$143)+'Sec. J & K Organ Acq'!AP$21,0) -> 0 | AL152: =ROUND(SUMPRODUCT($D$11:$D$27,AL$11:AL$27)+SUMPRODUCT($F$38:$F$143,AL$38:AL$143),0) -> 0 | AN152: =ROUND(SUMPRODUCT($D$11:$D$27,AN$11:AN$27)+SUMPRODUCT($F$38:$F$143,AN$38:AN$143)+'Sec. J & K Organ Acq'!AT$21,0) -> 0 | AP152: =ROUND(SUMPRODUCT($D$11:$D$27,AP$11:AP$27)+SUMPRODUCT($F$38:$F$143,AP$38:AP$143),0) -> 0 | AR152: =ROUND(SUMPRODUCT($D$11:$D$27,AR$11:AR$27)+SUMPRODUCT($F$38:$F$143,AR$38:AR$143)+'Sec. J & K Organ Acq'!AX$21,0) -> 4608546 | AT152: =ROUND(SUMPRODUCT($D$11:$D$27,AT$11:AT$27)+SUMPRODUCT($F$38:$F$143,AT$38:AT$143),0) -> 6188450 | AV152: =IF(State="California DPH",$T152+$P152+$L152+$H152+$X152+$AB152+$AF152,$T152+$P152+$L152+$H152+$X152+$AB152+$AF152+$AJ152) -> 20208051 | AX152: =IF(State="California DPH",$V152+$R152+$N152+$J152+$Z152+$AD152+$AH152,$V152+$R152+$N152+$J152+$Z152+$AD152+$AH152+$AL152) -> 15008227 | AY152: =IFERROR(IF(State="California DPH",SUM(AJ152,AL152,AN152,AP152,AR152,AT152,AV152,AX152,Tot_Mcaid_OutOfState_IP_Cost_1,Tot_Mcaid_OutOfState_OP_Cost_1)/'Sec. G CR Data'!I149,SUM(AN152,AP152,AR152,AT152,AV152,AX152,Tot_Mcaid_OutOfState_IP_Cost_1,Tot_Mcaid_OutOfState_OP_Cost_1)/'Sec. G CR Data'!I149),"") -> 0.385469957
A154: 132 | B154: Total Medicaid Paid Amount (excludes TPL, Co-Pay and Spend-Down) | H154: 5118268.77 | J154: 2962216.7 | P154: 435609.49 | R154: 311357.97 | T154: 179205.2 | V154: 192550.03 | AV154: =$T154+$P154+$L154+$H154+$X154+$AB154+$AF154+$AJ154 -> 5733083.46 | AX154: =$V154+$R154+$N154+$J154+$Z154+$AD154+$AH154+$AL154 -> 3466124.7
A155: 133 | B155: =IF(StateOnlyDisplay="Yes","Total Medicaid (or State-Only) Managed Care Paid Amount (excludes TPL, Co-Pay and Spend-Down) (See Note E)","Total Medicaid Managed Care Paid Amount (excludes TPL, Co-Pay and Spend-Down) (See Note E)") -> Total Medicaid Managed Care Paid Amount (excludes TPL, Co-Pay and Spend-Down) (See Note E) | H155: 0 | J155: 0 | L155: 4132536 | N155: 4346780.82 | P155: 0 | R155: 54.3 | T155: 99746.61 | V155: 85755.3 | AR155: =IF(StateOnlyDisplay="YES","(See Note F)","") ->  | AV155: =$T155+$P155+$L155+$H155+$X155+$AB155+$AF155+$AJ155 -> 4232282.61 | AX155: =$V155+$R155+$N155+$J155+$Z155+$AD155+$AH155+$AL155 -> 4432590.42
A156: 134 | B156: Private Insurance (including primary and third party liability) | H156: 152352.53 | J156: 169118.81 | N156: 2553 | P156: 18497.02 | R156: 8845 | T156: 1603725.31 | V156: 1550592.61 | AV156: 1774574.86 | AX156: 1731109.42
A157: 135 | B157: Self-Pay (including Co-Pay and Spend-Down) | H157: 0 | J157: 6875.04 | L157: 447 | N157: 1391 | P157: 486.88 | R157: 3862.13 | T157: 9343.99 | V157: 22676.55 | AR157: =IF(StateOnlyDisplay="YES","(See Note F)","") ->  | AV157: 10277.87 | AX157: 34804.72
A158: 136 | B158: Total Allowed Amount from Medicaid PS&R or RA Detail (All Payments) | H158: =SUM(H$154:H$157) -> 5270621.3 | J158: =SUM(J$154:J$157) -> 3138210.55 | L158: =SUM(L$154:L$157) -> 4132983 | N158: =SUM(N$154:N$157) -> 4350724.82 | X158: =SUM(X$154:X$157) -> 0 | Z158: =SUM(Z$154:Z$157) -> 0 | AB158: =SUM(AB$154:AB$157) -> 0 | AD158: =SUM(AD$154:AD$157) -> 0 | AF158: =SUM(AF$154:AF$157) -> 0 | AH158: =SUM(AH$154:AH$157) -> 0 | AJ158: =SUM(AJ$154:AJ$157) -> 0 | AL158: =SUM(AL$154:AL$157) -> 0 | AN158: =SUM(AN$154:AN$157) -> 0 | AP158: =SUM(AP$154:AP$157) -> 0
A159: 137 | B159: Medicaid Cost Settlement Payments (See Note B) | J159: -365561 | AV159: =$H159+$AB159+$L159 -> 0 | AX159: =$J159+$AD159+$N159 -> -365561
A160: 138 | B160: =IF(State="California DPH","Other Payments Reported on Cost Report Year","Other Medicaid Payments Reported on Cost Report Year (See Note C)") -> Other Medicaid Payments Reported on Cost Report Year (See Note C) | AV160: =IF(State="California DPH",$L160+$H160+$X160+$AB160+$AF160,$L160+$H160+$X160+$AB160+$AF160+$AJ160) -> 0 | AX160: =IF(State="California DPH",$N160+$J160+$Z160+$AD160+$AH160,$N160+$J160+$Z160+$AD160+$AH160+$AL160) -> 0
A161: 139 | B161: Medicare Traditional (non-HMO) Paid Amount (excludes coinsurance/deductibles) | P161: 4815147.36 | R161: 2444202.05 | T161: 586829.01 | V161: 782601.68 | AV161: =IF(State="California DPH",$T161+$P161+$X161,$T161+$P161+$AB161) -> 5401976.37 | AX161: =IF(State="California DPH",$V161+$R161+$Z161,$V161+$R161+$AD161) -> 3226803.73
A162: 140 | B162: Medicare Managed Care (HMO) Paid Amount (excludes coinsurance/deductibles) | P162: 7286.52 | R162: 393 | T162: 1702594.2 | V162: 1208975.9 | AV162: =IF(State="California DPH",$T162+$P162+$X162,$T162+$P162+$AB162) -> 1709880.72 | AX162: =IF(State="California DPH",$V162+$R162+$Z162,$V162+$R162+$AD162) -> 1209368.9
A163: 141 | B163: Medicare Cross-Over Bad Debt Payments | P163: 35003 | R163: 55778 | AR163: (Agrees to Exhibit B and B-1) | AT163: (Agrees to Exhibit B and B-1) | AV163: =IF(State="California DPH",$T163+$P163+$X163,$T163+$P163+$AB163) -> 35003 | AX163: =IF(State="California DPH",$V163+$R163+$Z163,$V163+$R163+$AD163) -> 55778
A164: 142 | B164: Other Medicare Cross-Over Payments (See Note D) | P164: 0 | R164: 0 | AV164: =IF(State="California DPH",$T164+$P164+$X164,$T164+$P164+$AB164) -> 0 | AX164: =IF(State="California DPH",$V164+$R164+$Z164,$V164+$R164+$AD164) -> 0
A165: 143 | B165: Payment from Hospital Uninsured During Cost Report Year (Cash Basis) | AR165: 178219 | AT165: 572282 | AV165: =IF(ROUND(SUM(AR165,AT165),0)<>ROUND('Sec. D, E, F CR Data'!$M$60,0),"Uninsured payments do not reconcile to Section E. Please verify.","") -> 
A166: 144 | B166: Section 1011 Payment Related to Inpatient Hospital Services NOT Included in Exhibits B & B-1 (from Section E) | AR166: =NotOnB_IP_1011_1 -> 0 | AT166: =NotOnB_OP_1011_1 -> 0
